{"text_format":"1","workbook":"xlsx","n_sheets":1,"sheets":["data"],"not_rendered":{"charts":0,"images":0,"macros":1,"external_links":0,"defined_names":0,"comments":0,"pivot_tables":0},"unopened":[],"bounds":{"document_bytes":16777216,"sheet_cells":100000,"rows_first":2000,"rows_last":500,"rows_between":2000,"halvings":0,"cell_chars":16384,"cell_head_chars":4096},"cells_cut":0,"cells_raw":0,"read":"whole","date_system":"1900"}

{"sheet":"data","index":0,"n_rows":470,"n_cols":4,"rows_kept":470,"cut":false,"hidden":false,"merged":[]}
["اسم العمارة/الوحدة","اسم المستأجر","عمود1","نص الرسالة"]
["الادريسي (B) شقة - 29","احسان الله شودري احمد",0,{"$f":"\"عزيزنا المستأجر (\"&$B2&\") نود إبلاغكم بوجود مستحقات متأخرة عليكم للوحدة المستأجرة في (\"&$A2&\") لذا نأمل سرعة السداد تجنباً لاتخاذ الإجراء القانوني مع أهمية ارسال إيصال التحويل على رقم الواتساب (966122121912) وشكراً لتفهمكم.\nإدارة وقف حسين مرفق\"","v":"عزيزنا المستأجر (احسان الله شودري احمد) نود إبلاغكم بوجود مستحقات متأخرة عليكم للوحدة المستأجرة في (الادريسي (B) شقة - 29) لذا نأمل سرعة السداد تجنباً لاتخاذ الإجراء القانوني مع أهمية ارسال إيصال التحويل على رقم الواتساب (966122121912) وشكراً لتفهمكم.\nإدارة وقف حسين مرفق"}]
["الادريسي (A) شقة 2","احمد حسين الموسى",0,"عزيزنا المستأجر (احمد حسين الموسى) نود إبلاغكم بوجود مستحقات متأخرة عليكم للوحدة المستأجرة في (الادريسي (A) شقة 2) لذا نأمل سرعة السداد تجنباً لاتخاذ الإجراء القانوني مع أهمية ارسال إيصال التحويل على رقم الواتساب (966122121912) وشكراً لتفهمكم.\nإدارة وقف حسين مرفق"]
["الادريسي (B) شقة - 22","احمد قاسم سالم الحداد",null,{"$f":"\"عزيزنا المستأجر (\"&$B4&\") نود إبلاغكم بوجود مستحقات متأخرة عليكم للوحدة المستأجرة في (\"&$A4&\") لذا نأمل سرعة السداد تجنباً لاتخاذ الإجراء القانوني مع أهمية ارسال إيصال التحويل على رقم الواتساب (966122121912) وشكراً لتفهمكم.\nإدارة وقف حسين مرفق\"","v":"عزيزنا المستأجر (احمد قاسم سالم الحداد) نود إبلاغكم بوجود مستحقات متأخرة عليكم للوحدة المستأجرة في (الادريسي (B) شقة - 22) لذا نأمل سرعة السداد تجنباً لاتخاذ الإجراء القانوني مع أهمية ارسال إيصال التحويل على رقم الواتساب (966122121912) وشكراً لتفهمكم.\nإدارة وقف حسين مرفق"}]
["الادريسي (A) شقة - 12","احمد محمد شهيد الله امين الحق",null,{"$f":"\"عزيزنا المستأجر (\"&$B5&\") نود إبلاغكم بوجود مستحقات متأخرة عليكم للوحدة المستأجرة في (\"&$A5&\") لذا نأمل سرعة السداد تجنباً لاتخاذ الإجراء القانوني مع أهمية ارسال إيصال التحويل على رقم الواتساب (966122121912) وشكراً لتفهمكم.\nإدارة وقف حسين مرفق\"","v":"عزيزنا المستأجر (احمد محمد شهيد الله امين الحق) نود إبلاغكم بوجود مستحقات متأخرة عليكم للوحدة المستأجرة في (الادريسي (A) شقة - 12) لذا نأمل سرعة السداد تجنباً لاتخاذ الإجراء القانوني مع أهمية ارسال إيصال التحويل على رقم الواتساب (966122121912) وشكراً لتفهمكم.\nإدارة وقف حسين مرفق"}]
["الادريسي (A) شقة - 6","احمد محمود عزاقير",null,"عزيزنا المستأجر (احمد محمود عزاقير) نود إبلاغكم بوجود مستحقات متأخرة عليكم للوحدة المستأجرة في (الادريسي (A) شقة - 6) لذا نأمل سرعة السداد تجنباً لاتخاذ الإجراء القانوني مع أهمية ارسال إيصال التحويل على رقم الواتساب (966122121912) وشكراً لتفهمكم.\nإدارة وقف حسين مرفق"]
["الادريسي (B) شقة - 30 ","ادم عثمان احمد قمام",null,"عزيزنا المستأجر (ادم عثمان احمد قمام) نود إبلاغكم بوجود مستحقات متأخرة عليكم للوحدة المستأجرة في (الادريسي (B) شقة - 30 ) لذا نأمل سرعة السداد تجنباً لاتخاذ الإجراء القانوني مع أهمية ارسال إيصال التحويل على رقم الواتساب (966122121912) وشكراً لتفهمكم.\nإدارة وقف حسين مرفق"]
["الادريسي معرض","البنك الاهلي السعودي",null,"عزيزنا المستأجر (البنك الاهلي السعودي) نود إبلاغكم بوجود مستحقات متأخرة عليكم للوحدة المستأجرة في (الادريسي معرض) لذا نأمل سرعة السداد تجنباً لاتخاذ الإجراء القانوني مع أهمية ارسال إيصال التحويل على رقم الواتساب (966122121912) وشكراً لتفهمكم.\nإدارة وقف حسين مرفق"]
["الادريسي (B) شقة - 16 ","ايمن محمود احمد حسين",null,"عزيزنا المستأجر (ايمن محمود احمد حسين) نود إبلاغكم بوجود مستحقات متأخرة عليكم للوحدة المستأجرة في (الادريسي (B) شقة - 16 ) لذا نأمل سرعة السداد تجنباً لاتخاذ الإجراء القانوني مع أهمية ارسال إيصال التحويل على رقم الواتساب (966122121912) وشكراً لتفهمكم.\nإدارة وقف حسين مرفق"]
["الادريسي (B) شقة - 26","جنيد علي خان",null,"عزيزنا المستأجر (جنيد علي خان) نود إبلاغكم بوجود مستحقات متأخرة عليكم للوحدة المستأجرة في (الادريسي (B) شقة - 26) لذا نأمل سرعة السداد تجنباً لاتخاذ الإجراء القانوني مع أهمية ارسال إيصال التحويل على رقم الواتساب (966122121912) وشكراً لتفهمكم.\nإدارة وقف حسين مرفق"]
["الادريسي (B) شقة - 25","حسام احمد غسان الشلبي",null,"عزيزنا المستأجر (حسام احمد غسان الشلبي) نود إبلاغكم بوجود مستحقات متأخرة عليكم للوحدة المستأجرة في (الادريسي (B) شقة - 25) لذا نأمل سرعة السداد تجنباً لاتخاذ الإجراء القانوني مع أهمية ارسال إيصال التحويل على رقم الواتساب (966122121912) وشكراً لتفهمكم.\nإدارة وقف حسين مرفق"]
["الادريسي (B) شقة - 21","حسام حسين ابو ضربه",null,"عزيزنا المستأجر (حسام حسين ابو ضربه) نود إبلاغكم بوجود مستحقات متأخرة عليكم للوحدة المستأجرة في (الادريسي (B) شقة - 21) لذا نأمل سرعة السداد تجنباً لاتخاذ الإجراء القانوني مع أهمية ارسال إيصال التحويل على رقم الواتساب (966122121912) وشكراً لتفهمكم.\nإدارة وقف حسين مرفق"]
["الادريسي (B) شقة - 15 ","ربيع الحق حاجي واحد الرحمن",null,"عزيزنا المستأجر (ربيع الحق حاجي واحد الرحمن) نود إبلاغكم بوجود مستحقات متأخرة عليكم للوحدة المستأجرة في (الادريسي (B) شقة - 15 ) لذا نأمل سرعة السداد تجنباً لاتخاذ الإجراء القانوني مع أهمية ارسال إيصال التحويل على رقم الواتساب (966122121912) وشكراً لتفهمكم.\nإدارة وقف حسين مرفق"]
["الادريسي (B) شقة - 14 ","رضا الرحمن خان الحاج خليل الرحمن خان",null,"عزيزنا المستأجر (رضا الرحمن خان الحاج خليل الرحمن خان) نود إبلاغكم بوجود مستحقات متأخرة عليكم للوحدة المستأجرة في (الادريسي (B) شقة - 14 ) لذا نأمل سرعة السداد تجنباً لاتخاذ الإجراء القانوني مع أهمية ارسال إيصال التحويل على رقم الواتساب (966122121912) وشكراً لتفهمكم.\nإدارة وقف حسين مرفق"]
["الادريسي (A) شقة - 18","زاكر حسين نور النبي",null,"عزيزنا المستأجر (زاكر حسين نور النبي) نود إبلاغكم بوجود مستحقات متأخرة عليكم للوحدة المستأجرة في (الادريسي (A) شقة - 18) لذا نأمل سرعة السداد تجنباً لاتخاذ الإجراء القانوني مع أهمية ارسال إيصال التحويل على رقم الواتساب (966122121912) وشكراً لتفهمكم.\nإدارة وقف حسين مرفق"]
["الادريسي (A) شقة - 5","سم ميزان الرحمن سم مطيع الرحمن",null,"عزيزنا المستأجر (سم ميزان الرحمن سم مطيع الرحمن) نود إبلاغكم بوجود مستحقات متأخرة عليكم للوحدة المستأجرة في (الادريسي (A) شقة - 5) لذا نأمل سرعة السداد تجنباً لاتخاذ الإجراء القانوني مع أهمية ارسال إيصال التحويل على رقم الواتساب (966122121912) وشكراً لتفهمكم.\nإدارة وقف حسين مرفق"]
["الادريسي (B) شقة - 27","سيد محمد اقبال",null,"عزيزنا المستأجر (سيد محمد اقبال) نود إبلاغكم بوجود مستحقات متأخرة عليكم للوحدة المستأجرة في (الادريسي (B) شقة - 27) لذا نأمل سرعة السداد تجنباً لاتخاذ الإجراء القانوني مع أهمية ارسال إيصال التحويل على رقم الواتساب (966122121912) وشكراً لتفهمكم.\nإدارة وقف حسين مرفق"]
["الادريسي (A) شقة - 9","طارق سليم الريفي",null,"عزيزنا المستأجر (طارق سليم الريفي) نود إبلاغكم بوجود مستحقات متأخرة عليكم للوحدة المستأجرة في (الادريسي (A) شقة - 9) لذا نأمل سرعة السداد تجنباً لاتخاذ الإجراء القانوني مع أهمية ارسال إيصال التحويل على رقم الواتساب (966122121912) وشكراً لتفهمكم.\nإدارة وقف حسين مرفق"]
["الادريسي (A) ملحق - 1 ","عادل محمد قايد الشميري",null,"عزيزنا المستأجر (عادل محمد قايد الشميري) نود إبلاغكم بوجود مستحقات متأخرة عليكم للوحدة المستأجرة في (الادريسي (A) ملحق - 1 ) لذا نأمل سرعة السداد تجنباً لاتخاذ الإجراء القانوني مع أهمية ارسال إيصال التحويل على رقم الواتساب (966122121912) وشكراً لتفهمكم.\nإدارة وقف حسين مرفق"]
["الادريسي (B) شقة - 8 ","عبدالرشيد - - كالابادن",null,"عزيزنا المستأجر (عبدالرشيد - - كالابادن) نود إبلاغكم بوجود مستحقات متأخرة عليكم للوحدة المستأجرة في (الادريسي (B) شقة - 8 ) لذا نأمل سرعة السداد تجنباً لاتخاذ الإجراء القانوني مع أهمية ارسال إيصال التحويل على رقم الواتساب (966122121912) وشكراً لتفهمكم.\nإدارة وقف حسين مرفق"]
["الادريسي (A) شقة - 14 ","عبدالمنان عبدالمقصود احمد",null,"عزيزنا المستأجر (عبدالمنان عبدالمقصود احمد) نود إبلاغكم بوجود مستحقات متأخرة عليكم للوحدة المستأجرة في (الادريسي (A) شقة - 14 ) لذا نأمل سرعة السداد تجنباً لاتخاذ الإجراء القانوني مع أهمية ارسال إيصال التحويل على رقم الواتساب (966122121912) وشكراً لتفهمكم.\nإدارة وقف حسين مرفق"]
["الادريسي (B) ملحق - 2 ","عبدول جمال الدين عمر مانقلوري",null,"عزيزنا المستأجر (عبدول جمال الدين عمر مانقلوري) نود إبلاغكم بوجود مستحقات متأخرة عليكم للوحدة المستأجرة في (الادريسي (B) ملحق - 2 ) لذا نأمل سرعة السداد تجنباً لاتخاذ الإجراء القانوني مع أهمية ارسال إيصال التحويل على رقم الواتساب (966122121912) وشكراً لتفهمكم.\nإدارة وقف حسين مرفق"]
["الادريسي (B) شقة - 11","عصمت الحسين عبدالرزاق",null,"عزيزنا المستأجر (عصمت الحسين عبدالرزاق) نود إبلاغكم بوجود مستحقات متأخرة عليكم للوحدة المستأجرة في (الادريسي (B) شقة - 11) لذا نأمل سرعة السداد تجنباً لاتخاذ الإجراء القانوني مع أهمية ارسال إيصال التحويل على رقم الواتساب (966122121912) وشكراً لتفهمكم.\nإدارة وقف حسين مرفق"]
["الادريسي (A) شقة - 10 ","عماد عارف ابو حمدان",null,"عزيزنا المستأجر (عماد عارف ابو حمدان) نود إبلاغكم بوجود مستحقات متأخرة عليكم للوحدة المستأجرة في (الادريسي (A) شقة - 10 ) لذا نأمل سرعة السداد تجنباً لاتخاذ الإجراء القانوني مع أهمية ارسال إيصال التحويل على رقم الواتساب (966122121912) وشكراً لتفهمكم.\nإدارة وقف حسين مرفق"]
["الادريسي (B) شقة - 28","عمار احمد غسان الشلبي",null,"عزيزنا المستأجر (عمار احمد غسان الشلبي) نود إبلاغكم بوجود مستحقات متأخرة عليكم للوحدة المستأجرة في (الادريسي (B) شقة - 28) لذا نأمل سرعة السداد تجنباً لاتخاذ الإجراء القانوني مع أهمية ارسال إيصال التحويل على رقم الواتساب (966122121912) وشكراً لتفهمكم.\nإدارة وقف حسين مرفق"]
["الادريسي (B) شقة - 2","عمار محمد الياس",null,"عزيزنا المستأجر (عمار محمد الياس) نود إبلاغكم بوجود مستحقات متأخرة عليكم للوحدة المستأجرة في (الادريسي (B) شقة - 2) لذا نأمل سرعة السداد تجنباً لاتخاذ الإجراء القانوني مع أهمية ارسال إيصال التحويل على رقم الواتساب (966122121912) وشكراً لتفهمكم.\nإدارة وقف حسين مرفق"]
["الادريسي (A) شقة - 16","غالب وسيم بوحمدان",null,"عزيزنا المستأجر (غالب وسيم بوحمدان) نود إبلاغكم بوجود مستحقات متأخرة عليكم للوحدة المستأجرة في (الادريسي (A) شقة - 16) لذا نأمل سرعة السداد تجنباً لاتخاذ الإجراء القانوني مع أهمية ارسال إيصال التحويل على رقم الواتساب (966122121912) وشكراً لتفهمكم.\nإدارة وقف حسين مرفق"]
["الادريسي (B) شقة - 20 ","فراس ابو الجود عبدالقادر - عطار ",null,"عزيزنا المستأجر (فراس ابو الجود عبدالقادر - عطار ) نود إبلاغكم بوجود مستحقات متأخرة عليكم للوحدة المستأجرة في (الادريسي (B) شقة - 20 ) لذا نأمل سرعة السداد تجنباً لاتخاذ الإجراء القانوني مع أهمية ارسال إيصال التحويل على رقم الواتساب (966122121912) وشكراً لتفهمكم.\nإدارة وقف حسين مرفق"]
["الادريسي (A) شقة - 4","فراس ابو الجود عبدالقادر عطار",null,"عزيزنا المستأجر (فراس ابو الجود عبدالقادر عطار) نود إبلاغكم بوجود مستحقات متأخرة عليكم للوحدة المستأجرة في (الادريسي (A) شقة - 4) لذا نأمل سرعة السداد تجنباً لاتخاذ الإجراء القانوني مع أهمية ارسال إيصال التحويل على رقم الواتساب (966122121912) وشكراً لتفهمكم.\nإدارة وقف حسين مرفق"]
["الادريسي (B) شقة - 18 ","قاضي مشرف حسين قاضي عبدالمنان",null,"عزيزنا المستأجر (قاضي مشرف حسين قاضي عبدالمنان) نود إبلاغكم بوجود مستحقات متأخرة عليكم للوحدة المستأجرة في (الادريسي (B) شقة - 18 ) لذا نأمل سرعة السداد تجنباً لاتخاذ الإجراء القانوني مع أهمية ارسال إيصال التحويل على رقم الواتساب (966122121912) وشكراً لتفهمكم.\nإدارة وقف حسين مرفق"]
["الادريسي (A) شقة - 8","كريم مصباح الدين - فضل كريم",null,"عزيزنا المستأجر (كريم مصباح الدين - فضل كريم) نود إبلاغكم بوجود مستحقات متأخرة عليكم للوحدة المستأجرة في (الادريسي (A) شقة - 8) لذا نأمل سرعة السداد تجنباً لاتخاذ الإجراء القانوني مع أهمية ارسال إيصال التحويل على رقم الواتساب (966122121912) وشكراً لتفهمكم.\nإدارة وقف حسين مرفق"]
["الادريسي (B) شقة - 13 ","محمد اشرف الدين",null,"عزيزنا المستأجر (محمد اشرف الدين) نود إبلاغكم بوجود مستحقات متأخرة عليكم للوحدة المستأجرة في (الادريسي (B) شقة - 13 ) لذا نأمل سرعة السداد تجنباً لاتخاذ الإجراء القانوني مع أهمية ارسال إيصال التحويل على رقم الواتساب (966122121912) وشكراً لتفهمكم.\nإدارة وقف حسين مرفق"]
["الادريسي (B) غرفة - 1 ","محمد اياز علي انوار",null,"عزيزنا المستأجر (محمد اياز علي انوار) نود إبلاغكم بوجود مستحقات متأخرة عليكم للوحدة المستأجرة في (الادريسي (B) غرفة - 1 ) لذا نأمل سرعة السداد تجنباً لاتخاذ الإجراء القانوني مع أهمية ارسال إيصال التحويل على رقم الواتساب (966122121912) وشكراً لتفهمكم.\nإدارة وقف حسين مرفق"]
["الادريسي (A) شقة - 17 ","محمد حسين علي ابو ضربه",null,"عزيزنا المستأجر (محمد حسين علي ابو ضربه) نود إبلاغكم بوجود مستحقات متأخرة عليكم للوحدة المستأجرة في (الادريسي (A) شقة - 17 ) لذا نأمل سرعة السداد تجنباً لاتخاذ الإجراء القانوني مع أهمية ارسال إيصال التحويل على رقم الواتساب (966122121912) وشكراً لتفهمكم.\nإدارة وقف حسين مرفق"]
["الادريسي (B) شقة - 9 ","محمد رحيم الله - أبو الخير",null,"عزيزنا المستأجر (محمد رحيم الله - أبو الخير) نود إبلاغكم بوجود مستحقات متأخرة عليكم للوحدة المستأجرة في (الادريسي (B) شقة - 9 ) لذا نأمل سرعة السداد تجنباً لاتخاذ الإجراء القانوني مع أهمية ارسال إيصال التحويل على رقم الواتساب (966122121912) وشكراً لتفهمكم.\nإدارة وقف حسين مرفق"]
["الادريسي (B) شقة - 6 ","محمد رفيق الاسلام عبداللطيف",null,"عزيزنا المستأجر (محمد رفيق الاسلام عبداللطيف) نود إبلاغكم بوجود مستحقات متأخرة عليكم للوحدة المستأجرة في (الادريسي (B) شقة - 6 ) لذا نأمل سرعة السداد تجنباً لاتخاذ الإجراء القانوني مع أهمية ارسال إيصال التحويل على رقم الواتساب (966122121912) وشكراً لتفهمكم.\nإدارة وقف حسين مرفق"]
["الادريسي (B) شقة - 12 ","محمد شفيق الاسلام - حسين علي",null,"عزيزنا المستأجر (محمد شفيق الاسلام - حسين علي) نود إبلاغكم بوجود مستحقات متأخرة عليكم للوحدة المستأجرة في (الادريسي (B) شقة - 12 ) لذا نأمل سرعة السداد تجنباً لاتخاذ الإجراء القانوني مع أهمية ارسال إيصال التحويل على رقم الواتساب (966122121912) وشكراً لتفهمكم.\nإدارة وقف حسين مرفق"]
["الادريسي (A) شقة - 13","محمد شهيد الله امين الحق",null,"عزيزنا المستأجر (محمد شهيد الله امين الحق) نود إبلاغكم بوجود مستحقات متأخرة عليكم للوحدة المستأجرة في (الادريسي (A) شقة - 13) لذا نأمل سرعة السداد تجنباً لاتخاذ الإجراء القانوني مع أهمية ارسال إيصال التحويل على رقم الواتساب (966122121912) وشكراً لتفهمكم.\nإدارة وقف حسين مرفق"]
["الادريسي (B) شقة - 23","محمد صفي الله - محبوب الرحمن",null,"عزيزنا المستأجر (محمد صفي الله - محبوب الرحمن) نود إبلاغكم بوجود مستحقات متأخرة عليكم للوحدة المستأجرة في (الادريسي (B) شقة - 23) لذا نأمل سرعة السداد تجنباً لاتخاذ الإجراء القانوني مع أهمية ارسال إيصال التحويل على رقم الواتساب (966122121912) وشكراً لتفهمكم.\nإدارة وقف حسين مرفق"]
["الادريسي (B) شقة - 19","محمد عبد - المتين",null,"عزيزنا المستأجر (محمد عبد - المتين) نود إبلاغكم بوجود مستحقات متأخرة عليكم للوحدة المستأجرة في (الادريسي (B) شقة - 19) لذا نأمل سرعة السداد تجنباً لاتخاذ الإجراء القانوني مع أهمية ارسال إيصال التحويل على رقم الواتساب (966122121912) وشكراً لتفهمكم.\nإدارة وقف حسين مرفق"]
["الادريسي (A) شقة - 3","محمد عتيق الاسلام الفي نزير الإسلام",null,"عزيزنا المستأجر (محمد عتيق الاسلام الفي نزير الإسلام) نود إبلاغكم بوجود مستحقات متأخرة عليكم للوحدة المستأجرة في (الادريسي (A) شقة - 3) لذا نأمل سرعة السداد تجنباً لاتخاذ الإجراء القانوني مع أهمية ارسال إيصال التحويل على رقم الواتساب (966122121912) وشكراً لتفهمكم.\nإدارة وقف حسين مرفق"]
["الادريسي (B) شقة - 17 ","محمد لقمان محمد نور عالم",null,"عزيزنا المستأجر (محمد لقمان محمد نور عالم) نود إبلاغكم بوجود مستحقات متأخرة عليكم للوحدة المستأجرة في (الادريسي (B) شقة - 17 ) لذا نأمل سرعة السداد تجنباً لاتخاذ الإجراء القانوني مع أهمية ارسال إيصال التحويل على رقم الواتساب (966122121912) وشكراً لتفهمكم.\nإدارة وقف حسين مرفق"]
["الادريسي (A) شقة - 19 ","محمد ناصر الدين عبدالصمد",null,"عزيزنا المستأجر (محمد ناصر الدين عبدالصمد) نود إبلاغكم بوجود مستحقات متأخرة عليكم للوحدة المستأجرة في (الادريسي (A) شقة - 19 ) لذا نأمل سرعة السداد تجنباً لاتخاذ الإجراء القانوني مع أهمية ارسال إيصال التحويل على رقم الواتساب (966122121912) وشكراً لتفهمكم.\nإدارة وقف حسين مرفق"]
["الادريسي (A) شقة - 15","مروان احمد رسلان",null,"عزيزنا المستأجر (مروان احمد رسلان) نود إبلاغكم بوجود مستحقات متأخرة عليكم للوحدة المستأجرة في (الادريسي (A) شقة - 15) لذا نأمل سرعة السداد تجنباً لاتخاذ الإجراء القانوني مع أهمية ارسال إيصال التحويل على رقم الواتساب (966122121912) وشكراً لتفهمكم.\nإدارة وقف حسين مرفق"]
["الادريسي (A) شقة - 11 ","معين الدين فخر الإسلام",null,"عزيزنا المستأجر (معين الدين فخر الإسلام) نود إبلاغكم بوجود مستحقات متأخرة عليكم للوحدة المستأجرة في (الادريسي (A) شقة - 11 ) لذا نأمل سرعة السداد تجنباً لاتخاذ الإجراء القانوني مع أهمية ارسال إيصال التحويل على رقم الواتساب (966122121912) وشكراً لتفهمكم.\nإدارة وقف حسين مرفق"]
["الادريسي (B) شقة - 14","مفيض الرحمن خان",null,"عزيزنا المستأجر (مفيض الرحمن خان) نود إبلاغكم بوجود مستحقات متأخرة عليكم للوحدة المستأجرة في (الادريسي (B) شقة - 14) لذا نأمل سرعة السداد تجنباً لاتخاذ الإجراء القانوني مع أهمية ارسال إيصال التحويل على رقم الواتساب (966122121912) وشكراً لتفهمكم.\nإدارة وقف حسين مرفق"]
["الادريسي (B) شقة - 3 ","ميزان عبدالمتين",null,"عزيزنا المستأجر (ميزان عبدالمتين) نود إبلاغكم بوجود مستحقات متأخرة عليكم للوحدة المستأجرة في (الادريسي (B) شقة - 3 ) لذا نأمل سرعة السداد تجنباً لاتخاذ الإجراء القانوني مع أهمية ارسال إيصال التحويل على رقم الواتساب (966122121912) وشكراً لتفهمكم.\nإدارة وقف حسين مرفق"]
["الادريسي (A) شقة - 7 , شقة","يوسف محمود احمد حسين",null,"عزيزنا المستأجر (يوسف محمود احمد حسين) نود إبلاغكم بوجود مستحقات متأخرة عليكم للوحدة المستأجرة في (الادريسي (A) شقة - 7 , شقة) لذا نأمل سرعة السداد تجنباً لاتخاذ الإجراء القانوني مع أهمية ارسال إيصال التحويل على رقم الواتساب (966122121912) وشكراً لتفهمكم.\nإدارة وقف حسين مرفق"]
["بني مالك (14) شقة - 1","محمد محسن محمد بن طالب",null,"عزيزنا المستأجر (محمد محسن محمد بن طالب) نود إبلاغكم بوجود مستحقات متأخرة عليكم للوحدة المستأجرة في (بني مالك (14) شقة - 1) لذا نأمل سرعة السداد تجنباً لاتخاذ الإجراء القانوني مع أهمية ارسال إيصال التحويل على رقم الواتساب (966122121912) وشكراً لتفهمكم.\nإدارة وقف حسين مرفق"]
["بني مالك (14) شقة - 2","احمد ناجي احمد حمدان",null,"عزيزنا المستأجر (احمد ناجي احمد حمدان) نود إبلاغكم بوجود مستحقات متأخرة عليكم للوحدة المستأجرة في (بني مالك (14) شقة - 2) لذا نأمل سرعة السداد تجنباً لاتخاذ الإجراء القانوني مع أهمية ارسال إيصال التحويل على رقم الواتساب (966122121912) وشكراً لتفهمكم.\nإدارة وقف حسين مرفق"]
["بني مالك (14) شقة - 3","جلال غالب - بشر",null,"عزيزنا المستأجر (جلال غالب - بشر) نود إبلاغكم بوجود مستحقات متأخرة عليكم للوحدة المستأجرة في (بني مالك (14) شقة - 3) لذا نأمل سرعة السداد تجنباً لاتخاذ الإجراء القانوني مع أهمية ارسال إيصال التحويل على رقم الواتساب (966122121912) وشكراً لتفهمكم.\nإدارة وقف حسين مرفق"]
["بني مالك (14) شقة - 6 ","نادر صالح خالد الرفاعي",null,"عزيزنا المستأجر (نادر صالح خالد الرفاعي) نود إبلاغكم بوجود مستحقات متأخرة عليكم للوحدة المستأجرة في (بني مالك (14) شقة - 6 ) لذا نأمل سرعة السداد تجنباً لاتخاذ الإجراء القانوني مع أهمية ارسال إيصال التحويل على رقم الواتساب (966122121912) وشكراً لتفهمكم.\nإدارة وقف حسين مرفق"]
["بني مالك (14) شقة - 73 ","نعمان محمد احمد مرشد",null,"عزيزنا المستأجر (نعمان محمد احمد مرشد) نود إبلاغكم بوجود مستحقات متأخرة عليكم للوحدة المستأجرة في (بني مالك (14) شقة - 73 ) لذا نأمل سرعة السداد تجنباً لاتخاذ الإجراء القانوني مع أهمية ارسال إيصال التحويل على رقم الواتساب (966122121912) وشكراً لتفهمكم.\nإدارة وقف حسين مرفق"]
["بني مالك (14) شقة - 74 ","صالح حسن صالح الكثيري",null,"عزيزنا المستأجر (صالح حسن صالح الكثيري) نود إبلاغكم بوجود مستحقات متأخرة عليكم للوحدة المستأجرة في (بني مالك (14) شقة - 74 ) لذا نأمل سرعة السداد تجنباً لاتخاذ الإجراء القانوني مع أهمية ارسال إيصال التحويل على رقم الواتساب (966122121912) وشكراً لتفهمكم.\nإدارة وقف حسين مرفق"]
["بني مالك (14) شقة - 75- 76 ","عاطف شائع ابن عاطف الغبيشي",null,"عزيزنا المستأجر (عاطف شائع ابن عاطف الغبيشي) نود إبلاغكم بوجود مستحقات متأخرة عليكم للوحدة المستأجرة في (بني مالك (14) شقة - 75- 76 ) لذا نأمل سرعة السداد تجنباً لاتخاذ الإجراء القانوني مع أهمية ارسال إيصال التحويل على رقم الواتساب (966122121912) وشكراً لتفهمكم.\nإدارة وقف حسين مرفق"]
["بني مالك (15) شقة - 10 ","محمد علي محمد باسويد",null,"عزيزنا المستأجر (محمد علي محمد باسويد) نود إبلاغكم بوجود مستحقات متأخرة عليكم للوحدة المستأجرة في (بني مالك (15) شقة - 10 ) لذا نأمل سرعة السداد تجنباً لاتخاذ الإجراء القانوني مع أهمية ارسال إيصال التحويل على رقم الواتساب (966122121912) وشكراً لتفهمكم.\nإدارة وقف حسين مرفق"]
["بني مالك (15) شقة - 7","احمد سعيد عمر العمودي",null,"عزيزنا المستأجر (احمد سعيد عمر العمودي) نود إبلاغكم بوجود مستحقات متأخرة عليكم للوحدة المستأجرة في (بني مالك (15) شقة - 7) لذا نأمل سرعة السداد تجنباً لاتخاذ الإجراء القانوني مع أهمية ارسال إيصال التحويل على رقم الواتساب (966122121912) وشكراً لتفهمكم.\nإدارة وقف حسين مرفق"]
["بني مالك (15) شقة - 77 ","خالد بن احمد ابن عبدالله باوجيه",null,"عزيزنا المستأجر (خالد بن احمد ابن عبدالله باوجيه) نود إبلاغكم بوجود مستحقات متأخرة عليكم للوحدة المستأجرة في (بني مالك (15) شقة - 77 ) لذا نأمل سرعة السداد تجنباً لاتخاذ الإجراء القانوني مع أهمية ارسال إيصال التحويل على رقم الواتساب (966122121912) وشكراً لتفهمكم.\nإدارة وقف حسين مرفق"]
["بني مالك (15) شقة - 78","هاشم محسن يسلم بن طالب",null,"عزيزنا المستأجر (هاشم محسن يسلم بن طالب) نود إبلاغكم بوجود مستحقات متأخرة عليكم للوحدة المستأجرة في (بني مالك (15) شقة - 78) لذا نأمل سرعة السداد تجنباً لاتخاذ الإجراء القانوني مع أهمية ارسال إيصال التحويل على رقم الواتساب (966122121912) وشكراً لتفهمكم.\nإدارة وقف حسين مرفق"]
["بني مالك (15) شقة - 79 ","أحمد أنور كرامة غصان",null,"عزيزنا المستأجر (أحمد أنور كرامة غصان) نود إبلاغكم بوجود مستحقات متأخرة عليكم للوحدة المستأجرة في (بني مالك (15) شقة - 79 ) لذا نأمل سرعة السداد تجنباً لاتخاذ الإجراء القانوني مع أهمية ارسال إيصال التحويل على رقم الواتساب (966122121912) وشكراً لتفهمكم.\nإدارة وقف حسين مرفق"]
["بني مالك (15) شقة - 79","حسين كرامه مبارك بن سويد",null,"عزيزنا المستأجر (حسين كرامه مبارك بن سويد) نود إبلاغكم بوجود مستحقات متأخرة عليكم للوحدة المستأجرة في (بني مالك (15) شقة - 79) لذا نأمل سرعة السداد تجنباً لاتخاذ الإجراء القانوني مع أهمية ارسال إيصال التحويل على رقم الواتساب (966122121912) وشكراً لتفهمكم.\nإدارة وقف حسين مرفق"]
["بني مالك (15) شقة - 8","عبدالمجيد صالح علي بن مخاشن",null,"عزيزنا المستأجر (عبدالمجيد صالح علي بن مخاشن) نود إبلاغكم بوجود مستحقات متأخرة عليكم للوحدة المستأجرة في (بني مالك (15) شقة - 8) لذا نأمل سرعة السداد تجنباً لاتخاذ الإجراء القانوني مع أهمية ارسال إيصال التحويل على رقم الواتساب (966122121912) وشكراً لتفهمكم.\nإدارة وقف حسين مرفق"]
["بني مالك (15) شقة - 80 ","جيهان محسن - الكثيري",null,"عزيزنا المستأجر (جيهان محسن - الكثيري) نود إبلاغكم بوجود مستحقات متأخرة عليكم للوحدة المستأجرة في (بني مالك (15) شقة - 80 ) لذا نأمل سرعة السداد تجنباً لاتخاذ الإجراء القانوني مع أهمية ارسال إيصال التحويل على رقم الواتساب (966122121912) وشكراً لتفهمكم.\nإدارة وقف حسين مرفق"]
["بني مالك (15) شقة - 9 ","وليد غالب محمد بن بشر",null,"عزيزنا المستأجر (وليد غالب محمد بن بشر) نود إبلاغكم بوجود مستحقات متأخرة عليكم للوحدة المستأجرة في (بني مالك (15) شقة - 9 ) لذا نأمل سرعة السداد تجنباً لاتخاذ الإجراء القانوني مع أهمية ارسال إيصال التحويل على رقم الواتساب (966122121912) وشكراً لتفهمكم.\nإدارة وقف حسين مرفق"]
["بني مالك (16) شقة - 13 ","عبدالرحمن أحمد محمد الهدام",null,"عزيزنا المستأجر (عبدالرحمن أحمد محمد الهدام) نود إبلاغكم بوجود مستحقات متأخرة عليكم للوحدة المستأجرة في (بني مالك (16) شقة - 13 ) لذا نأمل سرعة السداد تجنباً لاتخاذ الإجراء القانوني مع أهمية ارسال إيصال التحويل على رقم الواتساب (966122121912) وشكراً لتفهمكم.\nإدارة وقف حسين مرفق"]
["بني مالك (16) شقة - 14 ","محمد علي - الشقاع",null,"عزيزنا المستأجر (محمد علي - الشقاع) نود إبلاغكم بوجود مستحقات متأخرة عليكم للوحدة المستأجرة في (بني مالك (16) شقة - 14 ) لذا نأمل سرعة السداد تجنباً لاتخاذ الإجراء القانوني مع أهمية ارسال إيصال التحويل على رقم الواتساب (966122121912) وشكراً لتفهمكم.\nإدارة وقف حسين مرفق"]
["بني مالك (16) شقة - 16 ","عبدالله غالب محمد بن بشر",null,"عزيزنا المستأجر (عبدالله غالب محمد بن بشر) نود إبلاغكم بوجود مستحقات متأخرة عليكم للوحدة المستأجرة في (بني مالك (16) شقة - 16 ) لذا نأمل سرعة السداد تجنباً لاتخاذ الإجراء القانوني مع أهمية ارسال إيصال التحويل على رقم الواتساب (966122121912) وشكراً لتفهمكم.\nإدارة وقف حسين مرفق"]
["بني مالك (16) شقة - 17 ","احمد محمد احمد علي حسين",null,"عزيزنا المستأجر (احمد محمد احمد علي حسين) نود إبلاغكم بوجود مستحقات متأخرة عليكم للوحدة المستأجرة في (بني مالك (16) شقة - 17 ) لذا نأمل سرعة السداد تجنباً لاتخاذ الإجراء القانوني مع أهمية ارسال إيصال التحويل على رقم الواتساب (966122121912) وشكراً لتفهمكم.\nإدارة وقف حسين مرفق"]
["بني مالك (16) شقة - 18","عبده علي حسن الحاج",null,{"$f":"\"عزيزنا المستأجر (\"&$B69&\") نود إبلاغكم بوجود مستحقات متأخرة عليكم للوحدة المستأجرة في (\"&$A69&\") لذا نأمل سرعة السداد تجنباً لاتخاذ الإجراء القانوني مع أهمية ارسال إيصال التحويل على رقم الواتساب (966122121912) وشكراً لتفهمكم.\nإدارة وقف حسين مرفق\"","v":"عزيزنا المستأجر (عبده علي حسن الحاج) نود إبلاغكم بوجود مستحقات متأخرة عليكم للوحدة المستأجرة في (بني مالك (16) شقة - 18) لذا نأمل سرعة السداد تجنباً لاتخاذ الإجراء القانوني مع أهمية ارسال إيصال التحويل على رقم الواتساب (966122121912) وشكراً لتفهمكم.\nإدارة وقف حسين مرفق"}]
["بني مالك (16) شقة - 82 ","منذر احمد سالم البطاطي",null,"عزيزنا المستأجر (منذر احمد سالم البطاطي) نود إبلاغكم بوجود مستحقات متأخرة عليكم للوحدة المستأجرة في (بني مالك (16) شقة - 82 ) لذا نأمل سرعة السداد تجنباً لاتخاذ الإجراء القانوني مع أهمية ارسال إيصال التحويل على رقم الواتساب (966122121912) وشكراً لتفهمكم.\nإدارة وقف حسين مرفق"]
["بني مالك (16) شقة - 83 ","عبدالرحمن صالح عبدالله الجفري",null,"عزيزنا المستأجر (عبدالرحمن صالح عبدالله الجفري) نود إبلاغكم بوجود مستحقات متأخرة عليكم للوحدة المستأجرة في (بني مالك (16) شقة - 83 ) لذا نأمل سرعة السداد تجنباً لاتخاذ الإجراء القانوني مع أهمية ارسال إيصال التحويل على رقم الواتساب (966122121912) وشكراً لتفهمكم.\nإدارة وقف حسين مرفق"]
["بني مالك (16) شقة - 84 ","سعيد - - ناصر",null,"عزيزنا المستأجر (سعيد - - ناصر) نود إبلاغكم بوجود مستحقات متأخرة عليكم للوحدة المستأجرة في (بني مالك (16) شقة - 84 ) لذا نأمل سرعة السداد تجنباً لاتخاذ الإجراء القانوني مع أهمية ارسال إيصال التحويل على رقم الواتساب (966122121912) وشكراً لتفهمكم.\nإدارة وقف حسين مرفق"]
["بني مالك (17) شقة - 19 ","احمد زيلعي احمد ابودريب",null,"عزيزنا المستأجر (احمد زيلعي احمد ابودريب) نود إبلاغكم بوجود مستحقات متأخرة عليكم للوحدة المستأجرة في (بني مالك (17) شقة - 19 ) لذا نأمل سرعة السداد تجنباً لاتخاذ الإجراء القانوني مع أهمية ارسال إيصال التحويل على رقم الواتساب (966122121912) وشكراً لتفهمكم.\nإدارة وقف حسين مرفق"]
["بني مالك (17) شقة - 20 ","نادر صالح خالد الرفاعي",null,"عزيزنا المستأجر (نادر صالح خالد الرفاعي) نود إبلاغكم بوجود مستحقات متأخرة عليكم للوحدة المستأجرة في (بني مالك (17) شقة - 20 ) لذا نأمل سرعة السداد تجنباً لاتخاذ الإجراء القانوني مع أهمية ارسال إيصال التحويل على رقم الواتساب (966122121912) وشكراً لتفهمكم.\nإدارة وقف حسين مرفق"]
["بني مالك (17) شقة - 21 ","غالب محمد عبدالله بن بشر",null,"عزيزنا المستأجر (غالب محمد عبدالله بن بشر) نود إبلاغكم بوجود مستحقات متأخرة عليكم للوحدة المستأجرة في (بني مالك (17) شقة - 21 ) لذا نأمل سرعة السداد تجنباً لاتخاذ الإجراء القانوني مع أهمية ارسال إيصال التحويل على رقم الواتساب (966122121912) وشكراً لتفهمكم.\nإدارة وقف حسين مرفق"]
["بني مالك (17) شقة - 85 ","عامر محمد صالح النهدي",null,"عزيزنا المستأجر (عامر محمد صالح النهدي) نود إبلاغكم بوجود مستحقات متأخرة عليكم للوحدة المستأجرة في (بني مالك (17) شقة - 85 ) لذا نأمل سرعة السداد تجنباً لاتخاذ الإجراء القانوني مع أهمية ارسال إيصال التحويل على رقم الواتساب (966122121912) وشكراً لتفهمكم.\nإدارة وقف حسين مرفق"]
["بني مالك (17) شقة - 86 ","علي سعيد علي المسيلي",null,"عزيزنا المستأجر (علي سعيد علي المسيلي) نود إبلاغكم بوجود مستحقات متأخرة عليكم للوحدة المستأجرة في (بني مالك (17) شقة - 86 ) لذا نأمل سرعة السداد تجنباً لاتخاذ الإجراء القانوني مع أهمية ارسال إيصال التحويل على رقم الواتساب (966122121912) وشكراً لتفهمكم.\nإدارة وقف حسين مرفق"]
["بني مالك (17) شقة - 87 ","خضر سعيد مساعد الجحدلي",null,"عزيزنا المستأجر (خضر سعيد مساعد الجحدلي) نود إبلاغكم بوجود مستحقات متأخرة عليكم للوحدة المستأجرة في (بني مالك (17) شقة - 87 ) لذا نأمل سرعة السداد تجنباً لاتخاذ الإجراء القانوني مع أهمية ارسال إيصال التحويل على رقم الواتساب (966122121912) وشكراً لتفهمكم.\nإدارة وقف حسين مرفق"]
["بني مالك (17) شقة - 88 ","ابراهيم مبارك كرامه بن حاتم",null,"عزيزنا المستأجر (ابراهيم مبارك كرامه بن حاتم) نود إبلاغكم بوجود مستحقات متأخرة عليكم للوحدة المستأجرة في (بني مالك (17) شقة - 88 ) لذا نأمل سرعة السداد تجنباً لاتخاذ الإجراء القانوني مع أهمية ارسال إيصال التحويل على رقم الواتساب (966122121912) وشكراً لتفهمكم.\nإدارة وقف حسين مرفق"]
["بني مالك (18) شقة - 25 ","محمد سالم احمد باصواب",null,"عزيزنا المستأجر (محمد سالم احمد باصواب) نود إبلاغكم بوجود مستحقات متأخرة عليكم للوحدة المستأجرة في (بني مالك (18) شقة - 25 ) لذا نأمل سرعة السداد تجنباً لاتخاذ الإجراء القانوني مع أهمية ارسال إيصال التحويل على رقم الواتساب (966122121912) وشكراً لتفهمكم.\nإدارة وقف حسين مرفق"]
["بني مالك (18) شقة - 26 ","ناديه بنت احمد ابن محمد باقيس",null,"عزيزنا المستأجر (ناديه بنت احمد ابن محمد باقيس) نود إبلاغكم بوجود مستحقات متأخرة عليكم للوحدة المستأجرة في (بني مالك (18) شقة - 26 ) لذا نأمل سرعة السداد تجنباً لاتخاذ الإجراء القانوني مع أهمية ارسال إيصال التحويل على رقم الواتساب (966122121912) وشكراً لتفهمكم.\nإدارة وقف حسين مرفق"]
["بني مالك (18) شقة - 27 ","محمد سعيد عبود قندوس",null,"عزيزنا المستأجر (محمد سعيد عبود قندوس) نود إبلاغكم بوجود مستحقات متأخرة عليكم للوحدة المستأجرة في (بني مالك (18) شقة - 27 ) لذا نأمل سرعة السداد تجنباً لاتخاذ الإجراء القانوني مع أهمية ارسال إيصال التحويل على رقم الواتساب (966122121912) وشكراً لتفهمكم.\nإدارة وقف حسين مرفق"]
["بني مالك (18) شقة - 28 ","صالح سعيد عبدالله بن بشر",null,"عزيزنا المستأجر (صالح سعيد عبدالله بن بشر) نود إبلاغكم بوجود مستحقات متأخرة عليكم للوحدة المستأجرة في (بني مالك (18) شقة - 28 ) لذا نأمل سرعة السداد تجنباً لاتخاذ الإجراء القانوني مع أهمية ارسال إيصال التحويل على رقم الواتساب (966122121912) وشكراً لتفهمكم.\nإدارة وقف حسين مرفق"]
["بني مالك (18) شقة - 29 ","محمد عبدالله احمد باقيس",null,"عزيزنا المستأجر (محمد عبدالله احمد باقيس) نود إبلاغكم بوجود مستحقات متأخرة عليكم للوحدة المستأجرة في (بني مالك (18) شقة - 29 ) لذا نأمل سرعة السداد تجنباً لاتخاذ الإجراء القانوني مع أهمية ارسال إيصال التحويل على رقم الواتساب (966122121912) وشكراً لتفهمكم.\nإدارة وقف حسين مرفق"]
["بني مالك (18) شقة - 30 ","ياسر صالح حمود النباشي",null,"عزيزنا المستأجر (ياسر صالح حمود النباشي) نود إبلاغكم بوجود مستحقات متأخرة عليكم للوحدة المستأجرة في (بني مالك (18) شقة - 30 ) لذا نأمل سرعة السداد تجنباً لاتخاذ الإجراء القانوني مع أهمية ارسال إيصال التحويل على رقم الواتساب (966122121912) وشكراً لتفهمكم.\nإدارة وقف حسين مرفق"]
["بني مالك (18) شقة - 89 ","مريم محمد الكاف",null,"عزيزنا المستأجر (مريم محمد الكاف) نود إبلاغكم بوجود مستحقات متأخرة عليكم للوحدة المستأجرة في (بني مالك (18) شقة - 89 ) لذا نأمل سرعة السداد تجنباً لاتخاذ الإجراء القانوني مع أهمية ارسال إيصال التحويل على رقم الواتساب (966122121912) وشكراً لتفهمكم.\nإدارة وقف حسين مرفق"]
["بني مالك (18) شقة - 91 ","طارق ابوبكر عبدالله بامعروف",null,"عزيزنا المستأجر (طارق ابوبكر عبدالله بامعروف) نود إبلاغكم بوجود مستحقات متأخرة عليكم للوحدة المستأجرة في (بني مالك (18) شقة - 91 ) لذا نأمل سرعة السداد تجنباً لاتخاذ الإجراء القانوني مع أهمية ارسال إيصال التحويل على رقم الواتساب (966122121912) وشكراً لتفهمكم.\nإدارة وقف حسين مرفق"]
["بني مالك (18) شقة - 92 ","ماجد مبارك كرامه بن حاتم",null,"عزيزنا المستأجر (ماجد مبارك كرامه بن حاتم) نود إبلاغكم بوجود مستحقات متأخرة عليكم للوحدة المستأجرة في (بني مالك (18) شقة - 92 ) لذا نأمل سرعة السداد تجنباً لاتخاذ الإجراء القانوني مع أهمية ارسال إيصال التحويل على رقم الواتساب (966122121912) وشكراً لتفهمكم.\nإدارة وقف حسين مرفق"]
["بني مالك (19) شقة - 31 ","عامر احمد ثابت النهدي",null,"عزيزنا المستأجر (عامر احمد ثابت النهدي) نود إبلاغكم بوجود مستحقات متأخرة عليكم للوحدة المستأجرة في (بني مالك (19) شقة - 31 ) لذا نأمل سرعة السداد تجنباً لاتخاذ الإجراء القانوني مع أهمية ارسال إيصال التحويل على رقم الواتساب (966122121912) وشكراً لتفهمكم.\nإدارة وقف حسين مرفق"]
["بني مالك (19) شقة - 32 ","عثمان حسن سالم باسليمان",null,"عزيزنا المستأجر (عثمان حسن سالم باسليمان) نود إبلاغكم بوجود مستحقات متأخرة عليكم للوحدة المستأجرة في (بني مالك (19) شقة - 32 ) لذا نأمل سرعة السداد تجنباً لاتخاذ الإجراء القانوني مع أهمية ارسال إيصال التحويل على رقم الواتساب (966122121912) وشكراً لتفهمكم.\nإدارة وقف حسين مرفق"]
["بني مالك (19) شقة - 33 ","عبدالرحمن مبخوت احمد بن رباع",null,"عزيزنا المستأجر (عبدالرحمن مبخوت احمد بن رباع) نود إبلاغكم بوجود مستحقات متأخرة عليكم للوحدة المستأجرة في (بني مالك (19) شقة - 33 ) لذا نأمل سرعة السداد تجنباً لاتخاذ الإجراء القانوني مع أهمية ارسال إيصال التحويل على رقم الواتساب (966122121912) وشكراً لتفهمكم.\nإدارة وقف حسين مرفق"]
["بني مالك (19) شقة - 34 ","اشرف ابراهيم يحيى الشريف",null,"عزيزنا المستأجر (اشرف ابراهيم يحيى الشريف) نود إبلاغكم بوجود مستحقات متأخرة عليكم للوحدة المستأجرة في (بني مالك (19) شقة - 34 ) لذا نأمل سرعة السداد تجنباً لاتخاذ الإجراء القانوني مع أهمية ارسال إيصال التحويل على رقم الواتساب (966122121912) وشكراً لتفهمكم.\nإدارة وقف حسين مرفق"]
["بني مالك (19) شقة - 35 ","عبدالله حسن محمد الكاف",null,"عزيزنا المستأجر (عبدالله حسن محمد الكاف) نود إبلاغكم بوجود مستحقات متأخرة عليكم للوحدة المستأجرة في (بني مالك (19) شقة - 35 ) لذا نأمل سرعة السداد تجنباً لاتخاذ الإجراء القانوني مع أهمية ارسال إيصال التحويل على رقم الواتساب (966122121912) وشكراً لتفهمكم.\nإدارة وقف حسين مرفق"]
["بني مالك (19) شقة - 36 ","عبدالرحمن سالم - بامنيف",null,"عزيزنا المستأجر (عبدالرحمن سالم - بامنيف) نود إبلاغكم بوجود مستحقات متأخرة عليكم للوحدة المستأجرة في (بني مالك (19) شقة - 36 ) لذا نأمل سرعة السداد تجنباً لاتخاذ الإجراء القانوني مع أهمية ارسال إيصال التحويل على رقم الواتساب (966122121912) وشكراً لتفهمكم.\nإدارة وقف حسين مرفق"]
["بني مالك (19) شقة - 93  ","عادل احمد محمد العمودي",null,"عزيزنا المستأجر (عادل احمد محمد العمودي) نود إبلاغكم بوجود مستحقات متأخرة عليكم للوحدة المستأجرة في (بني مالك (19) شقة - 93  ) لذا نأمل سرعة السداد تجنباً لاتخاذ الإجراء القانوني مع أهمية ارسال إيصال التحويل على رقم الواتساب (966122121912) وشكراً لتفهمكم.\nإدارة وقف حسين مرفق"]
["بني مالك (19) شقة - 95 ","فاطمه حسن مدوي",null,"عزيزنا المستأجر (فاطمه حسن مدوي) نود إبلاغكم بوجود مستحقات متأخرة عليكم للوحدة المستأجرة في (بني مالك (19) شقة - 95 ) لذا نأمل سرعة السداد تجنباً لاتخاذ الإجراء القانوني مع أهمية ارسال إيصال التحويل على رقم الواتساب (966122121912) وشكراً لتفهمكم.\nإدارة وقف حسين مرفق"]
["بني مالك (19) شقة - 96 ","ريان محمد ابو طالب",null,"عزيزنا المستأجر (ريان محمد ابو طالب) نود إبلاغكم بوجود مستحقات متأخرة عليكم للوحدة المستأجرة في (بني مالك (19) شقة - 96 ) لذا نأمل سرعة السداد تجنباً لاتخاذ الإجراء القانوني مع أهمية ارسال إيصال التحويل على رقم الواتساب (966122121912) وشكراً لتفهمكم.\nإدارة وقف حسين مرفق"]
["بني مالك (20) شقة - 100 ","محمد عبدالله سعيد بادحدوح",null,"عزيزنا المستأجر (محمد عبدالله سعيد بادحدوح) نود إبلاغكم بوجود مستحقات متأخرة عليكم للوحدة المستأجرة في (بني مالك (20) شقة - 100 ) لذا نأمل سرعة السداد تجنباً لاتخاذ الإجراء القانوني مع أهمية ارسال إيصال التحويل على رقم الواتساب (966122121912) وشكراً لتفهمكم.\nإدارة وقف حسين مرفق"]
["بني مالك (20) شقة - 37 ","مبارك عبد الرزاق محمد باديان",null,"عزيزنا المستأجر (مبارك عبد الرزاق محمد باديان) نود إبلاغكم بوجود مستحقات متأخرة عليكم للوحدة المستأجرة في (بني مالك (20) شقة - 37 ) لذا نأمل سرعة السداد تجنباً لاتخاذ الإجراء القانوني مع أهمية ارسال إيصال التحويل على رقم الواتساب (966122121912) وشكراً لتفهمكم.\nإدارة وقف حسين مرفق"]
["بني مالك (20) شقة - 38 ","مبارك عبدالرزاق محمد باديان",null,"عزيزنا المستأجر (مبارك عبدالرزاق محمد باديان) نود إبلاغكم بوجود مستحقات متأخرة عليكم للوحدة المستأجرة في (بني مالك (20) شقة - 38 ) لذا نأمل سرعة السداد تجنباً لاتخاذ الإجراء القانوني مع أهمية ارسال إيصال التحويل على رقم الواتساب (966122121912) وشكراً لتفهمكم.\nإدارة وقف حسين مرفق"]
["بني مالك (20) شقة - 39 ","حسين علي محمد النهدي",null,"عزيزنا المستأجر (حسين علي محمد النهدي) نود إبلاغكم بوجود مستحقات متأخرة عليكم للوحدة المستأجرة في (بني مالك (20) شقة - 39 ) لذا نأمل سرعة السداد تجنباً لاتخاذ الإجراء القانوني مع أهمية ارسال إيصال التحويل على رقم الواتساب (966122121912) وشكراً لتفهمكم.\nإدارة وقف حسين مرفق"]
["بني مالك (20) شقة - 40 ","عبدالرحمن مبخوت احمد بن رباع",null,"عزيزنا المستأجر (عبدالرحمن مبخوت احمد بن رباع) نود إبلاغكم بوجود مستحقات متأخرة عليكم للوحدة المستأجرة في (بني مالك (20) شقة - 40 ) لذا نأمل سرعة السداد تجنباً لاتخاذ الإجراء القانوني مع أهمية ارسال إيصال التحويل على رقم الواتساب (966122121912) وشكراً لتفهمكم.\nإدارة وقف حسين مرفق"]
["بني مالك (20) شقة - 97 ","حسين عبدالرحمن علي بازرعة",null,"عزيزنا المستأجر (حسين عبدالرحمن علي بازرعة) نود إبلاغكم بوجود مستحقات متأخرة عليكم للوحدة المستأجرة في (بني مالك (20) شقة - 97 ) لذا نأمل سرعة السداد تجنباً لاتخاذ الإجراء القانوني مع أهمية ارسال إيصال التحويل على رقم الواتساب (966122121912) وشكراً لتفهمكم.\nإدارة وقف حسين مرفق"]
["بني مالك (20) شقة - 98 ","محمد ابوبكر محمد باناجه",null,"عزيزنا المستأجر (محمد ابوبكر محمد باناجه) نود إبلاغكم بوجود مستحقات متأخرة عليكم للوحدة المستأجرة في (بني مالك (20) شقة - 98 ) لذا نأمل سرعة السداد تجنباً لاتخاذ الإجراء القانوني مع أهمية ارسال إيصال التحويل على رقم الواتساب (966122121912) وشكراً لتفهمكم.\nإدارة وقف حسين مرفق"]
["بني مالك (20) شقة - 99 ","ابراهيم عبدالله سعيد بادحدوح",null,"عزيزنا المستأجر (ابراهيم عبدالله سعيد بادحدوح) نود إبلاغكم بوجود مستحقات متأخرة عليكم للوحدة المستأجرة في (بني مالك (20) شقة - 99 ) لذا نأمل سرعة السداد تجنباً لاتخاذ الإجراء القانوني مع أهمية ارسال إيصال التحويل على رقم الواتساب (966122121912) وشكراً لتفهمكم.\nإدارة وقف حسين مرفق"]
["بني مالك (21) شقة - 101 ","علي أحمد إلياس",null,"عزيزنا المستأجر (علي أحمد إلياس) نود إبلاغكم بوجود مستحقات متأخرة عليكم للوحدة المستأجرة في (بني مالك (21) شقة - 101 ) لذا نأمل سرعة السداد تجنباً لاتخاذ الإجراء القانوني مع أهمية ارسال إيصال التحويل على رقم الواتساب (966122121912) وشكراً لتفهمكم.\nإدارة وقف حسين مرفق"]
["بني مالك (21) شقة - 103 ","محمد عوض سعيد باذيل",null,"عزيزنا المستأجر (محمد عوض سعيد باذيل) نود إبلاغكم بوجود مستحقات متأخرة عليكم للوحدة المستأجرة في (بني مالك (21) شقة - 103 ) لذا نأمل سرعة السداد تجنباً لاتخاذ الإجراء القانوني مع أهمية ارسال إيصال التحويل على رقم الواتساب (966122121912) وشكراً لتفهمكم.\nإدارة وقف حسين مرفق"]
["بني مالك (21) شقة - 43 ","حسين احمد بن محفوظ",null,"عزيزنا المستأجر (حسين احمد بن محفوظ) نود إبلاغكم بوجود مستحقات متأخرة عليكم للوحدة المستأجرة في (بني مالك (21) شقة - 43 ) لذا نأمل سرعة السداد تجنباً لاتخاذ الإجراء القانوني مع أهمية ارسال إيصال التحويل على رقم الواتساب (966122121912) وشكراً لتفهمكم.\nإدارة وقف حسين مرفق"]
["بني مالك (21) شقة - 44 ","محمد جمال محمد شماخ",null,"عزيزنا المستأجر (محمد جمال محمد شماخ) نود إبلاغكم بوجود مستحقات متأخرة عليكم للوحدة المستأجرة في (بني مالك (21) شقة - 44 ) لذا نأمل سرعة السداد تجنباً لاتخاذ الإجراء القانوني مع أهمية ارسال إيصال التحويل على رقم الواتساب (966122121912) وشكراً لتفهمكم.\nإدارة وقف حسين مرفق"]
["بني مالك (21) شقة - 46 ","حسن علي محمد",null,"عزيزنا المستأجر (حسن علي محمد) نود إبلاغكم بوجود مستحقات متأخرة عليكم للوحدة المستأجرة في (بني مالك (21) شقة - 46 ) لذا نأمل سرعة السداد تجنباً لاتخاذ الإجراء القانوني مع أهمية ارسال إيصال التحويل على رقم الواتساب (966122121912) وشكراً لتفهمكم.\nإدارة وقف حسين مرفق"]
["بني مالك (21) شقة - 47 ","عصام علي عبدالله بن علي جابر",null,"عزيزنا المستأجر (عصام علي عبدالله بن علي جابر) نود إبلاغكم بوجود مستحقات متأخرة عليكم للوحدة المستأجرة في (بني مالك (21) شقة - 47 ) لذا نأمل سرعة السداد تجنباً لاتخاذ الإجراء القانوني مع أهمية ارسال إيصال التحويل على رقم الواتساب (966122121912) وشكراً لتفهمكم.\nإدارة وقف حسين مرفق"]
["بني مالك (21) شقة - 48 ","عمر سعيد علي بادغيش",null,"عزيزنا المستأجر (عمر سعيد علي بادغيش) نود إبلاغكم بوجود مستحقات متأخرة عليكم للوحدة المستأجرة في (بني مالك (21) شقة - 48 ) لذا نأمل سرعة السداد تجنباً لاتخاذ الإجراء القانوني مع أهمية ارسال إيصال التحويل على رقم الواتساب (966122121912) وشكراً لتفهمكم.\nإدارة وقف حسين مرفق"]
["بني مالك (22) شقة - 105 ","ربيع أحمد محمد البكري",null,"عزيزنا المستأجر (ربيع أحمد محمد البكري) نود إبلاغكم بوجود مستحقات متأخرة عليكم للوحدة المستأجرة في (بني مالك (22) شقة - 105 ) لذا نأمل سرعة السداد تجنباً لاتخاذ الإجراء القانوني مع أهمية ارسال إيصال التحويل على رقم الواتساب (966122121912) وشكراً لتفهمكم.\nإدارة وقف حسين مرفق"]
["بني مالك (22) شقة - 107 ","ماجد حسن احمد البيتي",null,"عزيزنا المستأجر (ماجد حسن احمد البيتي) نود إبلاغكم بوجود مستحقات متأخرة عليكم للوحدة المستأجرة في (بني مالك (22) شقة - 107 ) لذا نأمل سرعة السداد تجنباً لاتخاذ الإجراء القانوني مع أهمية ارسال إيصال التحويل على رقم الواتساب (966122121912) وشكراً لتفهمكم.\nإدارة وقف حسين مرفق"]
["بني مالك (22) شقة - 108","جميل عبدربه صالح القانصي",null,"عزيزنا المستأجر (جميل عبدربه صالح القانصي) نود إبلاغكم بوجود مستحقات متأخرة عليكم للوحدة المستأجرة في (بني مالك (22) شقة - 108) لذا نأمل سرعة السداد تجنباً لاتخاذ الإجراء القانوني مع أهمية ارسال إيصال التحويل على رقم الواتساب (966122121912) وشكراً لتفهمكم.\nإدارة وقف حسين مرفق"]
["بني مالك (22) شقة - 49 ","عمر علوي عبدالله البيتي",null,"عزيزنا المستأجر (عمر علوي عبدالله البيتي) نود إبلاغكم بوجود مستحقات متأخرة عليكم للوحدة المستأجرة في (بني مالك (22) شقة - 49 ) لذا نأمل سرعة السداد تجنباً لاتخاذ الإجراء القانوني مع أهمية ارسال إيصال التحويل على رقم الواتساب (966122121912) وشكراً لتفهمكم.\nإدارة وقف حسين مرفق"]
["بني مالك (22) شقة - 50 ","وهاب محمد اشرف عبدالغني",null,"عزيزنا المستأجر (وهاب محمد اشرف عبدالغني) نود إبلاغكم بوجود مستحقات متأخرة عليكم للوحدة المستأجرة في (بني مالك (22) شقة - 50 ) لذا نأمل سرعة السداد تجنباً لاتخاذ الإجراء القانوني مع أهمية ارسال إيصال التحويل على رقم الواتساب (966122121912) وشكراً لتفهمكم.\nإدارة وقف حسين مرفق"]
["بني مالك (22) شقة - 51 ","خالد حامد  الطلحي",null,"عزيزنا المستأجر (خالد حامد  الطلحي) نود إبلاغكم بوجود مستحقات متأخرة عليكم للوحدة المستأجرة في (بني مالك (22) شقة - 51 ) لذا نأمل سرعة السداد تجنباً لاتخاذ الإجراء القانوني مع أهمية ارسال إيصال التحويل على رقم الواتساب (966122121912) وشكراً لتفهمكم.\nإدارة وقف حسين مرفق"]
["بني مالك (22) شقة - 52 ","ياسين احمد سعد القبطاني",null,"عزيزنا المستأجر (ياسين احمد سعد القبطاني) نود إبلاغكم بوجود مستحقات متأخرة عليكم للوحدة المستأجرة في (بني مالك (22) شقة - 52 ) لذا نأمل سرعة السداد تجنباً لاتخاذ الإجراء القانوني مع أهمية ارسال إيصال التحويل على رقم الواتساب (966122121912) وشكراً لتفهمكم.\nإدارة وقف حسين مرفق"]
["بني مالك (22) شقة - 54 ","سالم محمد عقيل علي",null,"عزيزنا المستأجر (سالم محمد عقيل علي) نود إبلاغكم بوجود مستحقات متأخرة عليكم للوحدة المستأجرة في (بني مالك (22) شقة - 54 ) لذا نأمل سرعة السداد تجنباً لاتخاذ الإجراء القانوني مع أهمية ارسال إيصال التحويل على رقم الواتساب (966122121912) وشكراً لتفهمكم.\nإدارة وقف حسين مرفق"]
["بني مالك (23) شقة - 109- 110 ","محمد عبدالله زهير القميشي",null,"عزيزنا المستأجر (محمد عبدالله زهير القميشي) نود إبلاغكم بوجود مستحقات متأخرة عليكم للوحدة المستأجرة في (بني مالك (23) شقة - 109- 110 ) لذا نأمل سرعة السداد تجنباً لاتخاذ الإجراء القانوني مع أهمية ارسال إيصال التحويل على رقم الواتساب (966122121912) وشكراً لتفهمكم.\nإدارة وقف حسين مرفق"]
["بني مالك (23) شقة - 111 ","فوزان حسين بازرعه",null,"عزيزنا المستأجر (فوزان حسين بازرعه) نود إبلاغكم بوجود مستحقات متأخرة عليكم للوحدة المستأجرة في (بني مالك (23) شقة - 111 ) لذا نأمل سرعة السداد تجنباً لاتخاذ الإجراء القانوني مع أهمية ارسال إيصال التحويل على رقم الواتساب (966122121912) وشكراً لتفهمكم.\nإدارة وقف حسين مرفق"]
["بني مالك (23) شقة - 112 ","محمد عبدالعزيز عبدالله نعمان",null,"عزيزنا المستأجر (محمد عبدالعزيز عبدالله نعمان) نود إبلاغكم بوجود مستحقات متأخرة عليكم للوحدة المستأجرة في (بني مالك (23) شقة - 112 ) لذا نأمل سرعة السداد تجنباً لاتخاذ الإجراء القانوني مع أهمية ارسال إيصال التحويل على رقم الواتساب (966122121912) وشكراً لتفهمكم.\nإدارة وقف حسين مرفق"]
["بني مالك (23) شقة - 55 ","ناظم عبدالله الكثيري",null,"عزيزنا المستأجر (ناظم عبدالله الكثيري) نود إبلاغكم بوجود مستحقات متأخرة عليكم للوحدة المستأجرة في (بني مالك (23) شقة - 55 ) لذا نأمل سرعة السداد تجنباً لاتخاذ الإجراء القانوني مع أهمية ارسال إيصال التحويل على رقم الواتساب (966122121912) وشكراً لتفهمكم.\nإدارة وقف حسين مرفق"]
["بني مالك (23) شقة - 56 ","احمد شريف طه علي الحداد",null,"عزيزنا المستأجر (احمد شريف طه علي الحداد) نود إبلاغكم بوجود مستحقات متأخرة عليكم للوحدة المستأجرة في (بني مالك (23) شقة - 56 ) لذا نأمل سرعة السداد تجنباً لاتخاذ الإجراء القانوني مع أهمية ارسال إيصال التحويل على رقم الواتساب (966122121912) وشكراً لتفهمكم.\nإدارة وقف حسين مرفق"]
["بني مالك (23) شقة - 57 ","محمد عبدالقادر علي الحوثري",null,"عزيزنا المستأجر (محمد عبدالقادر علي الحوثري) نود إبلاغكم بوجود مستحقات متأخرة عليكم للوحدة المستأجرة في (بني مالك (23) شقة - 57 ) لذا نأمل سرعة السداد تجنباً لاتخاذ الإجراء القانوني مع أهمية ارسال إيصال التحويل على رقم الواتساب (966122121912) وشكراً لتفهمكم.\nإدارة وقف حسين مرفق"]
["بني مالك (23) شقة - 58 ","محمد علي احمد باحسين",null,"عزيزنا المستأجر (محمد علي احمد باحسين) نود إبلاغكم بوجود مستحقات متأخرة عليكم للوحدة المستأجرة في (بني مالك (23) شقة - 58 ) لذا نأمل سرعة السداد تجنباً لاتخاذ الإجراء القانوني مع أهمية ارسال إيصال التحويل على رقم الواتساب (966122121912) وشكراً لتفهمكم.\nإدارة وقف حسين مرفق"]
["بني مالك (23) شقة - 59 ","عبدالعزيز جبران صالح السعدي",null,"عزيزنا المستأجر (عبدالعزيز جبران صالح السعدي) نود إبلاغكم بوجود مستحقات متأخرة عليكم للوحدة المستأجرة في (بني مالك (23) شقة - 59 ) لذا نأمل سرعة السداد تجنباً لاتخاذ الإجراء القانوني مع أهمية ارسال إيصال التحويل على رقم الواتساب (966122121912) وشكراً لتفهمكم.\nإدارة وقف حسين مرفق"]
["بني مالك (23) شقة - 60","حسين علي سالم سعيد",null,"عزيزنا المستأجر (حسين علي سالم سعيد) نود إبلاغكم بوجود مستحقات متأخرة عليكم للوحدة المستأجرة في (بني مالك (23) شقة - 60) لذا نأمل سرعة السداد تجنباً لاتخاذ الإجراء القانوني مع أهمية ارسال إيصال التحويل على رقم الواتساب (966122121912) وشكراً لتفهمكم.\nإدارة وقف حسين مرفق"]
["بني مالك (24) شقة - 113 ","علي بن حسن بن حسين باعقيل",null,"عزيزنا المستأجر (علي بن حسن بن حسين باعقيل) نود إبلاغكم بوجود مستحقات متأخرة عليكم للوحدة المستأجرة في (بني مالك (24) شقة - 113 ) لذا نأمل سرعة السداد تجنباً لاتخاذ الإجراء القانوني مع أهمية ارسال إيصال التحويل على رقم الواتساب (966122121912) وشكراً لتفهمكم.\nإدارة وقف حسين مرفق"]
["بني مالك (24) شقة - 114 ","عبدالله ابوبكر عبالله العيدروس",null,"عزيزنا المستأجر (عبدالله ابوبكر عبالله العيدروس) نود إبلاغكم بوجود مستحقات متأخرة عليكم للوحدة المستأجرة في (بني مالك (24) شقة - 114 ) لذا نأمل سرعة السداد تجنباً لاتخاذ الإجراء القانوني مع أهمية ارسال إيصال التحويل على رقم الواتساب (966122121912) وشكراً لتفهمكم.\nإدارة وقف حسين مرفق"]
["بني مالك (24) شقة - 115 ","عبدالله ابوبكر عبالله العيدروس",null,"عزيزنا المستأجر (عبدالله ابوبكر عبالله العيدروس) نود إبلاغكم بوجود مستحقات متأخرة عليكم للوحدة المستأجرة في (بني مالك (24) شقة - 115 ) لذا نأمل سرعة السداد تجنباً لاتخاذ الإجراء القانوني مع أهمية ارسال إيصال التحويل على رقم الواتساب (966122121912) وشكراً لتفهمكم.\nإدارة وقف حسين مرفق"]
["بني مالك (24) شقة - 116 ","نعمان محمد احمد مرشد",null,{"$f":"\"عزيزنا المستأجر (\"&$B133&\") نود إبلاغكم بوجود مستحقات متأخرة عليكم للوحدة المستأجرة في (\"&$A133&\") لذا نأمل سرعة السداد تجنباً لاتخاذ الإجراء القانوني مع أهمية ارسال إيصال التحويل على رقم الواتساب (966122121912) وشكراً لتفهمكم.\nإدارة وقف حسين مرفق\"","v":"عزيزنا المستأجر (نعمان محمد احمد مرشد) نود إبلاغكم بوجود مستحقات متأخرة عليكم للوحدة المستأجرة في (بني مالك (24) شقة - 116 ) لذا نأمل سرعة السداد تجنباً لاتخاذ الإجراء القانوني مع أهمية ارسال إيصال التحويل على رقم الواتساب (966122121912) وشكراً لتفهمكم.\nإدارة وقف حسين مرفق"}]
["بني مالك (24) شقة - 61 ","عمر سالم جابر",null,"عزيزنا المستأجر (عمر سالم جابر) نود إبلاغكم بوجود مستحقات متأخرة عليكم للوحدة المستأجرة في (بني مالك (24) شقة - 61 ) لذا نأمل سرعة السداد تجنباً لاتخاذ الإجراء القانوني مع أهمية ارسال إيصال التحويل على رقم الواتساب (966122121912) وشكراً لتفهمكم.\nإدارة وقف حسين مرفق"]
["بني مالك (24) شقة - 62 ","سالم حسين سالم حفيظ",null,"عزيزنا المستأجر (سالم حسين سالم حفيظ) نود إبلاغكم بوجود مستحقات متأخرة عليكم للوحدة المستأجرة في (بني مالك (24) شقة - 62 ) لذا نأمل سرعة السداد تجنباً لاتخاذ الإجراء القانوني مع أهمية ارسال إيصال التحويل على رقم الواتساب (966122121912) وشكراً لتفهمكم.\nإدارة وقف حسين مرفق"]
["بني مالك (24) شقة - 63 ","ناصر حسن احمد باصرة",null,"عزيزنا المستأجر (ناصر حسن احمد باصرة) نود إبلاغكم بوجود مستحقات متأخرة عليكم للوحدة المستأجرة في (بني مالك (24) شقة - 63 ) لذا نأمل سرعة السداد تجنباً لاتخاذ الإجراء القانوني مع أهمية ارسال إيصال التحويل على رقم الواتساب (966122121912) وشكراً لتفهمكم.\nإدارة وقف حسين مرفق"]
["بني مالك (24) شقة - 64 ","فهد احمد باسهل",null,"عزيزنا المستأجر (فهد احمد باسهل) نود إبلاغكم بوجود مستحقات متأخرة عليكم للوحدة المستأجرة في (بني مالك (24) شقة - 64 ) لذا نأمل سرعة السداد تجنباً لاتخاذ الإجراء القانوني مع أهمية ارسال إيصال التحويل على رقم الواتساب (966122121912) وشكراً لتفهمكم.\nإدارة وقف حسين مرفق"]
["بني مالك (24) شقة - 65 ","عمر مبارك عبود باسلامة",null,"عزيزنا المستأجر (عمر مبارك عبود باسلامة) نود إبلاغكم بوجود مستحقات متأخرة عليكم للوحدة المستأجرة في (بني مالك (24) شقة - 65 ) لذا نأمل سرعة السداد تجنباً لاتخاذ الإجراء القانوني مع أهمية ارسال إيصال التحويل على رقم الواتساب (966122121912) وشكراً لتفهمكم.\nإدارة وقف حسين مرفق"]
["بني مالك (24) شقة - 66 ","عبدالعزيز غالب محمد الزبيدي",null,"عزيزنا المستأجر (عبدالعزيز غالب محمد الزبيدي) نود إبلاغكم بوجود مستحقات متأخرة عليكم للوحدة المستأجرة في (بني مالك (24) شقة - 66 ) لذا نأمل سرعة السداد تجنباً لاتخاذ الإجراء القانوني مع أهمية ارسال إيصال التحويل على رقم الواتساب (966122121912) وشكراً لتفهمكم.\nإدارة وقف حسين مرفق"]
["بني مالك (25) شقة - 117 ","سالم بن عوض بن عاطف بالعبيد",null,"عزيزنا المستأجر (سالم بن عوض بن عاطف بالعبيد) نود إبلاغكم بوجود مستحقات متأخرة عليكم للوحدة المستأجرة في (بني مالك (25) شقة - 117 ) لذا نأمل سرعة السداد تجنباً لاتخاذ الإجراء القانوني مع أهمية ارسال إيصال التحويل على رقم الواتساب (966122121912) وشكراً لتفهمكم.\nإدارة وقف حسين مرفق"]
["بني مالك (25) شقة - 118 ","عامر علي محمد مرضاح",null,"عزيزنا المستأجر (عامر علي محمد مرضاح) نود إبلاغكم بوجود مستحقات متأخرة عليكم للوحدة المستأجرة في (بني مالك (25) شقة - 118 ) لذا نأمل سرعة السداد تجنباً لاتخاذ الإجراء القانوني مع أهمية ارسال إيصال التحويل على رقم الواتساب (966122121912) وشكراً لتفهمكم.\nإدارة وقف حسين مرفق"]
["بني مالك (25) شقة - 119 ","علي ناصر - باصرة",null,"عزيزنا المستأجر (علي ناصر - باصرة) نود إبلاغكم بوجود مستحقات متأخرة عليكم للوحدة المستأجرة في (بني مالك (25) شقة - 119 ) لذا نأمل سرعة السداد تجنباً لاتخاذ الإجراء القانوني مع أهمية ارسال إيصال التحويل على رقم الواتساب (966122121912) وشكراً لتفهمكم.\nإدارة وقف حسين مرفق"]
["بني مالك (25) شقة - 120 ","احمد محمد احمد العمودي",null,"عزيزنا المستأجر (احمد محمد احمد العمودي) نود إبلاغكم بوجود مستحقات متأخرة عليكم للوحدة المستأجرة في (بني مالك (25) شقة - 120 ) لذا نأمل سرعة السداد تجنباً لاتخاذ الإجراء القانوني مع أهمية ارسال إيصال التحويل على رقم الواتساب (966122121912) وشكراً لتفهمكم.\nإدارة وقف حسين مرفق"]
["بني مالك (25) شقة - 67 ","خالد سالم سعيد الكثيري",null,"عزيزنا المستأجر (خالد سالم سعيد الكثيري) نود إبلاغكم بوجود مستحقات متأخرة عليكم للوحدة المستأجرة في (بني مالك (25) شقة - 67 ) لذا نأمل سرعة السداد تجنباً لاتخاذ الإجراء القانوني مع أهمية ارسال إيصال التحويل على رقم الواتساب (966122121912) وشكراً لتفهمكم.\nإدارة وقف حسين مرفق"]
["بني مالك (25) شقة - 70 ","عمر حسن علي باخشوين",null,"عزيزنا المستأجر (عمر حسن علي باخشوين) نود إبلاغكم بوجود مستحقات متأخرة عليكم للوحدة المستأجرة في (بني مالك (25) شقة - 70 ) لذا نأمل سرعة السداد تجنباً لاتخاذ الإجراء القانوني مع أهمية ارسال إيصال التحويل على رقم الواتساب (966122121912) وشكراً لتفهمكم.\nإدارة وقف حسين مرفق"]
["بني مالك (25) شقة - 71 ","علي عوض الجعيدي",null,"عزيزنا المستأجر (علي عوض الجعيدي) نود إبلاغكم بوجود مستحقات متأخرة عليكم للوحدة المستأجرة في (بني مالك (25) شقة - 71 ) لذا نأمل سرعة السداد تجنباً لاتخاذ الإجراء القانوني مع أهمية ارسال إيصال التحويل على رقم الواتساب (966122121912) وشكراً لتفهمكم.\nإدارة وقف حسين مرفق"]
["بني مالك (25) شقة - 72 ","تمام محمد جمال النيشواتي",null,"عزيزنا المستأجر (تمام محمد جمال النيشواتي) نود إبلاغكم بوجود مستحقات متأخرة عليكم للوحدة المستأجرة في (بني مالك (25) شقة - 72 ) لذا نأمل سرعة السداد تجنباً لاتخاذ الإجراء القانوني مع أهمية ارسال إيصال التحويل على رقم الواتساب (966122121912) وشكراً لتفهمكم.\nإدارة وقف حسين مرفق"]
["عنيكش (6) شقة - 18 "," ايمن فارس - حاج خلف",null,"عزيزنا المستأجر ( ايمن فارس - حاج خلف) نود إبلاغكم بوجود مستحقات متأخرة عليكم للوحدة المستأجرة في (عنيكش (6) شقة - 18 ) لذا نأمل سرعة السداد تجنباً لاتخاذ الإجراء القانوني مع أهمية ارسال إيصال التحويل على رقم الواتساب (966122121912) وشكراً لتفهمكم.\nإدارة وقف حسين مرفق"]
["عنيكش (8) شقة - 26 "," عبدالله عباس حمزه كلابي",null,"عزيزنا المستأجر ( عبدالله عباس حمزه كلابي) نود إبلاغكم بوجود مستحقات متأخرة عليكم للوحدة المستأجرة في (عنيكش (8) شقة - 26 ) لذا نأمل سرعة السداد تجنباً لاتخاذ الإجراء القانوني مع أهمية ارسال إيصال التحويل على رقم الواتساب (966122121912) وشكراً لتفهمكم.\nإدارة وقف حسين مرفق"]
["عنيكش (8) شقة - 65 ","ابراهيم ادريس اسحق ",null,"عزيزنا المستأجر (ابراهيم ادريس اسحق ) نود إبلاغكم بوجود مستحقات متأخرة عليكم للوحدة المستأجرة في (عنيكش (8) شقة - 65 ) لذا نأمل سرعة السداد تجنباً لاتخاذ الإجراء القانوني مع أهمية ارسال إيصال التحويل على رقم الواتساب (966122121912) وشكراً لتفهمكم.\nإدارة وقف حسين مرفق"]
["عنيكش (6) شقة - 15 ","ابوبكر احمد - بازرعة",null,"عزيزنا المستأجر (ابوبكر احمد - بازرعة) نود إبلاغكم بوجود مستحقات متأخرة عليكم للوحدة المستأجرة في (عنيكش (6) شقة - 15 ) لذا نأمل سرعة السداد تجنباً لاتخاذ الإجراء القانوني مع أهمية ارسال إيصال التحويل على رقم الواتساب (966122121912) وشكراً لتفهمكم.\nإدارة وقف حسين مرفق"]
["عنيكش (8) شقة - 29","احمد ابوبكر بازرعة ",null,"عزيزنا المستأجر (احمد ابوبكر بازرعة ) نود إبلاغكم بوجود مستحقات متأخرة عليكم للوحدة المستأجرة في (عنيكش (8) شقة - 29) لذا نأمل سرعة السداد تجنباً لاتخاذ الإجراء القانوني مع أهمية ارسال إيصال التحويل على رقم الواتساب (966122121912) وشكراً لتفهمكم.\nإدارة وقف حسين مرفق"]
["عنيكش (8) شقة - 25 ","احمد عبدالكريم -  هرموش",null,"عزيزنا المستأجر (احمد عبدالكريم -  هرموش) نود إبلاغكم بوجود مستحقات متأخرة عليكم للوحدة المستأجرة في (عنيكش (8) شقة - 25 ) لذا نأمل سرعة السداد تجنباً لاتخاذ الإجراء القانوني مع أهمية ارسال إيصال التحويل على رقم الواتساب (966122121912) وشكراً لتفهمكم.\nإدارة وقف حسين مرفق"]
["عنيكش (10) شقة - 73 ","احمد قائد عبدالقادر عبدالله",null,"عزيزنا المستأجر (احمد قائد عبدالقادر عبدالله) نود إبلاغكم بوجود مستحقات متأخرة عليكم للوحدة المستأجرة في (عنيكش (10) شقة - 73 ) لذا نأمل سرعة السداد تجنباً لاتخاذ الإجراء القانوني مع أهمية ارسال إيصال التحويل على رقم الواتساب (966122121912) وشكراً لتفهمكم.\nإدارة وقف حسين مرفق"]
["عنيكش (7) شقة - 21 ","احمد محمد احمد البيتي ",null,"عزيزنا المستأجر (احمد محمد احمد البيتي ) نود إبلاغكم بوجود مستحقات متأخرة عليكم للوحدة المستأجرة في (عنيكش (7) شقة - 21 ) لذا نأمل سرعة السداد تجنباً لاتخاذ الإجراء القانوني مع أهمية ارسال إيصال التحويل على رقم الواتساب (966122121912) وشكراً لتفهمكم.\nإدارة وقف حسين مرفق"]
["عنيكش (11) شقة - 45 ","ادهم يوسف محمود عبدالجواد",null,"عزيزنا المستأجر (ادهم يوسف محمود عبدالجواد) نود إبلاغكم بوجود مستحقات متأخرة عليكم للوحدة المستأجرة في (عنيكش (11) شقة - 45 ) لذا نأمل سرعة السداد تجنباً لاتخاذ الإجراء القانوني مع أهمية ارسال إيصال التحويل على رقم الواتساب (966122121912) وشكراً لتفهمكم.\nإدارة وقف حسين مرفق"]
["عنيكش (6) شقة - 16","اسامه ابراهيم محمود شناتا",null,"عزيزنا المستأجر (اسامه ابراهيم محمود شناتا) نود إبلاغكم بوجود مستحقات متأخرة عليكم للوحدة المستأجرة في (عنيكش (6) شقة - 16) لذا نأمل سرعة السداد تجنباً لاتخاذ الإجراء القانوني مع أهمية ارسال إيصال التحويل على رقم الواتساب (966122121912) وشكراً لتفهمكم.\nإدارة وقف حسين مرفق"]
["عنيكش (5) شقة - 7 ","الامين احمد صالح حسين نائب",null,"عزيزنا المستأجر (الامين احمد صالح حسين نائب) نود إبلاغكم بوجود مستحقات متأخرة عليكم للوحدة المستأجرة في (عنيكش (5) شقة - 7 ) لذا نأمل سرعة السداد تجنباً لاتخاذ الإجراء القانوني مع أهمية ارسال إيصال التحويل على رقم الواتساب (966122121912) وشكراً لتفهمكم.\nإدارة وقف حسين مرفق"]
["عنيكش (10) شقة - 39 ","انور بن محمد بن صالح بهلولي",null,"عزيزنا المستأجر (انور بن محمد بن صالح بهلولي) نود إبلاغكم بوجود مستحقات متأخرة عليكم للوحدة المستأجرة في (عنيكش (10) شقة - 39 ) لذا نأمل سرعة السداد تجنباً لاتخاذ الإجراء القانوني مع أهمية ارسال إيصال التحويل على رقم الواتساب (966122121912) وشكراً لتفهمكم.\nإدارة وقف حسين مرفق"]
["عنيكش (4) شقة - 4 ","ايمان بنت حمدي بن حامد الفضيل",null,"عزيزنا المستأجر (ايمان بنت حمدي بن حامد الفضيل) نود إبلاغكم بوجود مستحقات متأخرة عليكم للوحدة المستأجرة في (عنيكش (4) شقة - 4 ) لذا نأمل سرعة السداد تجنباً لاتخاذ الإجراء القانوني مع أهمية ارسال إيصال التحويل على رقم الواتساب (966122121912) وشكراً لتفهمكم.\nإدارة وقف حسين مرفق"]
["عنيكش (5) شقة - 53 ","إسماعيل محمد إسماعيل ",null,"عزيزنا المستأجر (إسماعيل محمد إسماعيل ) نود إبلاغكم بوجود مستحقات متأخرة عليكم للوحدة المستأجرة في (عنيكش (5) شقة - 53 ) لذا نأمل سرعة السداد تجنباً لاتخاذ الإجراء القانوني مع أهمية ارسال إيصال التحويل على رقم الواتساب (966122121912) وشكراً لتفهمكم.\nإدارة وقف حسين مرفق"]
["عنيكش (5) شقة - 54 ","أمورفينو كاستيسيمو كابالار ",null,"عزيزنا المستأجر (أمورفينو كاستيسيمو كابالار ) نود إبلاغكم بوجود مستحقات متأخرة عليكم للوحدة المستأجرة في (عنيكش (5) شقة - 54 ) لذا نأمل سرعة السداد تجنباً لاتخاذ الإجراء القانوني مع أهمية ارسال إيصال التحويل على رقم الواتساب (966122121912) وشكراً لتفهمكم.\nإدارة وقف حسين مرفق"]
["عنيكش (5) شقة - 11","براء عبد الحميد - الخضر",null,"عزيزنا المستأجر (براء عبد الحميد - الخضر) نود إبلاغكم بوجود مستحقات متأخرة عليكم للوحدة المستأجرة في (عنيكش (5) شقة - 11) لذا نأمل سرعة السداد تجنباً لاتخاذ الإجراء القانوني مع أهمية ارسال إيصال التحويل على رقم الواتساب (966122121912) وشكراً لتفهمكم.\nإدارة وقف حسين مرفق"]
["عنيكش (10) غرفة - 5","جوناب محمد مدهو",null,"عزيزنا المستأجر (جوناب محمد مدهو) نود إبلاغكم بوجود مستحقات متأخرة عليكم للوحدة المستأجرة في (عنيكش (10) غرفة - 5) لذا نأمل سرعة السداد تجنباً لاتخاذ الإجراء القانوني مع أهمية ارسال إيصال التحويل على رقم الواتساب (966122121912) وشكراً لتفهمكم.\nإدارة وقف حسين مرفق"]
["عنيكش (5) شقة - 56 ","حسام عدنان حجيرة ",null,"عزيزنا المستأجر (حسام عدنان حجيرة ) نود إبلاغكم بوجود مستحقات متأخرة عليكم للوحدة المستأجرة في (عنيكش (5) شقة - 56 ) لذا نأمل سرعة السداد تجنباً لاتخاذ الإجراء القانوني مع أهمية ارسال إيصال التحويل على رقم الواتساب (966122121912) وشكراً لتفهمكم.\nإدارة وقف حسين مرفق"]
["عنيكش (7) شقة - 64 ","حسن شيخ احمد العزب",null,"عزيزنا المستأجر (حسن شيخ احمد العزب) نود إبلاغكم بوجود مستحقات متأخرة عليكم للوحدة المستأجرة في (عنيكش (7) شقة - 64 ) لذا نأمل سرعة السداد تجنباً لاتخاذ الإجراء القانوني مع أهمية ارسال إيصال التحويل على رقم الواتساب (966122121912) وشكراً لتفهمكم.\nإدارة وقف حسين مرفق"]
["عنيكش (4) شقة - 3","خالد احمد عبدالحميد الصيدلاني ",null,"عزيزنا المستأجر (خالد احمد عبدالحميد الصيدلاني ) نود إبلاغكم بوجود مستحقات متأخرة عليكم للوحدة المستأجرة في (عنيكش (4) شقة - 3) لذا نأمل سرعة السداد تجنباً لاتخاذ الإجراء القانوني مع أهمية ارسال إيصال التحويل على رقم الواتساب (966122121912) وشكراً لتفهمكم.\nإدارة وقف حسين مرفق"]
["عنيكش (10) شقة - 38 ","خالد مساعد مسعود الينبعاوي",null,"عزيزنا المستأجر (خالد مساعد مسعود الينبعاوي) نود إبلاغكم بوجود مستحقات متأخرة عليكم للوحدة المستأجرة في (عنيكش (10) شقة - 38 ) لذا نأمل سرعة السداد تجنباً لاتخاذ الإجراء القانوني مع أهمية ارسال إيصال التحويل على رقم الواتساب (966122121912) وشكراً لتفهمكم.\nإدارة وقف حسين مرفق"]
["عنيكش (7) شقة - 62","راكان محمد اديب العبد",null,"عزيزنا المستأجر (راكان محمد اديب العبد) نود إبلاغكم بوجود مستحقات متأخرة عليكم للوحدة المستأجرة في (عنيكش (7) شقة - 62) لذا نأمل سرعة السداد تجنباً لاتخاذ الإجراء القانوني مع أهمية ارسال إيصال التحويل على رقم الواتساب (966122121912) وشكراً لتفهمكم.\nإدارة وقف حسين مرفق"]
["عنيكش (5) شقة - 8","رمضان سيد عمر",null,"عزيزنا المستأجر (رمضان سيد عمر) نود إبلاغكم بوجود مستحقات متأخرة عليكم للوحدة المستأجرة في (عنيكش (5) شقة - 8) لذا نأمل سرعة السداد تجنباً لاتخاذ الإجراء القانوني مع أهمية ارسال إيصال التحويل على رقم الواتساب (966122121912) وشكراً لتفهمكم.\nإدارة وقف حسين مرفق"]
["عنيكش (6) شقة - 57 ","سالم علي سالم التميمي",null,"عزيزنا المستأجر (سالم علي سالم التميمي) نود إبلاغكم بوجود مستحقات متأخرة عليكم للوحدة المستأجرة في (عنيكش (6) شقة - 57 ) لذا نأمل سرعة السداد تجنباً لاتخاذ الإجراء القانوني مع أهمية ارسال إيصال التحويل على رقم الواتساب (966122121912) وشكراً لتفهمكم.\nإدارة وقف حسين مرفق"]
["عنيكش (6) شقة - 60 ","سامي عبدالعزيز محمد النصري ",null,"عزيزنا المستأجر (سامي عبدالعزيز محمد النصري ) نود إبلاغكم بوجود مستحقات متأخرة عليكم للوحدة المستأجرة في (عنيكش (6) شقة - 60 ) لذا نأمل سرعة السداد تجنباً لاتخاذ الإجراء القانوني مع أهمية ارسال إيصال التحويل على رقم الواتساب (966122121912) وشكراً لتفهمكم.\nإدارة وقف حسين مرفق"]
["عنيكش (8) شقة - 27 ","سلطان محمد",null,"عزيزنا المستأجر (سلطان محمد) نود إبلاغكم بوجود مستحقات متأخرة عليكم للوحدة المستأجرة في (عنيكش (8) شقة - 27 ) لذا نأمل سرعة السداد تجنباً لاتخاذ الإجراء القانوني مع أهمية ارسال إيصال التحويل على رقم الواتساب (966122121912) وشكراً لتفهمكم.\nإدارة وقف حسين مرفق"]
["عنيكش (11) شقة - 44 ","سهل احمد علي بترجي",null,"عزيزنا المستأجر (سهل احمد علي بترجي) نود إبلاغكم بوجود مستحقات متأخرة عليكم للوحدة المستأجرة في (عنيكش (11) شقة - 44 ) لذا نأمل سرعة السداد تجنباً لاتخاذ الإجراء القانوني مع أهمية ارسال إيصال التحويل على رقم الواتساب (966122121912) وشكراً لتفهمكم.\nإدارة وقف حسين مرفق"]
["عنيكش (8) شقة - 28","طاهر اسماعيل عثمان ساباي",null,"عزيزنا المستأجر (طاهر اسماعيل عثمان ساباي) نود إبلاغكم بوجود مستحقات متأخرة عليكم للوحدة المستأجرة في (عنيكش (8) شقة - 28) لذا نأمل سرعة السداد تجنباً لاتخاذ الإجراء القانوني مع أهمية ارسال إيصال التحويل على رقم الواتساب (966122121912) وشكراً لتفهمكم.\nإدارة وقف حسين مرفق"]
["عنيكش (10) شقة - 37 ","طلال محمد حمزه خلاف ",null,"عزيزنا المستأجر (طلال محمد حمزه خلاف ) نود إبلاغكم بوجود مستحقات متأخرة عليكم للوحدة المستأجرة في (عنيكش (10) شقة - 37 ) لذا نأمل سرعة السداد تجنباً لاتخاذ الإجراء القانوني مع أهمية ارسال إيصال التحويل على رقم الواتساب (966122121912) وشكراً لتفهمكم.\nإدارة وقف حسين مرفق"]
["عنيكش (4) شقة - 50 ","عبدالاله حامد عبدالحميد الجهني",null,"عزيزنا المستأجر (عبدالاله حامد عبدالحميد الجهني) نود إبلاغكم بوجود مستحقات متأخرة عليكم للوحدة المستأجرة في (عنيكش (4) شقة - 50 ) لذا نأمل سرعة السداد تجنباً لاتخاذ الإجراء القانوني مع أهمية ارسال إيصال التحويل على رقم الواتساب (966122121912) وشكراً لتفهمكم.\nإدارة وقف حسين مرفق"]
["عنيكش (4) شقة - 1 ","عبدالسلام صافي ادريس",null,"عزيزنا المستأجر (عبدالسلام صافي ادريس) نود إبلاغكم بوجود مستحقات متأخرة عليكم للوحدة المستأجرة في (عنيكش (4) شقة - 1 ) لذا نأمل سرعة السداد تجنباً لاتخاذ الإجراء القانوني مع أهمية ارسال إيصال التحويل على رقم الواتساب (966122121912) وشكراً لتفهمكم.\nإدارة وقف حسين مرفق"]
["عنيكش (10) شقة - 41","عبدالعزيز حامد عبدالمطلوب الجهني",null,"عزيزنا المستأجر (عبدالعزيز حامد عبدالمطلوب الجهني) نود إبلاغكم بوجود مستحقات متأخرة عليكم للوحدة المستأجرة في (عنيكش (10) شقة - 41) لذا نأمل سرعة السداد تجنباً لاتخاذ الإجراء القانوني مع أهمية ارسال إيصال التحويل على رقم الواتساب (966122121912) وشكراً لتفهمكم.\nإدارة وقف حسين مرفق"]
["عنيكش (6) شقة - 13","عبدالله محمد احمد العيدروس",null,"عزيزنا المستأجر (عبدالله محمد احمد العيدروس) نود إبلاغكم بوجود مستحقات متأخرة عليكم للوحدة المستأجرة في (عنيكش (6) شقة - 13) لذا نأمل سرعة السداد تجنباً لاتخاذ الإجراء القانوني مع أهمية ارسال إيصال التحويل على رقم الواتساب (966122121912) وشكراً لتفهمكم.\nإدارة وقف حسين مرفق"]
["عنيكش (7) شقة - 19 ","عثمان محمد عثمان هندي",null,"عزيزنا المستأجر (عثمان محمد عثمان هندي) نود إبلاغكم بوجود مستحقات متأخرة عليكم للوحدة المستأجرة في (عنيكش (7) شقة - 19 ) لذا نأمل سرعة السداد تجنباً لاتخاذ الإجراء القانوني مع أهمية ارسال إيصال التحويل على رقم الواتساب (966122121912) وشكراً لتفهمكم.\nإدارة وقف حسين مرفق"]
["عنيكش (10) شقة - 75 ","علاء الدين موسى علي ",null,"عزيزنا المستأجر (علاء الدين موسى علي ) نود إبلاغكم بوجود مستحقات متأخرة عليكم للوحدة المستأجرة في (عنيكش (10) شقة - 75 ) لذا نأمل سرعة السداد تجنباً لاتخاذ الإجراء القانوني مع أهمية ارسال إيصال التحويل على رقم الواتساب (966122121912) وشكراً لتفهمكم.\nإدارة وقف حسين مرفق"]
["عنيكش (10) شقة - 42 ","علاء شرف قائد عبدالقادر",null,"عزيزنا المستأجر (علاء شرف قائد عبدالقادر) نود إبلاغكم بوجود مستحقات متأخرة عليكم للوحدة المستأجرة في (عنيكش (10) شقة - 42 ) لذا نأمل سرعة السداد تجنباً لاتخاذ الإجراء القانوني مع أهمية ارسال إيصال التحويل على رقم الواتساب (966122121912) وشكراً لتفهمكم.\nإدارة وقف حسين مرفق"]
["عنيكش (9) شقة - 71 ","علويه علوي عبدالرحمن الشاطري",null,"عزيزنا المستأجر (علويه علوي عبدالرحمن الشاطري) نود إبلاغكم بوجود مستحقات متأخرة عليكم للوحدة المستأجرة في (عنيكش (9) شقة - 71 ) لذا نأمل سرعة السداد تجنباً لاتخاذ الإجراء القانوني مع أهمية ارسال إيصال التحويل على رقم الواتساب (966122121912) وشكراً لتفهمكم.\nإدارة وقف حسين مرفق"]
["عنيكش (10) شقة - 74","عمر سالم علي الديني",null,"عزيزنا المستأجر (عمر سالم علي الديني) نود إبلاغكم بوجود مستحقات متأخرة عليكم للوحدة المستأجرة في (عنيكش (10) شقة - 74) لذا نأمل سرعة السداد تجنباً لاتخاذ الإجراء القانوني مع أهمية ارسال إيصال التحويل على رقم الواتساب (966122121912) وشكراً لتفهمكم.\nإدارة وقف حسين مرفق"]
["عنيكش (11) شقة - 77 ","عمر عبدالرحمن علي بازرعه",null,"عزيزنا المستأجر (عمر عبدالرحمن علي بازرعه) نود إبلاغكم بوجود مستحقات متأخرة عليكم للوحدة المستأجرة في (عنيكش (11) شقة - 77 ) لذا نأمل سرعة السداد تجنباً لاتخاذ الإجراء القانوني مع أهمية ارسال إيصال التحويل على رقم الواتساب (966122121912) وشكراً لتفهمكم.\nإدارة وقف حسين مرفق"]
["عنيكش (11) شقة - 47","فضييه راشد غيث الحبيشي",null,"عزيزنا المستأجر (فضييه راشد غيث الحبيشي) نود إبلاغكم بوجود مستحقات متأخرة عليكم للوحدة المستأجرة في (عنيكش (11) شقة - 47) لذا نأمل سرعة السداد تجنباً لاتخاذ الإجراء القانوني مع أهمية ارسال إيصال التحويل على رقم الواتساب (966122121912) وشكراً لتفهمكم.\nإدارة وقف حسين مرفق"]
["عنيكش (8) شقة - 68","فيصل محمد حسين عبدالحبيب ",null,"عزيزنا المستأجر (فيصل محمد حسين عبدالحبيب ) نود إبلاغكم بوجود مستحقات متأخرة عليكم للوحدة المستأجرة في (عنيكش (8) شقة - 68) لذا نأمل سرعة السداد تجنباً لاتخاذ الإجراء القانوني مع أهمية ارسال إيصال التحويل على رقم الواتساب (966122121912) وشكراً لتفهمكم.\nإدارة وقف حسين مرفق"]
["عنيكش (8) شقة - 67 ","ماجد سعيد صالح النهدي",null,"عزيزنا المستأجر (ماجد سعيد صالح النهدي) نود إبلاغكم بوجود مستحقات متأخرة عليكم للوحدة المستأجرة في (عنيكش (8) شقة - 67 ) لذا نأمل سرعة السداد تجنباً لاتخاذ الإجراء القانوني مع أهمية ارسال إيصال التحويل على رقم الواتساب (966122121912) وشكراً لتفهمكم.\nإدارة وقف حسين مرفق"]
["عنيكش (4) شقة - 49","مازن محمد عبدالوهاب احمد",null,"عزيزنا المستأجر (مازن محمد عبدالوهاب احمد) نود إبلاغكم بوجود مستحقات متأخرة عليكم للوحدة المستأجرة في (عنيكش (4) شقة - 49) لذا نأمل سرعة السداد تجنباً لاتخاذ الإجراء القانوني مع أهمية ارسال إيصال التحويل على رقم الواتساب (966122121912) وشكراً لتفهمكم.\nإدارة وقف حسين مرفق"]
["عنيكش (7) شقة - 22","محمد الشيخ ادريس",null,"عزيزنا المستأجر (محمد الشيخ ادريس) نود إبلاغكم بوجود مستحقات متأخرة عليكم للوحدة المستأجرة في (عنيكش (7) شقة - 22) لذا نأمل سرعة السداد تجنباً لاتخاذ الإجراء القانوني مع أهمية ارسال إيصال التحويل على رقم الواتساب (966122121912) وشكراً لتفهمكم.\nإدارة وقف حسين مرفق"]
["عنيكش (4) شقة - 51 ","محمد جمال محمود وهبه ",null,"عزيزنا المستأجر (محمد جمال محمود وهبه ) نود إبلاغكم بوجود مستحقات متأخرة عليكم للوحدة المستأجرة في (عنيكش (4) شقة - 51 ) لذا نأمل سرعة السداد تجنباً لاتخاذ الإجراء القانوني مع أهمية ارسال إيصال التحويل على رقم الواتساب (966122121912) وشكراً لتفهمكم.\nإدارة وقف حسين مرفق"]
["عنيكش (9) شقة - 33 ","محمد حسن عمر محمد",null,"عزيزنا المستأجر (محمد حسن عمر محمد) نود إبلاغكم بوجود مستحقات متأخرة عليكم للوحدة المستأجرة في (عنيكش (9) شقة - 33 ) لذا نأمل سرعة السداد تجنباً لاتخاذ الإجراء القانوني مع أهمية ارسال إيصال التحويل على رقم الواتساب (966122121912) وشكراً لتفهمكم.\nإدارة وقف حسين مرفق"]
["عنيكش (7) شقة - 24 ","محمد سمير شعبان الريس",null,"عزيزنا المستأجر (محمد سمير شعبان الريس) نود إبلاغكم بوجود مستحقات متأخرة عليكم للوحدة المستأجرة في (عنيكش (7) شقة - 24 ) لذا نأمل سرعة السداد تجنباً لاتخاذ الإجراء القانوني مع أهمية ارسال إيصال التحويل على رقم الواتساب (966122121912) وشكراً لتفهمكم.\nإدارة وقف حسين مرفق"]
["عنيكش (7) غرفة - 4","محمد سمير شعبان الريس",null,"عزيزنا المستأجر (محمد سمير شعبان الريس) نود إبلاغكم بوجود مستحقات متأخرة عليكم للوحدة المستأجرة في (عنيكش (7) غرفة - 4) لذا نأمل سرعة السداد تجنباً لاتخاذ الإجراء القانوني مع أهمية ارسال إيصال التحويل على رقم الواتساب (966122121912) وشكراً لتفهمكم.\nإدارة وقف حسين مرفق"]
["عنيكش (10) شقة - 76","محمد صالح محمد قطيان ",null,"عزيزنا المستأجر (محمد صالح محمد قطيان ) نود إبلاغكم بوجود مستحقات متأخرة عليكم للوحدة المستأجرة في (عنيكش (10) شقة - 76) لذا نأمل سرعة السداد تجنباً لاتخاذ الإجراء القانوني مع أهمية ارسال إيصال التحويل على رقم الواتساب (966122121912) وشكراً لتفهمكم.\nإدارة وقف حسين مرفق"]
["عنيكش (8) شقة - 66 ","محمد طلعت بن صدقة باشا",null,{"$f":"\"عزيزنا المستأجر (\"&$B197&\") نود إبلاغكم بوجود مستحقات متأخرة عليكم للوحدة المستأجرة في (\"&$A197&\") لذا نأمل سرعة السداد تجنباً لاتخاذ الإجراء القانوني مع أهمية ارسال إيصال التحويل على رقم الواتساب (966122121912) وشكراً لتفهمكم.\nإدارة وقف حسين مرفق\"","v":"عزيزنا المستأجر (محمد طلعت بن صدقة باشا) نود إبلاغكم بوجود مستحقات متأخرة عليكم للوحدة المستأجرة في (عنيكش (8) شقة - 66 ) لذا نأمل سرعة السداد تجنباً لاتخاذ الإجراء القانوني مع أهمية ارسال إيصال التحويل على رقم الواتساب (966122121912) وشكراً لتفهمكم.\nإدارة وقف حسين مرفق"}]
["عنيكش (11) شقة - 43","محمد عايش القريقري",null,"عزيزنا المستأجر (محمد عايش القريقري) نود إبلاغكم بوجود مستحقات متأخرة عليكم للوحدة المستأجرة في (عنيكش (11) شقة - 43) لذا نأمل سرعة السداد تجنباً لاتخاذ الإجراء القانوني مع أهمية ارسال إيصال التحويل على رقم الواتساب (966122121912) وشكراً لتفهمكم.\nإدارة وقف حسين مرفق"]
["عنيكش (6) شقة - 58 ","محمد عبدالتواب محمد ياسين ",null,"عزيزنا المستأجر (محمد عبدالتواب محمد ياسين ) نود إبلاغكم بوجود مستحقات متأخرة عليكم للوحدة المستأجرة في (عنيكش (6) شقة - 58 ) لذا نأمل سرعة السداد تجنباً لاتخاذ الإجراء القانوني مع أهمية ارسال إيصال التحويل على رقم الواتساب (966122121912) وشكراً لتفهمكم.\nإدارة وقف حسين مرفق"]
["عنيكش (9) شقة - 72","محمد عبدالله فقي محمد عثمان",null,"عزيزنا المستأجر (محمد عبدالله فقي محمد عثمان) نود إبلاغكم بوجود مستحقات متأخرة عليكم للوحدة المستأجرة في (عنيكش (9) شقة - 72) لذا نأمل سرعة السداد تجنباً لاتخاذ الإجراء القانوني مع أهمية ارسال إيصال التحويل على رقم الواتساب (966122121912) وشكراً لتفهمكم.\nإدارة وقف حسين مرفق"]
["عنيكش (9) شقة - 32 ","محمد عمر عبدالرحمن بازرعه",null,"عزيزنا المستأجر (محمد عمر عبدالرحمن بازرعه) نود إبلاغكم بوجود مستحقات متأخرة عليكم للوحدة المستأجرة في (عنيكش (9) شقة - 32 ) لذا نأمل سرعة السداد تجنباً لاتخاذ الإجراء القانوني مع أهمية ارسال إيصال التحويل على رقم الواتساب (966122121912) وشكراً لتفهمكم.\nإدارة وقف حسين مرفق"]
["عنيكش (5) شقة - 12","محمد مفضل حسين",null,"عزيزنا المستأجر (محمد مفضل حسين) نود إبلاغكم بوجود مستحقات متأخرة عليكم للوحدة المستأجرة في (عنيكش (5) شقة - 12) لذا نأمل سرعة السداد تجنباً لاتخاذ الإجراء القانوني مع أهمية ارسال إيصال التحويل على رقم الواتساب (966122121912) وشكراً لتفهمكم.\nإدارة وقف حسين مرفق"]
["عنيكش (4) شقة - 5 ","محمد نزال المحمد",null,"عزيزنا المستأجر (محمد نزال المحمد) نود إبلاغكم بوجود مستحقات متأخرة عليكم للوحدة المستأجرة في (عنيكش (4) شقة - 5 ) لذا نأمل سرعة السداد تجنباً لاتخاذ الإجراء القانوني مع أهمية ارسال إيصال التحويل على رقم الواتساب (966122121912) وشكراً لتفهمكم.\nإدارة وقف حسين مرفق"]
["عنيكش (11) شقة - 46","محيسن جميل محمد سعيد المولد",null,"عزيزنا المستأجر (محيسن جميل محمد سعيد المولد) نود إبلاغكم بوجود مستحقات متأخرة عليكم للوحدة المستأجرة في (عنيكش (11) شقة - 46) لذا نأمل سرعة السداد تجنباً لاتخاذ الإجراء القانوني مع أهمية ارسال إيصال التحويل على رقم الواتساب (966122121912) وشكراً لتفهمكم.\nإدارة وقف حسين مرفق"]
["عنيكش (4) شقة - 52","مختار حسين محمد علي",null,"عزيزنا المستأجر (مختار حسين محمد علي) نود إبلاغكم بوجود مستحقات متأخرة عليكم للوحدة المستأجرة في (عنيكش (4) شقة - 52) لذا نأمل سرعة السداد تجنباً لاتخاذ الإجراء القانوني مع أهمية ارسال إيصال التحويل على رقم الواتساب (966122121912) وشكراً لتفهمكم.\nإدارة وقف حسين مرفق"]
["عنيكش (6) شقة - 17 ","مصبح بن عوض بن عبدالله الصيعري",null,"عزيزنا المستأجر (مصبح بن عوض بن عبدالله الصيعري) نود إبلاغكم بوجود مستحقات متأخرة عليكم للوحدة المستأجرة في (عنيكش (6) شقة - 17 ) لذا نأمل سرعة السداد تجنباً لاتخاذ الإجراء القانوني مع أهمية ارسال إيصال التحويل على رقم الواتساب (966122121912) وشكراً لتفهمكم.\nإدارة وقف حسين مرفق"]
["عنيكش (6) شقة - 14","معن يونس الطائع",null,"عزيزنا المستأجر (معن يونس الطائع) نود إبلاغكم بوجود مستحقات متأخرة عليكم للوحدة المستأجرة في (عنيكش (6) شقة - 14) لذا نأمل سرعة السداد تجنباً لاتخاذ الإجراء القانوني مع أهمية ارسال إيصال التحويل على رقم الواتساب (966122121912) وشكراً لتفهمكم.\nإدارة وقف حسين مرفق"]
["عنيكش (11) شقة - 48 ","نايف كندش علي الصيعري",null,"عزيزنا المستأجر (نايف كندش علي الصيعري) نود إبلاغكم بوجود مستحقات متأخرة عليكم للوحدة المستأجرة في (عنيكش (11) شقة - 48 ) لذا نأمل سرعة السداد تجنباً لاتخاذ الإجراء القانوني مع أهمية ارسال إيصال التحويل على رقم الواتساب (966122121912) وشكراً لتفهمكم.\nإدارة وقف حسين مرفق"]
["عنيكش (9) شقة - 34 ","نبيله عبدالرب حسين محمد",null,"عزيزنا المستأجر (نبيله عبدالرب حسين محمد) نود إبلاغكم بوجود مستحقات متأخرة عليكم للوحدة المستأجرة في (عنيكش (9) شقة - 34 ) لذا نأمل سرعة السداد تجنباً لاتخاذ الإجراء القانوني مع أهمية ارسال إيصال التحويل على رقم الواتساب (966122121912) وشكراً لتفهمكم.\nإدارة وقف حسين مرفق"]
["عنيكش (9) شقة - 31","هشام حسن سلمان محمد",null,"عزيزنا المستأجر (هشام حسن سلمان محمد) نود إبلاغكم بوجود مستحقات متأخرة عليكم للوحدة المستأجرة في (عنيكش (9) شقة - 31) لذا نأمل سرعة السداد تجنباً لاتخاذ الإجراء القانوني مع أهمية ارسال إيصال التحويل على رقم الواتساب (966122121912) وشكراً لتفهمكم.\nإدارة وقف حسين مرفق"]
["عنيكش (9) شقة - 69","وديع رأفت وديع اللبابيدي ",null,"عزيزنا المستأجر (وديع رأفت وديع اللبابيدي ) نود إبلاغكم بوجود مستحقات متأخرة عليكم للوحدة المستأجرة في (عنيكش (9) شقة - 69) لذا نأمل سرعة السداد تجنباً لاتخاذ الإجراء القانوني مع أهمية ارسال إيصال التحويل على رقم الواتساب (966122121912) وشكراً لتفهمكم.\nإدارة وقف حسين مرفق"]
["عنيكش (4) شقة - 2","ياسر احمد عبدالحميد الصيدلاني ",null,"عزيزنا المستأجر (ياسر احمد عبدالحميد الصيدلاني ) نود إبلاغكم بوجود مستحقات متأخرة عليكم للوحدة المستأجرة في (عنيكش (4) شقة - 2) لذا نأمل سرعة السداد تجنباً لاتخاذ الإجراء القانوني مع أهمية ارسال إيصال التحويل على رقم الواتساب (966122121912) وشكراً لتفهمكم.\nإدارة وقف حسين مرفق"]
["عنيكش (7) شقة - 23","ياسر محمد رياض توني",null,"عزيزنا المستأجر (ياسر محمد رياض توني) نود إبلاغكم بوجود مستحقات متأخرة عليكم للوحدة المستأجرة في (عنيكش (7) شقة - 23) لذا نأمل سرعة السداد تجنباً لاتخاذ الإجراء القانوني مع أهمية ارسال إيصال التحويل على رقم الواتساب (966122121912) وشكراً لتفهمكم.\nإدارة وقف حسين مرفق"]
["عنيكش (8) شقة - 30","يوسف حسن سالم المشجري",null,"عزيزنا المستأجر (يوسف حسن سالم المشجري) نود إبلاغكم بوجود مستحقات متأخرة عليكم للوحدة المستأجرة في (عنيكش (8) شقة - 30) لذا نأمل سرعة السداد تجنباً لاتخاذ الإجراء القانوني مع أهمية ارسال إيصال التحويل على رقم الواتساب (966122121912) وشكراً لتفهمكم.\nإدارة وقف حسين مرفق"]
["فلسطين (2) - 104 ","احمد حزام مجاهد سلا م",null,"عزيزنا المستأجر (احمد حزام مجاهد سلا م) نود إبلاغكم بوجود مستحقات متأخرة عليكم للوحدة المستأجرة في (فلسطين (2) - 104 ) لذا نأمل سرعة السداد تجنباً لاتخاذ الإجراء القانوني مع أهمية ارسال إيصال التحويل على رقم الواتساب (966122121912) وشكراً لتفهمكم.\nإدارة وقف حسين مرفق"]
["فلسطين (2) - 612","احمد صالح عبدالله باطرفي",null,"عزيزنا المستأجر (احمد صالح عبدالله باطرفي) نود إبلاغكم بوجود مستحقات متأخرة عليكم للوحدة المستأجرة في (فلسطين (2) - 612) لذا نأمل سرعة السداد تجنباً لاتخاذ الإجراء القانوني مع أهمية ارسال إيصال التحويل على رقم الواتساب (966122121912) وشكراً لتفهمكم.\nإدارة وقف حسين مرفق"]
["فلسطين (2) - 610","احمد مصطفى - كريز",null,"عزيزنا المستأجر (احمد مصطفى - كريز) نود إبلاغكم بوجود مستحقات متأخرة عليكم للوحدة المستأجرة في (فلسطين (2) - 610) لذا نأمل سرعة السداد تجنباً لاتخاذ الإجراء القانوني مع أهمية ارسال إيصال التحويل على رقم الواتساب (966122121912) وشكراً لتفهمكم.\nإدارة وقف حسين مرفق"]
["فلسطين (2) - 502","اشرف محمد عبدالمقصود إبراهيم",null,"عزيزنا المستأجر (اشرف محمد عبدالمقصود إبراهيم) نود إبلاغكم بوجود مستحقات متأخرة عليكم للوحدة المستأجرة في (فلسطين (2) - 502) لذا نأمل سرعة السداد تجنباً لاتخاذ الإجراء القانوني مع أهمية ارسال إيصال التحويل على رقم الواتساب (966122121912) وشكراً لتفهمكم.\nإدارة وقف حسين مرفق"]
["فلسطين (2) - 703 ","امنة احمد عبدالله مغيري",null,"عزيزنا المستأجر (امنة احمد عبدالله مغيري) نود إبلاغكم بوجود مستحقات متأخرة عليكم للوحدة المستأجرة في (فلسطين (2) - 703 ) لذا نأمل سرعة السداد تجنباً لاتخاذ الإجراء القانوني مع أهمية ارسال إيصال التحويل على رقم الواتساب (966122121912) وشكراً لتفهمكم.\nإدارة وقف حسين مرفق"]
["فلسطين (2) - 608","انس محمد يوسف عكاشه",null,"عزيزنا المستأجر (انس محمد يوسف عكاشه) نود إبلاغكم بوجود مستحقات متأخرة عليكم للوحدة المستأجرة في (فلسطين (2) - 608) لذا نأمل سرعة السداد تجنباً لاتخاذ الإجراء القانوني مع أهمية ارسال إيصال التحويل على رقم الواتساب (966122121912) وشكراً لتفهمكم.\nإدارة وقف حسين مرفق"]
["فلسطين (2) - 607 ","ايهاب عبدالحميد محمود سيدأحمد",null,"عزيزنا المستأجر (ايهاب عبدالحميد محمود سيدأحمد) نود إبلاغكم بوجود مستحقات متأخرة عليكم للوحدة المستأجرة في (فلسطين (2) - 607 ) لذا نأمل سرعة السداد تجنباً لاتخاذ الإجراء القانوني مع أهمية ارسال إيصال التحويل على رقم الواتساب (966122121912) وشكراً لتفهمكم.\nإدارة وقف حسين مرفق"]
["فلسطين (2) - 311","أحمد محمد السيد أحمد ",null,"عزيزنا المستأجر (أحمد محمد السيد أحمد ) نود إبلاغكم بوجود مستحقات متأخرة عليكم للوحدة المستأجرة في (فلسطين (2) - 311) لذا نأمل سرعة السداد تجنباً لاتخاذ الإجراء القانوني مع أهمية ارسال إيصال التحويل على رقم الواتساب (966122121912) وشكراً لتفهمكم.\nإدارة وقف حسين مرفق"]
["فلسطين (2) - 413","أحمد محمد حسين غلاب ",null,"عزيزنا المستأجر (أحمد محمد حسين غلاب ) نود إبلاغكم بوجود مستحقات متأخرة عليكم للوحدة المستأجرة في (فلسطين (2) - 413) لذا نأمل سرعة السداد تجنباً لاتخاذ الإجراء القانوني مع أهمية ارسال إيصال التحويل على رقم الواتساب (966122121912) وشكراً لتفهمكم.\nإدارة وقف حسين مرفق"]
["فلسطين (2) - 402","أنور فرج محمد داود ",null,"عزيزنا المستأجر (أنور فرج محمد داود ) نود إبلاغكم بوجود مستحقات متأخرة عليكم للوحدة المستأجرة في (فلسطين (2) - 402) لذا نأمل سرعة السداد تجنباً لاتخاذ الإجراء القانوني مع أهمية ارسال إيصال التحويل على رقم الواتساب (966122121912) وشكراً لتفهمكم.\nإدارة وقف حسين مرفق"]
["فلسطين (2) - 307 ","برهومه ابراهيم عزي مطهر",null,"عزيزنا المستأجر (برهومه ابراهيم عزي مطهر) نود إبلاغكم بوجود مستحقات متأخرة عليكم للوحدة المستأجرة في (فلسطين (2) - 307 ) لذا نأمل سرعة السداد تجنباً لاتخاذ الإجراء القانوني مع أهمية ارسال إيصال التحويل على رقم الواتساب (966122121912) وشكراً لتفهمكم.\nإدارة وقف حسين مرفق"]
["فلسطين (2) - 308","حازم طه احمد عيش ",null,"عزيزنا المستأجر (حازم طه احمد عيش ) نود إبلاغكم بوجود مستحقات متأخرة عليكم للوحدة المستأجرة في (فلسطين (2) - 308) لذا نأمل سرعة السداد تجنباً لاتخاذ الإجراء القانوني مع أهمية ارسال إيصال التحويل على رقم الواتساب (966122121912) وشكراً لتفهمكم.\nإدارة وقف حسين مرفق"]
["فلسطين (2) - 103","حسين عبدالرقيب احمد عبده",null,"عزيزنا المستأجر (حسين عبدالرقيب احمد عبده) نود إبلاغكم بوجود مستحقات متأخرة عليكم للوحدة المستأجرة في (فلسطين (2) - 103) لذا نأمل سرعة السداد تجنباً لاتخاذ الإجراء القانوني مع أهمية ارسال إيصال التحويل على رقم الواتساب (966122121912) وشكراً لتفهمكم.\nإدارة وقف حسين مرفق"]
["فلسطين (2) - 504","حسين يوسف عاصي ",null,"عزيزنا المستأجر (حسين يوسف عاصي ) نود إبلاغكم بوجود مستحقات متأخرة عليكم للوحدة المستأجرة في (فلسطين (2) - 504) لذا نأمل سرعة السداد تجنباً لاتخاذ الإجراء القانوني مع أهمية ارسال إيصال التحويل على رقم الواتساب (966122121912) وشكراً لتفهمكم.\nإدارة وقف حسين مرفق"]
["فلسطين (2) - 510","خالد شاكر محمد السنهوتي ",null,"عزيزنا المستأجر (خالد شاكر محمد السنهوتي ) نود إبلاغكم بوجود مستحقات متأخرة عليكم للوحدة المستأجرة في (فلسطين (2) - 510) لذا نأمل سرعة السداد تجنباً لاتخاذ الإجراء القانوني مع أهمية ارسال إيصال التحويل على رقم الواتساب (966122121912) وشكراً لتفهمكم.\nإدارة وقف حسين مرفق"]
["فلسطين (2) - 615 ","خالد عبده صالح العبدلي",null,"عزيزنا المستأجر (خالد عبده صالح العبدلي) نود إبلاغكم بوجود مستحقات متأخرة عليكم للوحدة المستأجرة في (فلسطين (2) - 615 ) لذا نأمل سرعة السداد تجنباً لاتخاذ الإجراء القانوني مع أهمية ارسال إيصال التحويل على رقم الواتساب (966122121912) وشكراً لتفهمكم.\nإدارة وقف حسين مرفق"]
["فلسطين (2) - 505 ","خيري قايد عبدالرب الجماعي",null,"عزيزنا المستأجر (خيري قايد عبدالرب الجماعي) نود إبلاغكم بوجود مستحقات متأخرة عليكم للوحدة المستأجرة في (فلسطين (2) - 505 ) لذا نأمل سرعة السداد تجنباً لاتخاذ الإجراء القانوني مع أهمية ارسال إيصال التحويل على رقم الواتساب (966122121912) وشكراً لتفهمكم.\nإدارة وقف حسين مرفق"]
["فلسطين (2) - 602","دعاء عبد الله حسن محجوب",null,"عزيزنا المستأجر (دعاء عبد الله حسن محجوب) نود إبلاغكم بوجود مستحقات متأخرة عليكم للوحدة المستأجرة في (فلسطين (2) - 602) لذا نأمل سرعة السداد تجنباً لاتخاذ الإجراء القانوني مع أهمية ارسال إيصال التحويل على رقم الواتساب (966122121912) وشكراً لتفهمكم.\nإدارة وقف حسين مرفق"]
["فلسطين (2) - 406","سامح أحمد حسني أبوالعزم ",null,"عزيزنا المستأجر (سامح أحمد حسني أبوالعزم ) نود إبلاغكم بوجود مستحقات متأخرة عليكم للوحدة المستأجرة في (فلسطين (2) - 406) لذا نأمل سرعة السداد تجنباً لاتخاذ الإجراء القانوني مع أهمية ارسال إيصال التحويل على رقم الواتساب (966122121912) وشكراً لتفهمكم.\nإدارة وقف حسين مرفق"]
["فلسطين (2) - 204 ","سامي ابراهيم احمد سعيد",null,"عزيزنا المستأجر (سامي ابراهيم احمد سعيد) نود إبلاغكم بوجود مستحقات متأخرة عليكم للوحدة المستأجرة في (فلسطين (2) - 204 ) لذا نأمل سرعة السداد تجنباً لاتخاذ الإجراء القانوني مع أهمية ارسال إيصال التحويل على رقم الواتساب (966122121912) وشكراً لتفهمكم.\nإدارة وقف حسين مرفق"]
["فلسطين (2) - 202 ","سعيد سالم عوض الديني",null,"عزيزنا المستأجر (سعيد سالم عوض الديني) نود إبلاغكم بوجود مستحقات متأخرة عليكم للوحدة المستأجرة في (فلسطين (2) - 202 ) لذا نأمل سرعة السداد تجنباً لاتخاذ الإجراء القانوني مع أهمية ارسال إيصال التحويل على رقم الواتساب (966122121912) وشكراً لتفهمكم.\nإدارة وقف حسين مرفق"]
["فلسطين (2) - 616","سيد سروجي يوسف محمد ",null,"عزيزنا المستأجر (سيد سروجي يوسف محمد ) نود إبلاغكم بوجود مستحقات متأخرة عليكم للوحدة المستأجرة في (فلسطين (2) - 616) لذا نأمل سرعة السداد تجنباً لاتخاذ الإجراء القانوني مع أهمية ارسال إيصال التحويل على رقم الواتساب (966122121912) وشكراً لتفهمكم.\nإدارة وقف حسين مرفق"]
["فلسطين (2) معرض - 9","شركة النجمة الفضية للمقاولات",null,"عزيزنا المستأجر (شركة النجمة الفضية للمقاولات) نود إبلاغكم بوجود مستحقات متأخرة عليكم للوحدة المستأجرة في (فلسطين (2) معرض - 9) لذا نأمل سرعة السداد تجنباً لاتخاذ الإجراء القانوني مع أهمية ارسال إيصال التحويل على رقم الواتساب (966122121912) وشكراً لتفهمكم.\nإدارة وقف حسين مرفق"]
["فلسطين (2) غرفة - 5","شركة النجمة الفضية للمقاولات",null,"عزيزنا المستأجر (شركة النجمة الفضية للمقاولات) نود إبلاغكم بوجود مستحقات متأخرة عليكم للوحدة المستأجرة في (فلسطين (2) غرفة - 5) لذا نأمل سرعة السداد تجنباً لاتخاذ الإجراء القانوني مع أهمية ارسال إيصال التحويل على رقم الواتساب (966122121912) وشكراً لتفهمكم.\nإدارة وقف حسين مرفق"]
["فلسطين (2) معرض - 1 - 2 ","شركة محمد الخالدي للمقاولات الميكانيكية ",null,"عزيزنا المستأجر (شركة محمد الخالدي للمقاولات الميكانيكية ) نود إبلاغكم بوجود مستحقات متأخرة عليكم للوحدة المستأجرة في (فلسطين (2) معرض - 1 - 2 ) لذا نأمل سرعة السداد تجنباً لاتخاذ الإجراء القانوني مع أهمية ارسال إيصال التحويل على رقم الواتساب (966122121912) وشكراً لتفهمكم.\nإدارة وقف حسين مرفق"]
["فلسطين (2) - 203","شهباز شمساد شينا نجادان",null,"عزيزنا المستأجر (شهباز شمساد شينا نجادان) نود إبلاغكم بوجود مستحقات متأخرة عليكم للوحدة المستأجرة في (فلسطين (2) - 203) لذا نأمل سرعة السداد تجنباً لاتخاذ الإجراء القانوني مع أهمية ارسال إيصال التحويل على رقم الواتساب (966122121912) وشكراً لتفهمكم.\nإدارة وقف حسين مرفق"]
["فلسطين (2) - 305","صالح محمد علي يوسف ",null,"عزيزنا المستأجر (صالح محمد علي يوسف ) نود إبلاغكم بوجود مستحقات متأخرة عليكم للوحدة المستأجرة في (فلسطين (2) - 305) لذا نأمل سرعة السداد تجنباً لاتخاذ الإجراء القانوني مع أهمية ارسال إيصال التحويل على رقم الواتساب (966122121912) وشكراً لتفهمكم.\nإدارة وقف حسين مرفق"]
["فلسطين (2) معرض - 8","صالون محمد عبدالله بن عبدالعزيز النفيسي للحلاقه",null,"عزيزنا المستأجر (صالون محمد عبدالله بن عبدالعزيز النفيسي للحلاقه) نود إبلاغكم بوجود مستحقات متأخرة عليكم للوحدة المستأجرة في (فلسطين (2) معرض - 8) لذا نأمل سرعة السداد تجنباً لاتخاذ الإجراء القانوني مع أهمية ارسال إيصال التحويل على رقم الواتساب (966122121912) وشكراً لتفهمكم.\nإدارة وقف حسين مرفق"]
["فلسطين (2) - 310 ","صوال سالم مرزوق البقمي ",null,"عزيزنا المستأجر (صوال سالم مرزوق البقمي ) نود إبلاغكم بوجود مستحقات متأخرة عليكم للوحدة المستأجرة في (فلسطين (2) - 310 ) لذا نأمل سرعة السداد تجنباً لاتخاذ الإجراء القانوني مع أهمية ارسال إيصال التحويل على رقم الواتساب (966122121912) وشكراً لتفهمكم.\nإدارة وقف حسين مرفق"]
["فلسطين (2) - 105 ","طارق البدوي عبدالله الماحي",null,"عزيزنا المستأجر (طارق البدوي عبدالله الماحي) نود إبلاغكم بوجود مستحقات متأخرة عليكم للوحدة المستأجرة في (فلسطين (2) - 105 ) لذا نأمل سرعة السداد تجنباً لاتخاذ الإجراء القانوني مع أهمية ارسال إيصال التحويل على رقم الواتساب (966122121912) وشكراً لتفهمكم.\nإدارة وقف حسين مرفق"]
["فلسطين (2) - 409 ","طارق فاروق سليمان حسن",null,"عزيزنا المستأجر (طارق فاروق سليمان حسن) نود إبلاغكم بوجود مستحقات متأخرة عليكم للوحدة المستأجرة في (فلسطين (2) - 409 ) لذا نأمل سرعة السداد تجنباً لاتخاذ الإجراء القانوني مع أهمية ارسال إيصال التحويل على رقم الواتساب (966122121912) وشكراً لتفهمكم.\nإدارة وقف حسين مرفق"]
["فلسطين (2) - 401","طارق محمدعبد العزيز شريف",null,"عزيزنا المستأجر (طارق محمدعبد العزيز شريف) نود إبلاغكم بوجود مستحقات متأخرة عليكم للوحدة المستأجرة في (فلسطين (2) - 401) لذا نأمل سرعة السداد تجنباً لاتخاذ الإجراء القانوني مع أهمية ارسال إيصال التحويل على رقم الواتساب (966122121912) وشكراً لتفهمكم.\nإدارة وقف حسين مرفق"]
["فلسطين (2) - 614 ","عبدالحليم نور عالم ",null,"عزيزنا المستأجر (عبدالحليم نور عالم ) نود إبلاغكم بوجود مستحقات متأخرة عليكم للوحدة المستأجرة في (فلسطين (2) - 614 ) لذا نأمل سرعة السداد تجنباً لاتخاذ الإجراء القانوني مع أهمية ارسال إيصال التحويل على رقم الواتساب (966122121912) وشكراً لتفهمكم.\nإدارة وقف حسين مرفق"]
["فلسطين (2) - 704","عبدالرحمن احمد حسن امير",null,"عزيزنا المستأجر (عبدالرحمن احمد حسن امير) نود إبلاغكم بوجود مستحقات متأخرة عليكم للوحدة المستأجرة في (فلسطين (2) - 704) لذا نأمل سرعة السداد تجنباً لاتخاذ الإجراء القانوني مع أهمية ارسال إيصال التحويل على رقم الواتساب (966122121912) وشكراً لتفهمكم.\nإدارة وقف حسين مرفق"]
["فلسطين (2) - 313","عبدالرحمن حبيب الله موسى",null,"عزيزنا المستأجر (عبدالرحمن حبيب الله موسى) نود إبلاغكم بوجود مستحقات متأخرة عليكم للوحدة المستأجرة في (فلسطين (2) - 313) لذا نأمل سرعة السداد تجنباً لاتخاذ الإجراء القانوني مع أهمية ارسال إيصال التحويل على رقم الواتساب (966122121912) وشكراً لتفهمكم.\nإدارة وقف حسين مرفق"]
["فلسطين (2) - 314 ","عبدالرحمن صالح مثنى اليافعي ",null,"عزيزنا المستأجر (عبدالرحمن صالح مثنى اليافعي ) نود إبلاغكم بوجود مستحقات متأخرة عليكم للوحدة المستأجرة في (فلسطين (2) - 314 ) لذا نأمل سرعة السداد تجنباً لاتخاذ الإجراء القانوني مع أهمية ارسال إيصال التحويل على رقم الواتساب (966122121912) وشكراً لتفهمكم.\nإدارة وقف حسين مرفق"]
["فلسطين (2) - 604","عبدالله حسن علي صالح العبدلي",null,"عزيزنا المستأجر (عبدالله حسن علي صالح العبدلي) نود إبلاغكم بوجود مستحقات متأخرة عليكم للوحدة المستأجرة في (فلسطين (2) - 604) لذا نأمل سرعة السداد تجنباً لاتخاذ الإجراء القانوني مع أهمية ارسال إيصال التحويل على رقم الواتساب (966122121912) وشكراً لتفهمكم.\nإدارة وقف حسين مرفق"]
["فلسطين (2) - 408 ","عبدي عباس عبدالكريم نور",null,"عزيزنا المستأجر (عبدي عباس عبدالكريم نور) نود إبلاغكم بوجود مستحقات متأخرة عليكم للوحدة المستأجرة في (فلسطين (2) - 408 ) لذا نأمل سرعة السداد تجنباً لاتخاذ الإجراء القانوني مع أهمية ارسال إيصال التحويل على رقم الواتساب (966122121912) وشكراً لتفهمكم.\nإدارة وقف حسين مرفق"]
["فلسطين (2) - 611","عزت عبدالله محمد اسماعيل ",null,"عزيزنا المستأجر (عزت عبدالله محمد اسماعيل ) نود إبلاغكم بوجود مستحقات متأخرة عليكم للوحدة المستأجرة في (فلسطين (2) - 611) لذا نأمل سرعة السداد تجنباً لاتخاذ الإجراء القانوني مع أهمية ارسال إيصال التحويل على رقم الواتساب (966122121912) وشكراً لتفهمكم.\nإدارة وقف حسين مرفق"]
["فلسطين (2) - 312","علاء حسن عوض غنيم",null,"عزيزنا المستأجر (علاء حسن عوض غنيم) نود إبلاغكم بوجود مستحقات متأخرة عليكم للوحدة المستأجرة في (فلسطين (2) - 312) لذا نأمل سرعة السداد تجنباً لاتخاذ الإجراء القانوني مع أهمية ارسال إيصال التحويل على رقم الواتساب (966122121912) وشكراً لتفهمكم.\nإدارة وقف حسين مرفق"]
["فلسطين (2) - 106- 107","علي محمد صالح العبدلي ",null,"عزيزنا المستأجر (علي محمد صالح العبدلي ) نود إبلاغكم بوجود مستحقات متأخرة عليكم للوحدة المستأجرة في (فلسطين (2) - 106- 107) لذا نأمل سرعة السداد تجنباً لاتخاذ الإجراء القانوني مع أهمية ارسال إيصال التحويل على رقم الواتساب (966122121912) وشكراً لتفهمكم.\nإدارة وقف حسين مرفق"]
["فلسطين (2) - 403 ","عماد يحيى محمد الخولاني ",null,"عزيزنا المستأجر (عماد يحيى محمد الخولاني ) نود إبلاغكم بوجود مستحقات متأخرة عليكم للوحدة المستأجرة في (فلسطين (2) - 403 ) لذا نأمل سرعة السداد تجنباً لاتخاذ الإجراء القانوني مع أهمية ارسال إيصال التحويل على رقم الواتساب (966122121912) وشكراً لتفهمكم.\nإدارة وقف حسين مرفق"]
["فلسطين (2) - 501 ","عمر احمد قاسم محمد",null,"عزيزنا المستأجر (عمر احمد قاسم محمد) نود إبلاغكم بوجود مستحقات متأخرة عليكم للوحدة المستأجرة في (فلسطين (2) - 501 ) لذا نأمل سرعة السداد تجنباً لاتخاذ الإجراء القانوني مع أهمية ارسال إيصال التحويل على رقم الواتساب (966122121912) وشكراً لتفهمكم.\nإدارة وقف حسين مرفق"]
["فلسطين (2) - 506","عمر عبدالعزيز علوان محمد علي عيد ",null,"عزيزنا المستأجر (عمر عبدالعزيز علوان محمد علي عيد ) نود إبلاغكم بوجود مستحقات متأخرة عليكم للوحدة المستأجرة في (فلسطين (2) - 506) لذا نأمل سرعة السداد تجنباً لاتخاذ الإجراء القانوني مع أهمية ارسال إيصال التحويل على رقم الواتساب (966122121912) وشكراً لتفهمكم.\nإدارة وقف حسين مرفق"]
["فلسطين (2) - 207","عمر محمد طه الجرادي",null,"عزيزنا المستأجر (عمر محمد طه الجرادي) نود إبلاغكم بوجود مستحقات متأخرة عليكم للوحدة المستأجرة في (فلسطين (2) - 207) لذا نأمل سرعة السداد تجنباً لاتخاذ الإجراء القانوني مع أهمية ارسال إيصال التحويل على رقم الواتساب (966122121912) وشكراً لتفهمكم.\nإدارة وقف حسين مرفق"]
["فلسطين (2) - 309","عمران افضل محمد افضل",null,"عزيزنا المستأجر (عمران افضل محمد افضل) نود إبلاغكم بوجود مستحقات متأخرة عليكم للوحدة المستأجرة في (فلسطين (2) - 309) لذا نأمل سرعة السداد تجنباً لاتخاذ الإجراء القانوني مع أهمية ارسال إيصال التحويل على رقم الواتساب (966122121912) وشكراً لتفهمكم.\nإدارة وقف حسين مرفق"]
["فلسطين (2) - 407 ","فاطمه محمد - بارنوما",null,{"$f":"\"عزيزنا المستأجر (\"&$B261&\") نود إبلاغكم بوجود مستحقات متأخرة عليكم للوحدة المستأجرة في (\"&$A261&\") لذا نأمل سرعة السداد تجنباً لاتخاذ الإجراء القانوني مع أهمية ارسال إيصال التحويل على رقم الواتساب (966122121912) وشكراً لتفهمكم.\nإدارة وقف حسين مرفق\"","v":"عزيزنا المستأجر (فاطمه محمد - بارنوما) نود إبلاغكم بوجود مستحقات متأخرة عليكم للوحدة المستأجرة في (فلسطين (2) - 407 ) لذا نأمل سرعة السداد تجنباً لاتخاذ الإجراء القانوني مع أهمية ارسال إيصال التحويل على رقم الواتساب (966122121912) وشكراً لتفهمكم.\nإدارة وقف حسين مرفق"}]
["فلسطين (2) - 316","فهد فيلاكاد مامودو",null,"عزيزنا المستأجر (فهد فيلاكاد مامودو) نود إبلاغكم بوجود مستحقات متأخرة عليكم للوحدة المستأجرة في (فلسطين (2) - 316) لذا نأمل سرعة السداد تجنباً لاتخاذ الإجراء القانوني مع أهمية ارسال إيصال التحويل على رقم الواتساب (966122121912) وشكراً لتفهمكم.\nإدارة وقف حسين مرفق"]
["فلسطين (2) - 304 ","فهد يحيى محمد سعيد",null,"عزيزنا المستأجر (فهد يحيى محمد سعيد) نود إبلاغكم بوجود مستحقات متأخرة عليكم للوحدة المستأجرة في (فلسطين (2) - 304 ) لذا نأمل سرعة السداد تجنباً لاتخاذ الإجراء القانوني مع أهمية ارسال إيصال التحويل على رقم الواتساب (966122121912) وشكراً لتفهمكم.\nإدارة وقف حسين مرفق"]
["فلسطين (2) - 516 ","فيصل صالح عمر بامدحن",null,"عزيزنا المستأجر (فيصل صالح عمر بامدحن) نود إبلاغكم بوجود مستحقات متأخرة عليكم للوحدة المستأجرة في (فلسطين (2) - 516 ) لذا نأمل سرعة السداد تجنباً لاتخاذ الإجراء القانوني مع أهمية ارسال إيصال التحويل على رقم الواتساب (966122121912) وشكراً لتفهمكم.\nإدارة وقف حسين مرفق"]
["فلسطين (2) - 412","قاسم احمد عبادي حميدان",null,"عزيزنا المستأجر (قاسم احمد عبادي حميدان) نود إبلاغكم بوجود مستحقات متأخرة عليكم للوحدة المستأجرة في (فلسطين (2) - 412) لذا نأمل سرعة السداد تجنباً لاتخاذ الإجراء القانوني مع أهمية ارسال إيصال التحويل على رقم الواتساب (966122121912) وشكراً لتفهمكم.\nإدارة وقف حسين مرفق"]
["فلسطين (2) - 405 ","ماجدة محمد علي السيد ",null,"عزيزنا المستأجر (ماجدة محمد علي السيد ) نود إبلاغكم بوجود مستحقات متأخرة عليكم للوحدة المستأجرة في (فلسطين (2) - 405 ) لذا نأمل سرعة السداد تجنباً لاتخاذ الإجراء القانوني مع أهمية ارسال إيصال التحويل على رقم الواتساب (966122121912) وشكراً لتفهمكم.\nإدارة وقف حسين مرفق"]
["فلسطين (2) - 507 ","مبارك عبدالرحيم محمد سعيد ",null,"عزيزنا المستأجر (مبارك عبدالرحيم محمد سعيد ) نود إبلاغكم بوجود مستحقات متأخرة عليكم للوحدة المستأجرة في (فلسطين (2) - 507 ) لذا نأمل سرعة السداد تجنباً لاتخاذ الإجراء القانوني مع أهمية ارسال إيصال التحويل على رقم الواتساب (966122121912) وشكراً لتفهمكم.\nإدارة وقف حسين مرفق"]
["فلسطين (2) - 304","مبارك محمد سالم العطياني الاكلبي ",null,"عزيزنا المستأجر (مبارك محمد سالم العطياني الاكلبي ) نود إبلاغكم بوجود مستحقات متأخرة عليكم للوحدة المستأجرة في (فلسطين (2) - 304) لذا نأمل سرعة السداد تجنباً لاتخاذ الإجراء القانوني مع أهمية ارسال إيصال التحويل على رقم الواتساب (966122121912) وشكراً لتفهمكم.\nإدارة وقف حسين مرفق"]
["فلسطين (2) - 201 ","محمد ابوبكر احمد بازرعة",null,"عزيزنا المستأجر (محمد ابوبكر احمد بازرعة) نود إبلاغكم بوجود مستحقات متأخرة عليكم للوحدة المستأجرة في (فلسطين (2) - 201 ) لذا نأمل سرعة السداد تجنباً لاتخاذ الإجراء القانوني مع أهمية ارسال إيصال التحويل على رقم الواتساب (966122121912) وشكراً لتفهمكم.\nإدارة وقف حسين مرفق"]
["فلسطين (2) - 315 ","محمد اسماعيل عبدالحميد عنتر",null,"عزيزنا المستأجر (محمد اسماعيل عبدالحميد عنتر) نود إبلاغكم بوجود مستحقات متأخرة عليكم للوحدة المستأجرة في (فلسطين (2) - 315 ) لذا نأمل سرعة السداد تجنباً لاتخاذ الإجراء القانوني مع أهمية ارسال إيصال التحويل على رقم الواتساب (966122121912) وشكراً لتفهمكم.\nإدارة وقف حسين مرفق"]
["فلسطين (2) - 511","محمد إبراهيم زكي لطفي ",null,"عزيزنا المستأجر (محمد إبراهيم زكي لطفي ) نود إبلاغكم بوجود مستحقات متأخرة عليكم للوحدة المستأجرة في (فلسطين (2) - 511) لذا نأمل سرعة السداد تجنباً لاتخاذ الإجراء القانوني مع أهمية ارسال إيصال التحويل على رقم الواتساب (966122121912) وشكراً لتفهمكم.\nإدارة وقف حسين مرفق"]
["فلسطين (2) - 702","محمد أحمد محمد الغامدي ",null,"عزيزنا المستأجر (محمد أحمد محمد الغامدي ) نود إبلاغكم بوجود مستحقات متأخرة عليكم للوحدة المستأجرة في (فلسطين (2) - 702) لذا نأمل سرعة السداد تجنباً لاتخاذ الإجراء القانوني مع أهمية ارسال إيصال التحويل على رقم الواتساب (966122121912) وشكراً لتفهمكم.\nإدارة وقف حسين مرفق"]
["فلسطين (2) - 605","محمد أرشد فيليب أرامبيل عبدول",null,"عزيزنا المستأجر (محمد أرشد فيليب أرامبيل عبدول) نود إبلاغكم بوجود مستحقات متأخرة عليكم للوحدة المستأجرة في (فلسطين (2) - 605) لذا نأمل سرعة السداد تجنباً لاتخاذ الإجراء القانوني مع أهمية ارسال إيصال التحويل على رقم الواتساب (966122121912) وشكراً لتفهمكم.\nإدارة وقف حسين مرفق"]
["فلسطين (2) - 206 ","محمد سيبوردين نالكت",null,"عزيزنا المستأجر (محمد سيبوردين نالكت) نود إبلاغكم بوجود مستحقات متأخرة عليكم للوحدة المستأجرة في (فلسطين (2) - 206 ) لذا نأمل سرعة السداد تجنباً لاتخاذ الإجراء القانوني مع أهمية ارسال إيصال التحويل على رقم الواتساب (966122121912) وشكراً لتفهمكم.\nإدارة وقف حسين مرفق"]
["فلسطين (2) - 205 ","محمد عامر حنيف محمد حنيف ",null,"عزيزنا المستأجر (محمد عامر حنيف محمد حنيف ) نود إبلاغكم بوجود مستحقات متأخرة عليكم للوحدة المستأجرة في (فلسطين (2) - 205 ) لذا نأمل سرعة السداد تجنباً لاتخاذ الإجراء القانوني مع أهمية ارسال إيصال التحويل على رقم الواتساب (966122121912) وشكراً لتفهمكم.\nإدارة وقف حسين مرفق"]
["فلسطين (2) - 701","محمد عبدالله جنيد احمد",null,"عزيزنا المستأجر (محمد عبدالله جنيد احمد) نود إبلاغكم بوجود مستحقات متأخرة عليكم للوحدة المستأجرة في (فلسطين (2) - 701) لذا نأمل سرعة السداد تجنباً لاتخاذ الإجراء القانوني مع أهمية ارسال إيصال التحويل على رقم الواتساب (966122121912) وشكراً لتفهمكم.\nإدارة وقف حسين مرفق"]
["فلسطين (2) - 509","محمد علي محمد حمدي",null,"عزيزنا المستأجر (محمد علي محمد حمدي) نود إبلاغكم بوجود مستحقات متأخرة عليكم للوحدة المستأجرة في (فلسطين (2) - 509) لذا نأمل سرعة السداد تجنباً لاتخاذ الإجراء القانوني مع أهمية ارسال إيصال التحويل على رقم الواتساب (966122121912) وشكراً لتفهمكم.\nإدارة وقف حسين مرفق"]
["فلسطين (2) - 512","محمد فوزى محمد البدرى ",null,"عزيزنا المستأجر (محمد فوزى محمد البدرى ) نود إبلاغكم بوجود مستحقات متأخرة عليكم للوحدة المستأجرة في (فلسطين (2) - 512) لذا نأمل سرعة السداد تجنباً لاتخاذ الإجراء القانوني مع أهمية ارسال إيصال التحويل على رقم الواتساب (966122121912) وشكراً لتفهمكم.\nإدارة وقف حسين مرفق"]
["فلسطين (2) - 404 ","محمد محمد عبدالقادر ورده ",null,"عزيزنا المستأجر (محمد محمد عبدالقادر ورده ) نود إبلاغكم بوجود مستحقات متأخرة عليكم للوحدة المستأجرة في (فلسطين (2) - 404 ) لذا نأمل سرعة السداد تجنباً لاتخاذ الإجراء القانوني مع أهمية ارسال إيصال التحويل على رقم الواتساب (966122121912) وشكراً لتفهمكم.\nإدارة وقف حسين مرفق"]
["فلسطين (2) - 414 ","محمود شعبان فوزى عبدالحافظ",null,"عزيزنا المستأجر (محمود شعبان فوزى عبدالحافظ) نود إبلاغكم بوجود مستحقات متأخرة عليكم للوحدة المستأجرة في (فلسطين (2) - 414 ) لذا نأمل سرعة السداد تجنباً لاتخاذ الإجراء القانوني مع أهمية ارسال إيصال التحويل على رقم الواتساب (966122121912) وشكراً لتفهمكم.\nإدارة وقف حسين مرفق"]
["فلسطين (2) - 302 ","محمود عبده محمود سعيد ",null,"عزيزنا المستأجر (محمود عبده محمود سعيد ) نود إبلاغكم بوجود مستحقات متأخرة عليكم للوحدة المستأجرة في (فلسطين (2) - 302 ) لذا نأمل سرعة السداد تجنباً لاتخاذ الإجراء القانوني مع أهمية ارسال إيصال التحويل على رقم الواتساب (966122121912) وشكراً لتفهمكم.\nإدارة وقف حسين مرفق"]
["فلسطين (2) - 508 ","مختار عبده محمد برناوي ",null,"عزيزنا المستأجر (مختار عبده محمد برناوي ) نود إبلاغكم بوجود مستحقات متأخرة عليكم للوحدة المستأجرة في (فلسطين (2) - 508 ) لذا نأمل سرعة السداد تجنباً لاتخاذ الإجراء القانوني مع أهمية ارسال إيصال التحويل على رقم الواتساب (966122121912) وشكراً لتفهمكم.\nإدارة وقف حسين مرفق"]
["فلسطين (2) - 410","مختار محمد مختار الجدامي",null,"عزيزنا المستأجر (مختار محمد مختار الجدامي) نود إبلاغكم بوجود مستحقات متأخرة عليكم للوحدة المستأجرة في (فلسطين (2) - 410) لذا نأمل سرعة السداد تجنباً لاتخاذ الإجراء القانوني مع أهمية ارسال إيصال التحويل على رقم الواتساب (966122121912) وشكراً لتفهمكم.\nإدارة وقف حسين مرفق"]
["فلسطين (2) معرض - 10 ","مغسلة محمد عبدالله مانع الشهري لغسيل الملابس",null,"عزيزنا المستأجر (مغسلة محمد عبدالله مانع الشهري لغسيل الملابس) نود إبلاغكم بوجود مستحقات متأخرة عليكم للوحدة المستأجرة في (فلسطين (2) معرض - 10 ) لذا نأمل سرعة السداد تجنباً لاتخاذ الإجراء القانوني مع أهمية ارسال إيصال التحويل على رقم الواتساب (966122121912) وشكراً لتفهمكم.\nإدارة وقف حسين مرفق"]
["فلسطين (2) غرفة - 3 ","مقهى جراند بلس لتقديم الشروبات",null,"عزيزنا المستأجر (مقهى جراند بلس لتقديم الشروبات) نود إبلاغكم بوجود مستحقات متأخرة عليكم للوحدة المستأجرة في (فلسطين (2) غرفة - 3 ) لذا نأمل سرعة السداد تجنباً لاتخاذ الإجراء القانوني مع أهمية ارسال إيصال التحويل على رقم الواتساب (966122121912) وشكراً لتفهمكم.\nإدارة وقف حسين مرفق"]
["فلسطين (2) معرض - 7  - 6 ","مقهى جراند بلس لتقديم المشروبات",null,"عزيزنا المستأجر (مقهى جراند بلس لتقديم المشروبات) نود إبلاغكم بوجود مستحقات متأخرة عليكم للوحدة المستأجرة في (فلسطين (2) معرض - 7  - 6 ) لذا نأمل سرعة السداد تجنباً لاتخاذ الإجراء القانوني مع أهمية ارسال إيصال التحويل على رقم الواتساب (966122121912) وشكراً لتفهمكم.\nإدارة وقف حسين مرفق"]
["فلسطين (2) - 411 ","منصور احمد",null,"عزيزنا المستأجر (منصور احمد) نود إبلاغكم بوجود مستحقات متأخرة عليكم للوحدة المستأجرة في (فلسطين (2) - 411 ) لذا نأمل سرعة السداد تجنباً لاتخاذ الإجراء القانوني مع أهمية ارسال إيصال التحويل على رقم الواتساب (966122121912) وشكراً لتفهمكم.\nإدارة وقف حسين مرفق"]
["فلسطين (2) - 416","منور محمد طه ناجي",null,"عزيزنا المستأجر (منور محمد طه ناجي) نود إبلاغكم بوجود مستحقات متأخرة عليكم للوحدة المستأجرة في (فلسطين (2) - 416) لذا نأمل سرعة السداد تجنباً لاتخاذ الإجراء القانوني مع أهمية ارسال إيصال التحويل على رقم الواتساب (966122121912) وشكراً لتفهمكم.\nإدارة وقف حسين مرفق"]
["فلسطين (2) - 515 ","نجيب السيد السيد الفرنوانى",null,"عزيزنا المستأجر (نجيب السيد السيد الفرنوانى) نود إبلاغكم بوجود مستحقات متأخرة عليكم للوحدة المستأجرة في (فلسطين (2) - 515 ) لذا نأمل سرعة السداد تجنباً لاتخاذ الإجراء القانوني مع أهمية ارسال إيصال التحويل على رقم الواتساب (966122121912) وشكراً لتفهمكم.\nإدارة وقف حسين مرفق"]
["فلسطين (2) - 613","هبه جمال السيد محمد",null,"عزيزنا المستأجر (هبه جمال السيد محمد) نود إبلاغكم بوجود مستحقات متأخرة عليكم للوحدة المستأجرة في (فلسطين (2) - 613) لذا نأمل سرعة السداد تجنباً لاتخاذ الإجراء القانوني مع أهمية ارسال إيصال التحويل على رقم الواتساب (966122121912) وشكراً لتفهمكم.\nإدارة وقف حسين مرفق"]
["فلسطين (2) - 208","وائل عبده محمد اسماعيل",null,"عزيزنا المستأجر (وائل عبده محمد اسماعيل) نود إبلاغكم بوجود مستحقات متأخرة عليكم للوحدة المستأجرة في (فلسطين (2) - 208) لذا نأمل سرعة السداد تجنباً لاتخاذ الإجراء القانوني مع أهمية ارسال إيصال التحويل على رقم الواتساب (966122121912) وشكراً لتفهمكم.\nإدارة وقف حسين مرفق"]
["فلسطين (2) - 306","وجيه مصباح صالح صالح",null,"عزيزنا المستأجر (وجيه مصباح صالح صالح) نود إبلاغكم بوجود مستحقات متأخرة عليكم للوحدة المستأجرة في (فلسطين (2) - 306) لذا نأمل سرعة السداد تجنباً لاتخاذ الإجراء القانوني مع أهمية ارسال إيصال التحويل على رقم الواتساب (966122121912) وشكراً لتفهمكم.\nإدارة وقف حسين مرفق"]
["فلسطين (2) - 509 ","وحيد إبراهيم محمد رزق ",null,"عزيزنا المستأجر (وحيد إبراهيم محمد رزق ) نود إبلاغكم بوجود مستحقات متأخرة عليكم للوحدة المستأجرة في (فلسطين (2) - 509 ) لذا نأمل سرعة السداد تجنباً لاتخاذ الإجراء القانوني مع أهمية ارسال إيصال التحويل على رقم الواتساب (966122121912) وشكراً لتفهمكم.\nإدارة وقف حسين مرفق"]
["فلسطين (2) - 415 ","وحيد مجدى الددامونى السيد",null,"عزيزنا المستأجر (وحيد مجدى الددامونى السيد) نود إبلاغكم بوجود مستحقات متأخرة عليكم للوحدة المستأجرة في (فلسطين (2) - 415 ) لذا نأمل سرعة السداد تجنباً لاتخاذ الإجراء القانوني مع أهمية ارسال إيصال التحويل على رقم الواتساب (966122121912) وشكراً لتفهمكم.\nإدارة وقف حسين مرفق"]
["فلسطين (2) - 608","وليد يحي صالح العبدلي ",null,"عزيزنا المستأجر (وليد يحي صالح العبدلي ) نود إبلاغكم بوجود مستحقات متأخرة عليكم للوحدة المستأجرة في (فلسطين (2) - 608) لذا نأمل سرعة السداد تجنباً لاتخاذ الإجراء القانوني مع أهمية ارسال إيصال التحويل على رقم الواتساب (966122121912) وشكراً لتفهمكم.\nإدارة وقف حسين مرفق"]
["فلسطين (2) - 514","وليد يحي صالح العبدلي ",null,"عزيزنا المستأجر (وليد يحي صالح العبدلي ) نود إبلاغكم بوجود مستحقات متأخرة عليكم للوحدة المستأجرة في (فلسطين (2) - 514) لذا نأمل سرعة السداد تجنباً لاتخاذ الإجراء القانوني مع أهمية ارسال إيصال التحويل على رقم الواتساب (966122121912) وشكراً لتفهمكم.\nإدارة وقف حسين مرفق"]
["فلسطين (2) - 108 ","وهيب عبدالاله قائد عبدالقادر",null,"عزيزنا المستأجر (وهيب عبدالاله قائد عبدالقادر) نود إبلاغكم بوجود مستحقات متأخرة عليكم للوحدة المستأجرة في (فلسطين (2) - 108 ) لذا نأمل سرعة السداد تجنباً لاتخاذ الإجراء القانوني مع أهمية ارسال إيصال التحويل على رقم الواتساب (966122121912) وشكراً لتفهمكم.\nإدارة وقف حسين مرفق"]
["فلسطين (2) - 606","ياسر عزمي عنتر محمد السيد",null,"عزيزنا المستأجر (ياسر عزمي عنتر محمد السيد) نود إبلاغكم بوجود مستحقات متأخرة عليكم للوحدة المستأجرة في (فلسطين (2) - 606) لذا نأمل سرعة السداد تجنباً لاتخاذ الإجراء القانوني مع أهمية ارسال إيصال التحويل على رقم الواتساب (966122121912) وشكراً لتفهمكم.\nإدارة وقف حسين مرفق"]
["فلسطين (2) - 603","يونس يحي صالح العبدلي ",null,"عزيزنا المستأجر (يونس يحي صالح العبدلي ) نود إبلاغكم بوجود مستحقات متأخرة عليكم للوحدة المستأجرة في (فلسطين (2) - 603) لذا نأمل سرعة السداد تجنباً لاتخاذ الإجراء القانوني مع أهمية ارسال إيصال التحويل على رقم الواتساب (966122121912) وشكراً لتفهمكم.\nإدارة وقف حسين مرفق"]
["فلسطين (1) شقة  - 24","أحمد علي محمد الشاطري ",null,"عزيزنا المستأجر (أحمد علي محمد الشاطري ) نود إبلاغكم بوجود مستحقات متأخرة عليكم للوحدة المستأجرة في (فلسطين (1) شقة  - 24) لذا نأمل سرعة السداد تجنباً لاتخاذ الإجراء القانوني مع أهمية ارسال إيصال التحويل على رقم الواتساب (966122121912) وشكراً لتفهمكم.\nإدارة وقف حسين مرفق"]
["فلسطين (1) شقة  - 10 ","أحمد مصطفى حسن عثمان ",null,"عزيزنا المستأجر (أحمد مصطفى حسن عثمان ) نود إبلاغكم بوجود مستحقات متأخرة عليكم للوحدة المستأجرة في (فلسطين (1) شقة  - 10 ) لذا نأمل سرعة السداد تجنباً لاتخاذ الإجراء القانوني مع أهمية ارسال إيصال التحويل على رقم الواتساب (966122121912) وشكراً لتفهمكم.\nإدارة وقف حسين مرفق"]
["فلسطين (1) شقة  - 14 ","جمال سعيد مقبول محمد ",null,"عزيزنا المستأجر (جمال سعيد مقبول محمد ) نود إبلاغكم بوجود مستحقات متأخرة عليكم للوحدة المستأجرة في (فلسطين (1) شقة  - 14 ) لذا نأمل سرعة السداد تجنباً لاتخاذ الإجراء القانوني مع أهمية ارسال إيصال التحويل على رقم الواتساب (966122121912) وشكراً لتفهمكم.\nإدارة وقف حسين مرفق"]
["فلسطين (1) شقة  - 1 ","جميل نور عزيز عبدالشكور ",null,"عزيزنا المستأجر (جميل نور عزيز عبدالشكور ) نود إبلاغكم بوجود مستحقات متأخرة عليكم للوحدة المستأجرة في (فلسطين (1) شقة  - 1 ) لذا نأمل سرعة السداد تجنباً لاتخاذ الإجراء القانوني مع أهمية ارسال إيصال التحويل على رقم الواتساب (966122121912) وشكراً لتفهمكم.\nإدارة وقف حسين مرفق"]
["فلسطين (1) شقة  - 7 ","جهاد جواد محمد البواب ",null,"عزيزنا المستأجر (جهاد جواد محمد البواب ) نود إبلاغكم بوجود مستحقات متأخرة عليكم للوحدة المستأجرة في (فلسطين (1) شقة  - 7 ) لذا نأمل سرعة السداد تجنباً لاتخاذ الإجراء القانوني مع أهمية ارسال إيصال التحويل على رقم الواتساب (966122121912) وشكراً لتفهمكم.\nإدارة وقف حسين مرفق"]
["فلسطين (1) شقة  - 12","جهاد حماد عوض الله النيرب ",null,"عزيزنا المستأجر (جهاد حماد عوض الله النيرب ) نود إبلاغكم بوجود مستحقات متأخرة عليكم للوحدة المستأجرة في (فلسطين (1) شقة  - 12) لذا نأمل سرعة السداد تجنباً لاتخاذ الإجراء القانوني مع أهمية ارسال إيصال التحويل على رقم الواتساب (966122121912) وشكراً لتفهمكم.\nإدارة وقف حسين مرفق"]
["فلسطين (1) شقة  - 17 ","حامد منذر حامد شلا",null,"عزيزنا المستأجر (حامد منذر حامد شلا) نود إبلاغكم بوجود مستحقات متأخرة عليكم للوحدة المستأجرة في (فلسطين (1) شقة  - 17 ) لذا نأمل سرعة السداد تجنباً لاتخاذ الإجراء القانوني مع أهمية ارسال إيصال التحويل على رقم الواتساب (966122121912) وشكراً لتفهمكم.\nإدارة وقف حسين مرفق"]
["فلسطين (1) شقة  - 8 ","سعيد سالمين بن بشر",null,"عزيزنا المستأجر (سعيد سالمين بن بشر) نود إبلاغكم بوجود مستحقات متأخرة عليكم للوحدة المستأجرة في (فلسطين (1) شقة  - 8 ) لذا نأمل سرعة السداد تجنباً لاتخاذ الإجراء القانوني مع أهمية ارسال إيصال التحويل على رقم الواتساب (966122121912) وشكراً لتفهمكم.\nإدارة وقف حسين مرفق"]
["فلسطين (1) معرض - 4 ","شركة حماية للصناعة",null,"عزيزنا المستأجر (شركة حماية للصناعة) نود إبلاغكم بوجود مستحقات متأخرة عليكم للوحدة المستأجرة في (فلسطين (1) معرض - 4 ) لذا نأمل سرعة السداد تجنباً لاتخاذ الإجراء القانوني مع أهمية ارسال إيصال التحويل على رقم الواتساب (966122121912) وشكراً لتفهمكم.\nإدارة وقف حسين مرفق"]
["فلسطين (1) شقة  - 23 ","صالح عمر عوض بن عسيل",null,"عزيزنا المستأجر (صالح عمر عوض بن عسيل) نود إبلاغكم بوجود مستحقات متأخرة عليكم للوحدة المستأجرة في (فلسطين (1) شقة  - 23 ) لذا نأمل سرعة السداد تجنباً لاتخاذ الإجراء القانوني مع أهمية ارسال إيصال التحويل على رقم الواتساب (966122121912) وشكراً لتفهمكم.\nإدارة وقف حسين مرفق"]
["فلسطين (1) شقة  - 16","عبدالرحمن محمد أبوبكر عرمان ",null,"عزيزنا المستأجر (عبدالرحمن محمد أبوبكر عرمان ) نود إبلاغكم بوجود مستحقات متأخرة عليكم للوحدة المستأجرة في (فلسطين (1) شقة  - 16) لذا نأمل سرعة السداد تجنباً لاتخاذ الإجراء القانوني مع أهمية ارسال إيصال التحويل على رقم الواتساب (966122121912) وشكراً لتفهمكم.\nإدارة وقف حسين مرفق"]
["فلسطين (1) شقة  - 19","عبدالله أحمد محمد عجلان ",null,"عزيزنا المستأجر (عبدالله أحمد محمد عجلان ) نود إبلاغكم بوجود مستحقات متأخرة عليكم للوحدة المستأجرة في (فلسطين (1) شقة  - 19) لذا نأمل سرعة السداد تجنباً لاتخاذ الإجراء القانوني مع أهمية ارسال إيصال التحويل على رقم الواتساب (966122121912) وشكراً لتفهمكم.\nإدارة وقف حسين مرفق"]
["فلسطين (1) شقة  - 4 ","عبدالله علوي عبدالله البيتي ",null,"عزيزنا المستأجر (عبدالله علوي عبدالله البيتي ) نود إبلاغكم بوجود مستحقات متأخرة عليكم للوحدة المستأجرة في (فلسطين (1) شقة  - 4 ) لذا نأمل سرعة السداد تجنباً لاتخاذ الإجراء القانوني مع أهمية ارسال إيصال التحويل على رقم الواتساب (966122121912) وشكراً لتفهمكم.\nإدارة وقف حسين مرفق"]
["فلسطين (1) شقة  - 20","عبدالهادي رزق الله شغينب ال جريه اليزيدي ",null,"عزيزنا المستأجر (عبدالهادي رزق الله شغينب ال جريه اليزيدي ) نود إبلاغكم بوجود مستحقات متأخرة عليكم للوحدة المستأجرة في (فلسطين (1) شقة  - 20) لذا نأمل سرعة السداد تجنباً لاتخاذ الإجراء القانوني مع أهمية ارسال إيصال التحويل على رقم الواتساب (966122121912) وشكراً لتفهمكم.\nإدارة وقف حسين مرفق"]
["فلسطين (1) شقة  - 3 ","علي محمد عبده هتان ",null,"عزيزنا المستأجر (علي محمد عبده هتان ) نود إبلاغكم بوجود مستحقات متأخرة عليكم للوحدة المستأجرة في (فلسطين (1) شقة  - 3 ) لذا نأمل سرعة السداد تجنباً لاتخاذ الإجراء القانوني مع أهمية ارسال إيصال التحويل على رقم الواتساب (966122121912) وشكراً لتفهمكم.\nإدارة وقف حسين مرفق"]
["فلسطين (1) شقة  - 9 ","عيده سالم علي",null,"عزيزنا المستأجر (عيده سالم علي) نود إبلاغكم بوجود مستحقات متأخرة عليكم للوحدة المستأجرة في (فلسطين (1) شقة  - 9 ) لذا نأمل سرعة السداد تجنباً لاتخاذ الإجراء القانوني مع أهمية ارسال إيصال التحويل على رقم الواتساب (966122121912) وشكراً لتفهمكم.\nإدارة وقف حسين مرفق"]
["فلسطين (1) شقة  - 13","محمد عبدالله القربي",null,"عزيزنا المستأجر (محمد عبدالله القربي) نود إبلاغكم بوجود مستحقات متأخرة عليكم للوحدة المستأجرة في (فلسطين (1) شقة  - 13) لذا نأمل سرعة السداد تجنباً لاتخاذ الإجراء القانوني مع أهمية ارسال إيصال التحويل على رقم الواتساب (966122121912) وشكراً لتفهمكم.\nإدارة وقف حسين مرفق"]
["فلسطين (1) شقة  - 22 ","محمد مصطفي يوسف أبو جياب",null,"عزيزنا المستأجر (محمد مصطفي يوسف أبو جياب) نود إبلاغكم بوجود مستحقات متأخرة عليكم للوحدة المستأجرة في (فلسطين (1) شقة  - 22 ) لذا نأمل سرعة السداد تجنباً لاتخاذ الإجراء القانوني مع أهمية ارسال إيصال التحويل على رقم الواتساب (966122121912) وشكراً لتفهمكم.\nإدارة وقف حسين مرفق"]
["فلسطين (1) شقة  - 15 ","محمد منذر حامد شلا",null,"عزيزنا المستأجر (محمد منذر حامد شلا) نود إبلاغكم بوجود مستحقات متأخرة عليكم للوحدة المستأجرة في (فلسطين (1) شقة  - 15 ) لذا نأمل سرعة السداد تجنباً لاتخاذ الإجراء القانوني مع أهمية ارسال إيصال التحويل على رقم الواتساب (966122121912) وشكراً لتفهمكم.\nإدارة وقف حسين مرفق"]
["فلسطين (1) شقة  - 18 ","مرزا جوهر حكيم مرزا أحمد ",null,"عزيزنا المستأجر (مرزا جوهر حكيم مرزا أحمد ) نود إبلاغكم بوجود مستحقات متأخرة عليكم للوحدة المستأجرة في (فلسطين (1) شقة  - 18 ) لذا نأمل سرعة السداد تجنباً لاتخاذ الإجراء القانوني مع أهمية ارسال إيصال التحويل على رقم الواتساب (966122121912) وشكراً لتفهمكم.\nإدارة وقف حسين مرفق"]
["فلسطين (1) شقة  - 5 ","منذر حامد سلامه شلا ",null,"عزيزنا المستأجر (منذر حامد سلامه شلا ) نود إبلاغكم بوجود مستحقات متأخرة عليكم للوحدة المستأجرة في (فلسطين (1) شقة  - 5 ) لذا نأمل سرعة السداد تجنباً لاتخاذ الإجراء القانوني مع أهمية ارسال إيصال التحويل على رقم الواتساب (966122121912) وشكراً لتفهمكم.\nإدارة وقف حسين مرفق"]
["فلسطين (1) معرض - 3","مؤسسة خالد عبدالله صالح عطيه للتجاره",null,"عزيزنا المستأجر (مؤسسة خالد عبدالله صالح عطيه للتجاره) نود إبلاغكم بوجود مستحقات متأخرة عليكم للوحدة المستأجرة في (فلسطين (1) معرض - 3) لذا نأمل سرعة السداد تجنباً لاتخاذ الإجراء القانوني مع أهمية ارسال إيصال التحويل على رقم الواتساب (966122121912) وشكراً لتفهمكم.\nإدارة وقف حسين مرفق"]
["فلسطين (1) معرض - 2","مؤسسة سما الفنية للأجهزة السلامة ",null,"عزيزنا المستأجر (مؤسسة سما الفنية للأجهزة السلامة ) نود إبلاغكم بوجود مستحقات متأخرة عليكم للوحدة المستأجرة في (فلسطين (1) معرض - 2) لذا نأمل سرعة السداد تجنباً لاتخاذ الإجراء القانوني مع أهمية ارسال إيصال التحويل على رقم الواتساب (966122121912) وشكراً لتفهمكم.\nإدارة وقف حسين مرفق"]
["فلسطين (1) معرض - 1","مؤسسة مدارات النفود للتجارة ",null,"عزيزنا المستأجر (مؤسسة مدارات النفود للتجارة ) نود إبلاغكم بوجود مستحقات متأخرة عليكم للوحدة المستأجرة في (فلسطين (1) معرض - 1) لذا نأمل سرعة السداد تجنباً لاتخاذ الإجراء القانوني مع أهمية ارسال إيصال التحويل على رقم الواتساب (966122121912) وشكراً لتفهمكم.\nإدارة وقف حسين مرفق"]
["فلسطين (1) شقة  - 11 ","ناصر سالم محمد سالم القربي ",null,"عزيزنا المستأجر (ناصر سالم محمد سالم القربي ) نود إبلاغكم بوجود مستحقات متأخرة عليكم للوحدة المستأجرة في (فلسطين (1) شقة  - 11 ) لذا نأمل سرعة السداد تجنباً لاتخاذ الإجراء القانوني مع أهمية ارسال إيصال التحويل على رقم الواتساب (966122121912) وشكراً لتفهمكم.\nإدارة وقف حسين مرفق"]
["فلسطين (1) شقة  - 21","هاني عبدالله علوي البيتي",null,{"$f":"\"عزيزنا المستأجر (\"&$B325&\") نود إبلاغكم بوجود مستحقات متأخرة عليكم للوحدة المستأجرة في (\"&$A325&\") لذا نأمل سرعة السداد تجنباً لاتخاذ الإجراء القانوني مع أهمية ارسال إيصال التحويل على رقم الواتساب (966122121912) وشكراً لتفهمكم.\nإدارة وقف حسين مرفق\"","v":"عزيزنا المستأجر (هاني عبدالله علوي البيتي) نود إبلاغكم بوجود مستحقات متأخرة عليكم للوحدة المستأجرة في (فلسطين (1) شقة  - 21) لذا نأمل سرعة السداد تجنباً لاتخاذ الإجراء القانوني مع أهمية ارسال إيصال التحويل على رقم الواتساب (966122121912) وشكراً لتفهمكم.\nإدارة وقف حسين مرفق"}]
["فلسطين (1) شقة  - 6","هدي علي عبيد باعمير",null,"عزيزنا المستأجر (هدي علي عبيد باعمير) نود إبلاغكم بوجود مستحقات متأخرة عليكم للوحدة المستأجرة في (فلسطين (1) شقة  - 6) لذا نأمل سرعة السداد تجنباً لاتخاذ الإجراء القانوني مع أهمية ارسال إيصال التحويل على رقم الواتساب (966122121912) وشكراً لتفهمكم.\nإدارة وقف حسين مرفق"]
["فلسطين (1) شقة  - 2","وليد إبراهيم صالح صلاح ",null,"عزيزنا المستأجر (وليد إبراهيم صالح صلاح ) نود إبلاغكم بوجود مستحقات متأخرة عليكم للوحدة المستأجرة في (فلسطين (1) شقة  - 2) لذا نأمل سرعة السداد تجنباً لاتخاذ الإجراء القانوني مع أهمية ارسال إيصال التحويل على رقم الواتساب (966122121912) وشكراً لتفهمكم.\nإدارة وقف حسين مرفق"]
["الستين النازل شقة - 13","حسين ابوبكر احمد بازرعة",null,"عزيزنا المستأجر (حسين ابوبكر احمد بازرعة) نود إبلاغكم بوجود مستحقات متأخرة عليكم للوحدة المستأجرة في (الستين النازل شقة - 13) لذا نأمل سرعة السداد تجنباً لاتخاذ الإجراء القانوني مع أهمية ارسال إيصال التحويل على رقم الواتساب (966122121912) وشكراً لتفهمكم.\nإدارة وقف حسين مرفق"]
["الستين النازل شقة - 8","خليل علي حسين البيتي",null,"عزيزنا المستأجر (خليل علي حسين البيتي) نود إبلاغكم بوجود مستحقات متأخرة عليكم للوحدة المستأجرة في (الستين النازل شقة - 8) لذا نأمل سرعة السداد تجنباً لاتخاذ الإجراء القانوني مع أهمية ارسال إيصال التحويل على رقم الواتساب (966122121912) وشكراً لتفهمكم.\nإدارة وقف حسين مرفق"]
["الستين النازل شقة - 2 ","عبدالرحمن عبدالله سعيد باحسن",null,"عزيزنا المستأجر (عبدالرحمن عبدالله سعيد باحسن) نود إبلاغكم بوجود مستحقات متأخرة عليكم للوحدة المستأجرة في (الستين النازل شقة - 2 ) لذا نأمل سرعة السداد تجنباً لاتخاذ الإجراء القانوني مع أهمية ارسال إيصال التحويل على رقم الواتساب (966122121912) وشكراً لتفهمكم.\nإدارة وقف حسين مرفق"]
["الستين النازل شقة - 10","عصمت محمد - عبدالحليم",null,"عزيزنا المستأجر (عصمت محمد - عبدالحليم) نود إبلاغكم بوجود مستحقات متأخرة عليكم للوحدة المستأجرة في (الستين النازل شقة - 10) لذا نأمل سرعة السداد تجنباً لاتخاذ الإجراء القانوني مع أهمية ارسال إيصال التحويل على رقم الواتساب (966122121912) وشكراً لتفهمكم.\nإدارة وقف حسين مرفق"]
["الستين النازل شقة - 14","عماد عبدالله باقتاده",null,"عزيزنا المستأجر (عماد عبدالله باقتاده) نود إبلاغكم بوجود مستحقات متأخرة عليكم للوحدة المستأجرة في (الستين النازل شقة - 14) لذا نأمل سرعة السداد تجنباً لاتخاذ الإجراء القانوني مع أهمية ارسال إيصال التحويل على رقم الواتساب (966122121912) وشكراً لتفهمكم.\nإدارة وقف حسين مرفق"]
["الستين النازل شقة - 12","قاسم سبير حسن نوران شاه",null,"عزيزنا المستأجر (قاسم سبير حسن نوران شاه) نود إبلاغكم بوجود مستحقات متأخرة عليكم للوحدة المستأجرة في (الستين النازل شقة - 12) لذا نأمل سرعة السداد تجنباً لاتخاذ الإجراء القانوني مع أهمية ارسال إيصال التحويل على رقم الواتساب (966122121912) وشكراً لتفهمكم.\nإدارة وقف حسين مرفق"]
["الستين النازل شقة - 6","محمد ابراهيم احمد المهدي",null,"عزيزنا المستأجر (محمد ابراهيم احمد المهدي) نود إبلاغكم بوجود مستحقات متأخرة عليكم للوحدة المستأجرة في (الستين النازل شقة - 6) لذا نأمل سرعة السداد تجنباً لاتخاذ الإجراء القانوني مع أهمية ارسال إيصال التحويل على رقم الواتساب (966122121912) وشكراً لتفهمكم.\nإدارة وقف حسين مرفق"]
["الستين النازل شقة - 1 ","محمد فريد عبدالغني احمد فتح الباب",null,"عزيزنا المستأجر (محمد فريد عبدالغني احمد فتح الباب) نود إبلاغكم بوجود مستحقات متأخرة عليكم للوحدة المستأجرة في (الستين النازل شقة - 1 ) لذا نأمل سرعة السداد تجنباً لاتخاذ الإجراء القانوني مع أهمية ارسال إيصال التحويل على رقم الواتساب (966122121912) وشكراً لتفهمكم.\nإدارة وقف حسين مرفق"]
["الستين النازل شقة - 4 ","مدحت عمر حسن عليوه",null,"عزيزنا المستأجر (مدحت عمر حسن عليوه) نود إبلاغكم بوجود مستحقات متأخرة عليكم للوحدة المستأجرة في (الستين النازل شقة - 4 ) لذا نأمل سرعة السداد تجنباً لاتخاذ الإجراء القانوني مع أهمية ارسال إيصال التحويل على رقم الواتساب (966122121912) وشكراً لتفهمكم.\nإدارة وقف حسين مرفق"]
["الستين النازل معرض - 2- 1 ","مطعم يلا ناكل لتقديم الوجبات",null,"عزيزنا المستأجر (مطعم يلا ناكل لتقديم الوجبات) نود إبلاغكم بوجود مستحقات متأخرة عليكم للوحدة المستأجرة في (الستين النازل معرض - 2- 1 ) لذا نأمل سرعة السداد تجنباً لاتخاذ الإجراء القانوني مع أهمية ارسال إيصال التحويل على رقم الواتساب (966122121912) وشكراً لتفهمكم.\nإدارة وقف حسين مرفق"]
["الستين النازل شقة - 11","موسى محمد حسن",null,"عزيزنا المستأجر (موسى محمد حسن) نود إبلاغكم بوجود مستحقات متأخرة عليكم للوحدة المستأجرة في (الستين النازل شقة - 11) لذا نأمل سرعة السداد تجنباً لاتخاذ الإجراء القانوني مع أهمية ارسال إيصال التحويل على رقم الواتساب (966122121912) وشكراً لتفهمكم.\nإدارة وقف حسين مرفق"]
["الستين النازل معرض - 5","مؤسسة اساسات برج النيل للمقاولات عامة",null,"عزيزنا المستأجر (مؤسسة اساسات برج النيل للمقاولات عامة) نود إبلاغكم بوجود مستحقات متأخرة عليكم للوحدة المستأجرة في (الستين النازل معرض - 5) لذا نأمل سرعة السداد تجنباً لاتخاذ الإجراء القانوني مع أهمية ارسال إيصال التحويل على رقم الواتساب (966122121912) وشكراً لتفهمكم.\nإدارة وقف حسين مرفق"]
["الستين النازل معرض - 3- 4 ","مؤسسة حنان معيوض فرحان الحارثي التجارية",null,"عزيزنا المستأجر (مؤسسة حنان معيوض فرحان الحارثي التجارية) نود إبلاغكم بوجود مستحقات متأخرة عليكم للوحدة المستأجرة في (الستين النازل معرض - 3- 4 ) لذا نأمل سرعة السداد تجنباً لاتخاذ الإجراء القانوني مع أهمية ارسال إيصال التحويل على رقم الواتساب (966122121912) وشكراً لتفهمكم.\nإدارة وقف حسين مرفق"]
["الستين النازل ملحق - 1","وهيب بن محمد بن عمر باخشويين",null,"عزيزنا المستأجر (وهيب بن محمد بن عمر باخشويين) نود إبلاغكم بوجود مستحقات متأخرة عليكم للوحدة المستأجرة في (الستين النازل ملحق - 1) لذا نأمل سرعة السداد تجنباً لاتخاذ الإجراء القانوني مع أهمية ارسال إيصال التحويل على رقم الواتساب (966122121912) وشكراً لتفهمكم.\nإدارة وقف حسين مرفق"]
["الستين النازل شقة - 15","وهيب بن محمد بن عمر باخشويين",null,"عزيزنا المستأجر (وهيب بن محمد بن عمر باخشويين) نود إبلاغكم بوجود مستحقات متأخرة عليكم للوحدة المستأجرة في (الستين النازل شقة - 15) لذا نأمل سرعة السداد تجنباً لاتخاذ الإجراء القانوني مع أهمية ارسال إيصال التحويل على رقم الواتساب (966122121912) وشكراً لتفهمكم.\nإدارة وقف حسين مرفق"]
["الحجاز (1) مكتب - 14 - 13","جمعية الحافظ لتأهيل القرآن الكريم",null,"عزيزنا المستأجر (جمعية الحافظ لتأهيل القرآن الكريم) نود إبلاغكم بوجود مستحقات متأخرة عليكم للوحدة المستأجرة في (الحجاز (1) مكتب - 14 - 13) لذا نأمل سرعة السداد تجنباً لاتخاذ الإجراء القانوني مع أهمية ارسال إيصال التحويل على رقم الواتساب (966122121912) وشكراً لتفهمكم.\nإدارة وقف حسين مرفق"]
["الحجاز (1) مكتب - 15 ","شركة التقنية الرقمية المحدودة   ",null,"عزيزنا المستأجر (شركة التقنية الرقمية المحدودة   ) نود إبلاغكم بوجود مستحقات متأخرة عليكم للوحدة المستأجرة في (الحجاز (1) مكتب - 15 ) لذا نأمل سرعة السداد تجنباً لاتخاذ الإجراء القانوني مع أهمية ارسال إيصال التحويل على رقم الواتساب (966122121912) وشكراً لتفهمكم.\nإدارة وقف حسين مرفق"]
["الحجاز (1) معرض - 4 - 5 - 6","شركة الراجحي للبناء والتعمير",null,"عزيزنا المستأجر (شركة الراجحي للبناء والتعمير) نود إبلاغكم بوجود مستحقات متأخرة عليكم للوحدة المستأجرة في (الحجاز (1) معرض - 4 - 5 - 6) لذا نأمل سرعة السداد تجنباً لاتخاذ الإجراء القانوني مع أهمية ارسال إيصال التحويل على رقم الواتساب (966122121912) وشكراً لتفهمكم.\nإدارة وقف حسين مرفق"]
["الحجاز (1) مكتب - 18 ","شركة الوسائط لخدمات العمرة والزيارة المحدودة",null,"عزيزنا المستأجر (شركة الوسائط لخدمات العمرة والزيارة المحدودة) نود إبلاغكم بوجود مستحقات متأخرة عليكم للوحدة المستأجرة في (الحجاز (1) مكتب - 18 ) لذا نأمل سرعة السداد تجنباً لاتخاذ الإجراء القانوني مع أهمية ارسال إيصال التحويل على رقم الواتساب (966122121912) وشكراً لتفهمكم.\nإدارة وقف حسين مرفق"]
["الحجاز (1) مكتب - 16/B","شركة عبدالله حمدان مشيد الشمري للتجارة",null,"عزيزنا المستأجر (شركة عبدالله حمدان مشيد الشمري للتجارة) نود إبلاغكم بوجود مستحقات متأخرة عليكم للوحدة المستأجرة في (الحجاز (1) مكتب - 16/B) لذا نأمل سرعة السداد تجنباً لاتخاذ الإجراء القانوني مع أهمية ارسال إيصال التحويل على رقم الواتساب (966122121912) وشكراً لتفهمكم.\nإدارة وقف حسين مرفق"]
["الحجاز (1) مكتب - 3 ","شركة كنان الإنشائية للمقاولات شركة شخص واحد",null,"عزيزنا المستأجر (شركة كنان الإنشائية للمقاولات شركة شخص واحد) نود إبلاغكم بوجود مستحقات متأخرة عليكم للوحدة المستأجرة في (الحجاز (1) مكتب - 3 ) لذا نأمل سرعة السداد تجنباً لاتخاذ الإجراء القانوني مع أهمية ارسال إيصال التحويل على رقم الواتساب (966122121912) وشكراً لتفهمكم.\nإدارة وقف حسين مرفق"]
["الحجاز (1) معرض - 7 - 8 ","شركة لمار جدة التجارية",null,"عزيزنا المستأجر (شركة لمار جدة التجارية) نود إبلاغكم بوجود مستحقات متأخرة عليكم للوحدة المستأجرة في (الحجاز (1) معرض - 7 - 8 ) لذا نأمل سرعة السداد تجنباً لاتخاذ الإجراء القانوني مع أهمية ارسال إيصال التحويل على رقم الواتساب (966122121912) وشكراً لتفهمكم.\nإدارة وقف حسين مرفق"]
["الحجاز (1) مكتب - 9","شركة مسايا الزهور للتجارة",null,"عزيزنا المستأجر (شركة مسايا الزهور للتجارة) نود إبلاغكم بوجود مستحقات متأخرة عليكم للوحدة المستأجرة في (الحجاز (1) مكتب - 9) لذا نأمل سرعة السداد تجنباً لاتخاذ الإجراء القانوني مع أهمية ارسال إيصال التحويل على رقم الواتساب (966122121912) وشكراً لتفهمكم.\nإدارة وقف حسين مرفق"]
["الحجاز (1) مكتب - 17 ","عادل محمد امين الطيب الروزي",null,"عزيزنا المستأجر (عادل محمد امين الطيب الروزي) نود إبلاغكم بوجود مستحقات متأخرة عليكم للوحدة المستأجرة في (الحجاز (1) مكتب - 17 ) لذا نأمل سرعة السداد تجنباً لاتخاذ الإجراء القانوني مع أهمية ارسال إيصال التحويل على رقم الواتساب (966122121912) وشكراً لتفهمكم.\nإدارة وقف حسين مرفق"]
["الحجاز (1) مكتب - 6 ","عبدالرحمن محمد جمل الزهراني",null,"عزيزنا المستأجر (عبدالرحمن محمد جمل الزهراني) نود إبلاغكم بوجود مستحقات متأخرة عليكم للوحدة المستأجرة في (الحجاز (1) مكتب - 6 ) لذا نأمل سرعة السداد تجنباً لاتخاذ الإجراء القانوني مع أهمية ارسال إيصال التحويل على رقم الواتساب (966122121912) وشكراً لتفهمكم.\nإدارة وقف حسين مرفق"]
["الحجاز (1) مكتب - 10 ","مكتب خالد رمضان محمد الدقاس الزهراني للمحاماه",null,"عزيزنا المستأجر (مكتب خالد رمضان محمد الدقاس الزهراني للمحاماه) نود إبلاغكم بوجود مستحقات متأخرة عليكم للوحدة المستأجرة في (الحجاز (1) مكتب - 10 ) لذا نأمل سرعة السداد تجنباً لاتخاذ الإجراء القانوني مع أهمية ارسال إيصال التحويل على رقم الواتساب (966122121912) وشكراً لتفهمكم.\nإدارة وقف حسين مرفق"]
["الحجاز (1) معرض - 1 ","مؤسسة المعادن الراقيه للمقاولات",null,"عزيزنا المستأجر (مؤسسة المعادن الراقيه للمقاولات) نود إبلاغكم بوجود مستحقات متأخرة عليكم للوحدة المستأجرة في (الحجاز (1) معرض - 1 ) لذا نأمل سرعة السداد تجنباً لاتخاذ الإجراء القانوني مع أهمية ارسال إيصال التحويل على رقم الواتساب (966122121912) وشكراً لتفهمكم.\nإدارة وقف حسين مرفق"]
["الحجاز (1) مكتب - 20","مؤسسة خالد حسين علي مرفق للمقاولات",null,"عزيزنا المستأجر (مؤسسة خالد حسين علي مرفق للمقاولات) نود إبلاغكم بوجود مستحقات متأخرة عليكم للوحدة المستأجرة في (الحجاز (1) مكتب - 20) لذا نأمل سرعة السداد تجنباً لاتخاذ الإجراء القانوني مع أهمية ارسال إيصال التحويل على رقم الواتساب (966122121912) وشكراً لتفهمكم.\nإدارة وقف حسين مرفق"]
["الحجاز (1) معرض - 2 ","مؤسسة صقر الحجاز للتجارة",null,"عزيزنا المستأجر (مؤسسة صقر الحجاز للتجارة) نود إبلاغكم بوجود مستحقات متأخرة عليكم للوحدة المستأجرة في (الحجاز (1) معرض - 2 ) لذا نأمل سرعة السداد تجنباً لاتخاذ الإجراء القانوني مع أهمية ارسال إيصال التحويل على رقم الواتساب (966122121912) وشكراً لتفهمكم.\nإدارة وقف حسين مرفق"]
["الحجاز (1) مكتب - 4 ","مؤسسة عدسة الحياة للأنتاج الفني",null,"عزيزنا المستأجر (مؤسسة عدسة الحياة للأنتاج الفني) نود إبلاغكم بوجود مستحقات متأخرة عليكم للوحدة المستأجرة في (الحجاز (1) مكتب - 4 ) لذا نأمل سرعة السداد تجنباً لاتخاذ الإجراء القانوني مع أهمية ارسال إيصال التحويل على رقم الواتساب (966122121912) وشكراً لتفهمكم.\nإدارة وقف حسين مرفق"]
["الحجاز (1) مكتب - 5 ","مؤسسة ماجد سعيد علي عبدون التجارية",null,"عزيزنا المستأجر (مؤسسة ماجد سعيد علي عبدون التجارية) نود إبلاغكم بوجود مستحقات متأخرة عليكم للوحدة المستأجرة في (الحجاز (1) مكتب - 5 ) لذا نأمل سرعة السداد تجنباً لاتخاذ الإجراء القانوني مع أهمية ارسال إيصال التحويل على رقم الواتساب (966122121912) وشكراً لتفهمكم.\nإدارة وقف حسين مرفق"]
["الحجاز (1) مكتب - 7 ","مؤسسة هتان حسني شفيق البوجي للتجارة",null,"عزيزنا المستأجر (مؤسسة هتان حسني شفيق البوجي للتجارة) نود إبلاغكم بوجود مستحقات متأخرة عليكم للوحدة المستأجرة في (الحجاز (1) مكتب - 7 ) لذا نأمل سرعة السداد تجنباً لاتخاذ الإجراء القانوني مع أهمية ارسال إيصال التحويل على رقم الواتساب (966122121912) وشكراً لتفهمكم.\nإدارة وقف حسين مرفق"]
["الحجاز (1) معرض - 3","وكالة سالم بن عبيد بن سالم نيب للسفر و السياحة",null,"عزيزنا المستأجر (وكالة سالم بن عبيد بن سالم نيب للسفر و السياحة) نود إبلاغكم بوجود مستحقات متأخرة عليكم للوحدة المستأجرة في (الحجاز (1) معرض - 3) لذا نأمل سرعة السداد تجنباً لاتخاذ الإجراء القانوني مع أهمية ارسال إيصال التحويل على رقم الواتساب (966122121912) وشكراً لتفهمكم.\nإدارة وقف حسين مرفق"]
["الحجاز (2) مكتب - 24 A ","جمعية تطوير التدريب والاستشارات",null,"عزيزنا المستأجر (جمعية تطوير التدريب والاستشارات) نود إبلاغكم بوجود مستحقات متأخرة عليكم للوحدة المستأجرة في (الحجاز (2) مكتب - 24 A ) لذا نأمل سرعة السداد تجنباً لاتخاذ الإجراء القانوني مع أهمية ارسال إيصال التحويل على رقم الواتساب (966122121912) وشكراً لتفهمكم.\nإدارة وقف حسين مرفق"]
["الحجاز (2) مكتب - 11 ","دار ريادة للنشر والتوزيع",null,"عزيزنا المستأجر (دار ريادة للنشر والتوزيع) نود إبلاغكم بوجود مستحقات متأخرة عليكم للوحدة المستأجرة في (الحجاز (2) مكتب - 11 ) لذا نأمل سرعة السداد تجنباً لاتخاذ الإجراء القانوني مع أهمية ارسال إيصال التحويل على رقم الواتساب (966122121912) وشكراً لتفهمكم.\nإدارة وقف حسين مرفق"]
["الحجاز (2) مكتب - 28 B ","شركة القطب المميز 28 B",null,"عزيزنا المستأجر (شركة القطب المميز 28 B) نود إبلاغكم بوجود مستحقات متأخرة عليكم للوحدة المستأجرة في (الحجاز (2) مكتب - 28 B ) لذا نأمل سرعة السداد تجنباً لاتخاذ الإجراء القانوني مع أهمية ارسال إيصال التحويل على رقم الواتساب (966122121912) وشكراً لتفهمكم.\nإدارة وقف حسين مرفق"]
["الحجاز (2) مكتب - 28 A ","شركة القطب المميز 28A",null,"عزيزنا المستأجر (شركة القطب المميز 28A) نود إبلاغكم بوجود مستحقات متأخرة عليكم للوحدة المستأجرة في (الحجاز (2) مكتب - 28 A ) لذا نأمل سرعة السداد تجنباً لاتخاذ الإجراء القانوني مع أهمية ارسال إيصال التحويل على رقم الواتساب (966122121912) وشكراً لتفهمكم.\nإدارة وقف حسين مرفق"]
["الحجاز (2) مكتب - 30","شركة المدى الذكي للاتصالات و تقنية المعلومات",null,"عزيزنا المستأجر (شركة المدى الذكي للاتصالات و تقنية المعلومات) نود إبلاغكم بوجود مستحقات متأخرة عليكم للوحدة المستأجرة في (الحجاز (2) مكتب - 30) لذا نأمل سرعة السداد تجنباً لاتخاذ الإجراء القانوني مع أهمية ارسال إيصال التحويل على رقم الواتساب (966122121912) وشكراً لتفهمكم.\nإدارة وقف حسين مرفق"]
["الحجاز (2) معرض - 5- 4 ","شركة آل سلطان للمقاولات",null,"عزيزنا المستأجر (شركة آل سلطان للمقاولات) نود إبلاغكم بوجود مستحقات متأخرة عليكم للوحدة المستأجرة في (الحجاز (2) معرض - 5- 4 ) لذا نأمل سرعة السداد تجنباً لاتخاذ الإجراء القانوني مع أهمية ارسال إيصال التحويل على رقم الواتساب (966122121912) وشكراً لتفهمكم.\nإدارة وقف حسين مرفق"]
["الحجاز (2) مكتب - 5","شركة جبال فاران للاستشارات الهندسية",null,"عزيزنا المستأجر (شركة جبال فاران للاستشارات الهندسية) نود إبلاغكم بوجود مستحقات متأخرة عليكم للوحدة المستأجرة في (الحجاز (2) مكتب - 5) لذا نأمل سرعة السداد تجنباً لاتخاذ الإجراء القانوني مع أهمية ارسال إيصال التحويل على رقم الواتساب (966122121912) وشكراً لتفهمكم.\nإدارة وقف حسين مرفق"]
["الحجاز (2) مكتب - 29 ","شركة شلفا العالمية للتجارة والمقاولات",null,"عزيزنا المستأجر (شركة شلفا العالمية للتجارة والمقاولات) نود إبلاغكم بوجود مستحقات متأخرة عليكم للوحدة المستأجرة في (الحجاز (2) مكتب - 29 ) لذا نأمل سرعة السداد تجنباً لاتخاذ الإجراء القانوني مع أهمية ارسال إيصال التحويل على رقم الواتساب (966122121912) وشكراً لتفهمكم.\nإدارة وقف حسين مرفق"]
["الحجاز (2) معرض - 2- 1","شركة عبدالعزيز و سعد المعجل للتجارة والاستثمار",null,"عزيزنا المستأجر (شركة عبدالعزيز و سعد المعجل للتجارة والاستثمار) نود إبلاغكم بوجود مستحقات متأخرة عليكم للوحدة المستأجرة في (الحجاز (2) معرض - 2- 1) لذا نأمل سرعة السداد تجنباً لاتخاذ الإجراء القانوني مع أهمية ارسال إيصال التحويل على رقم الواتساب (966122121912) وشكراً لتفهمكم.\nإدارة وقف حسين مرفق"]
["الحجاز(2) غرفة - 3 - 4- 5- 6","شركة عبدالعزيز وسعد المعجل",null,"عزيزنا المستأجر (شركة عبدالعزيز وسعد المعجل) نود إبلاغكم بوجود مستحقات متأخرة عليكم للوحدة المستأجرة في (الحجاز(2) غرفة - 3 - 4- 5- 6) لذا نأمل سرعة السداد تجنباً لاتخاذ الإجراء القانوني مع أهمية ارسال إيصال التحويل على رقم الواتساب (966122121912) وشكراً لتفهمكم.\nإدارة وقف حسين مرفق"]
["الحجاز (2) مكتب - 20","شركة مجموعة جسر الاستثمار القابضة",null,"عزيزنا المستأجر (شركة مجموعة جسر الاستثمار القابضة) نود إبلاغكم بوجود مستحقات متأخرة عليكم للوحدة المستأجرة في (الحجاز (2) مكتب - 20) لذا نأمل سرعة السداد تجنباً لاتخاذ الإجراء القانوني مع أهمية ارسال إيصال التحويل على رقم الواتساب (966122121912) وشكراً لتفهمكم.\nإدارة وقف حسين مرفق"]
["الحجاز (2) مكتب - 9","شركة نفحات القهوة لتقديم المشروبات شركة شخص واحد",null,"عزيزنا المستأجر (شركة نفحات القهوة لتقديم المشروبات شركة شخص واحد) نود إبلاغكم بوجود مستحقات متأخرة عليكم للوحدة المستأجرة في (الحجاز (2) مكتب - 9) لذا نأمل سرعة السداد تجنباً لاتخاذ الإجراء القانوني مع أهمية ارسال إيصال التحويل على رقم الواتساب (966122121912) وشكراً لتفهمكم.\nإدارة وقف حسين مرفق"]
["الحجاز (2) معرض - 6 - 7","فرع شركة الخطوط الجوية اليمنية",null,"عزيزنا المستأجر (فرع شركة الخطوط الجوية اليمنية) نود إبلاغكم بوجود مستحقات متأخرة عليكم للوحدة المستأجرة في (الحجاز (2) معرض - 6 - 7) لذا نأمل سرعة السداد تجنباً لاتخاذ الإجراء القانوني مع أهمية ارسال إيصال التحويل على رقم الواتساب (966122121912) وشكراً لتفهمكم.\nإدارة وقف حسين مرفق"]
["الحجاز (2) مكتب - 13","فريد بن محمد بن علي بن مساعد المغربي",null,"عزيزنا المستأجر (فريد بن محمد بن علي بن مساعد المغربي) نود إبلاغكم بوجود مستحقات متأخرة عليكم للوحدة المستأجرة في (الحجاز (2) مكتب - 13) لذا نأمل سرعة السداد تجنباً لاتخاذ الإجراء القانوني مع أهمية ارسال إيصال التحويل على رقم الواتساب (966122121912) وشكراً لتفهمكم.\nإدارة وقف حسين مرفق"]
["الحجاز (2) مكتب - 10","محل نفحات القهوه لتقديم المشروبات",null,"عزيزنا المستأجر (محل نفحات القهوه لتقديم المشروبات) نود إبلاغكم بوجود مستحقات متأخرة عليكم للوحدة المستأجرة في (الحجاز (2) مكتب - 10) لذا نأمل سرعة السداد تجنباً لاتخاذ الإجراء القانوني مع أهمية ارسال إيصال التحويل على رقم الواتساب (966122121912) وشكراً لتفهمكم.\nإدارة وقف حسين مرفق"]
["الحجاز (2) مكتب - 24 B ","مركز هبوب للتدريب",null,"عزيزنا المستأجر (مركز هبوب للتدريب) نود إبلاغكم بوجود مستحقات متأخرة عليكم للوحدة المستأجرة في (الحجاز (2) مكتب - 24 B ) لذا نأمل سرعة السداد تجنباً لاتخاذ الإجراء القانوني مع أهمية ارسال إيصال التحويل على رقم الواتساب (966122121912) وشكراً لتفهمكم.\nإدارة وقف حسين مرفق"]
["الحجاز (2) مكتب - 25 A","مكتب ابوبكر احمد بامفلح للاستشارات الهندسية",null,"عزيزنا المستأجر (مكتب ابوبكر احمد بامفلح للاستشارات الهندسية) نود إبلاغكم بوجود مستحقات متأخرة عليكم للوحدة المستأجرة في (الحجاز (2) مكتب - 25 A) لذا نأمل سرعة السداد تجنباً لاتخاذ الإجراء القانوني مع أهمية ارسال إيصال التحويل على رقم الواتساب (966122121912) وشكراً لتفهمكم.\nإدارة وقف حسين مرفق"]
["الحجاز (2) مكتب - 25 B","مكتب ابوبكر احمد بامفلح للاستشارات الهندسية",null,"عزيزنا المستأجر (مكتب ابوبكر احمد بامفلح للاستشارات الهندسية) نود إبلاغكم بوجود مستحقات متأخرة عليكم للوحدة المستأجرة في (الحجاز (2) مكتب - 25 B) لذا نأمل سرعة السداد تجنباً لاتخاذ الإجراء القانوني مع أهمية ارسال إيصال التحويل على رقم الواتساب (966122121912) وشكراً لتفهمكم.\nإدارة وقف حسين مرفق"]
["الحجاز (2) معرض - 3 ","مؤسسة ابتسام عمر حسين بامشموس للتجارة",null,"عزيزنا المستأجر (مؤسسة ابتسام عمر حسين بامشموس للتجارة) نود إبلاغكم بوجود مستحقات متأخرة عليكم للوحدة المستأجرة في (الحجاز (2) معرض - 3 ) لذا نأمل سرعة السداد تجنباً لاتخاذ الإجراء القانوني مع أهمية ارسال إيصال التحويل على رقم الواتساب (966122121912) وشكراً لتفهمكم.\nإدارة وقف حسين مرفق"]
["الحجاز (2) مكتب - 19","مؤسسة الصفصاف العلمية التجارية",null,"عزيزنا المستأجر (مؤسسة الصفصاف العلمية التجارية) نود إبلاغكم بوجود مستحقات متأخرة عليكم للوحدة المستأجرة في (الحجاز (2) مكتب - 19) لذا نأمل سرعة السداد تجنباً لاتخاذ الإجراء القانوني مع أهمية ارسال إيصال التحويل على رقم الواتساب (966122121912) وشكراً لتفهمكم.\nإدارة وقف حسين مرفق"]
["الحجاز (2) مكتب - 14","مؤسسة النصبان للحراسة الامنيه",null,"عزيزنا المستأجر (مؤسسة النصبان للحراسة الامنيه) نود إبلاغكم بوجود مستحقات متأخرة عليكم للوحدة المستأجرة في (الحجاز (2) مكتب - 14) لذا نأمل سرعة السداد تجنباً لاتخاذ الإجراء القانوني مع أهمية ارسال إيصال التحويل على رقم الواتساب (966122121912) وشكراً لتفهمكم.\nإدارة وقف حسين مرفق"]
["الحجاز (2) مكتب - 3 ","مؤسسة إجادة الأعمال لتقنية المعلومات",null,"عزيزنا المستأجر (مؤسسة إجادة الأعمال لتقنية المعلومات) نود إبلاغكم بوجود مستحقات متأخرة عليكم للوحدة المستأجرة في (الحجاز (2) مكتب - 3 ) لذا نأمل سرعة السداد تجنباً لاتخاذ الإجراء القانوني مع أهمية ارسال إيصال التحويل على رقم الواتساب (966122121912) وشكراً لتفهمكم.\nإدارة وقف حسين مرفق"]
["الحجاز (2) مكتب - 6 ","مؤسسة خالد سعود راشد الحربي للمقاولات",null,"عزيزنا المستأجر (مؤسسة خالد سعود راشد الحربي للمقاولات) نود إبلاغكم بوجود مستحقات متأخرة عليكم للوحدة المستأجرة في (الحجاز (2) مكتب - 6 ) لذا نأمل سرعة السداد تجنباً لاتخاذ الإجراء القانوني مع أهمية ارسال إيصال التحويل على رقم الواتساب (966122121912) وشكراً لتفهمكم.\nإدارة وقف حسين مرفق"]
["الحجاز (2) مكتب - 22 ","مؤسسة رؤيا المتقدمة للمقاولات العامة",null,"عزيزنا المستأجر (مؤسسة رؤيا المتقدمة للمقاولات العامة) نود إبلاغكم بوجود مستحقات متأخرة عليكم للوحدة المستأجرة في (الحجاز (2) مكتب - 22 ) لذا نأمل سرعة السداد تجنباً لاتخاذ الإجراء القانوني مع أهمية ارسال إيصال التحويل على رقم الواتساب (966122121912) وشكراً لتفهمكم.\nإدارة وقف حسين مرفق"]
["الحجاز (2) مكتب - 27 ","مؤسسة ريناد محمد حمود الحارثي لتقديم الوجبات",null,"عزيزنا المستأجر (مؤسسة ريناد محمد حمود الحارثي لتقديم الوجبات) نود إبلاغكم بوجود مستحقات متأخرة عليكم للوحدة المستأجرة في (الحجاز (2) مكتب - 27 ) لذا نأمل سرعة السداد تجنباً لاتخاذ الإجراء القانوني مع أهمية ارسال إيصال التحويل على رقم الواتساب (966122121912) وشكراً لتفهمكم.\nإدارة وقف حسين مرفق"]
["الحجاز (2) مكتب - 2 ","مؤسسة سحابة الاعمال لتقنية نظم المعلومات",null,"عزيزنا المستأجر (مؤسسة سحابة الاعمال لتقنية نظم المعلومات) نود إبلاغكم بوجود مستحقات متأخرة عليكم للوحدة المستأجرة في (الحجاز (2) مكتب - 2 ) لذا نأمل سرعة السداد تجنباً لاتخاذ الإجراء القانوني مع أهمية ارسال إيصال التحويل على رقم الواتساب (966122121912) وشكراً لتفهمكم.\nإدارة وقف حسين مرفق"]
["الحجاز (2) مكتب - 16","مؤسسة لؤلؤة العرب للمقاولات العامة",null,"عزيزنا المستأجر (مؤسسة لؤلؤة العرب للمقاولات العامة) نود إبلاغكم بوجود مستحقات متأخرة عليكم للوحدة المستأجرة في (الحجاز (2) مكتب - 16) لذا نأمل سرعة السداد تجنباً لاتخاذ الإجراء القانوني مع أهمية ارسال إيصال التحويل على رقم الواتساب (966122121912) وشكراً لتفهمكم.\nإدارة وقف حسين مرفق"]
["الحجاز (2) مكتب - 23","مؤسسة مدى الانشاءات للمقاولات العامة",null,"عزيزنا المستأجر (مؤسسة مدى الانشاءات للمقاولات العامة) نود إبلاغكم بوجود مستحقات متأخرة عليكم للوحدة المستأجرة في (الحجاز (2) مكتب - 23) لذا نأمل سرعة السداد تجنباً لاتخاذ الإجراء القانوني مع أهمية ارسال إيصال التحويل على رقم الواتساب (966122121912) وشكراً لتفهمكم.\nإدارة وقف حسين مرفق"]
["الحجاز (2) مكتب - 15","وكاله مكس وان للدعاية والاعلان",null,{"$f":"\"عزيزنا المستأجر (\"&$B389&\") نود إبلاغكم بوجود مستحقات متأخرة عليكم للوحدة المستأجرة في (\"&$A389&\") لذا نأمل سرعة السداد تجنباً لاتخاذ الإجراء القانوني مع أهمية ارسال إيصال التحويل على رقم الواتساب (966122121912) وشكراً لتفهمكم.\nإدارة وقف حسين مرفق\"","v":"عزيزنا المستأجر (وكاله مكس وان للدعاية والاعلان) نود إبلاغكم بوجود مستحقات متأخرة عليكم للوحدة المستأجرة في (الحجاز (2) مكتب - 15) لذا نأمل سرعة السداد تجنباً لاتخاذ الإجراء القانوني مع أهمية ارسال إيصال التحويل على رقم الواتساب (966122121912) وشكراً لتفهمكم.\nإدارة وقف حسين مرفق"}]
["الاربعين (أ) شقة - 9 ","احمد عبدالله محسن العولقي",null,"عزيزنا المستأجر (احمد عبدالله محسن العولقي) نود إبلاغكم بوجود مستحقات متأخرة عليكم للوحدة المستأجرة في (الاربعين (أ) شقة - 9 ) لذا نأمل سرعة السداد تجنباً لاتخاذ الإجراء القانوني مع أهمية ارسال إيصال التحويل على رقم الواتساب (966122121912) وشكراً لتفهمكم.\nإدارة وقف حسين مرفق"]
["الاربعين (خ) شقة - 6 ","امين لطف احمد العواضي",null,"عزيزنا المستأجر (امين لطف احمد العواضي) نود إبلاغكم بوجود مستحقات متأخرة عليكم للوحدة المستأجرة في (الاربعين (خ) شقة - 6 ) لذا نأمل سرعة السداد تجنباً لاتخاذ الإجراء القانوني مع أهمية ارسال إيصال التحويل على رقم الواتساب (966122121912) وشكراً لتفهمكم.\nإدارة وقف حسين مرفق"]
["الاربعين(خ) غرفة - 1","أبو سيري صديق حميد",null,"عزيزنا المستأجر (أبو سيري صديق حميد) نود إبلاغكم بوجود مستحقات متأخرة عليكم للوحدة المستأجرة في (الاربعين(خ) غرفة - 1) لذا نأمل سرعة السداد تجنباً لاتخاذ الإجراء القانوني مع أهمية ارسال إيصال التحويل على رقم الواتساب (966122121912) وشكراً لتفهمكم.\nإدارة وقف حسين مرفق"]
["الاربعين (خ) شقة - 3 ","بكيل راجح عبدالقوي قاسم ",null,"عزيزنا المستأجر (بكيل راجح عبدالقوي قاسم ) نود إبلاغكم بوجود مستحقات متأخرة عليكم للوحدة المستأجرة في (الاربعين (خ) شقة - 3 ) لذا نأمل سرعة السداد تجنباً لاتخاذ الإجراء القانوني مع أهمية ارسال إيصال التحويل على رقم الواتساب (966122121912) وشكراً لتفهمكم.\nإدارة وقف حسين مرفق"]
["الاربعين معرض - 3 ","بوفية شباب لذيذ للوجبات السريعة",null,"عزيزنا المستأجر (بوفية شباب لذيذ للوجبات السريعة) نود إبلاغكم بوجود مستحقات متأخرة عليكم للوحدة المستأجرة في (الاربعين معرض - 3 ) لذا نأمل سرعة السداد تجنباً لاتخاذ الإجراء القانوني مع أهمية ارسال إيصال التحويل على رقم الواتساب (966122121912) وشكراً لتفهمكم.\nإدارة وقف حسين مرفق"]
["الاربعين معرض - 6- 7 ","تموينات محمد عبدالله خلف الحارثي للمواد الغذائية",null,"عزيزنا المستأجر (تموينات محمد عبدالله خلف الحارثي للمواد الغذائية) نود إبلاغكم بوجود مستحقات متأخرة عليكم للوحدة المستأجرة في (الاربعين معرض - 6- 7 ) لذا نأمل سرعة السداد تجنباً لاتخاذ الإجراء القانوني مع أهمية ارسال إيصال التحويل على رقم الواتساب (966122121912) وشكراً لتفهمكم.\nإدارة وقف حسين مرفق"]
["الاربعين (أ) شقة - 6","جمال ناصر سالمين بالفاس",null,"عزيزنا المستأجر (جمال ناصر سالمين بالفاس) نود إبلاغكم بوجود مستحقات متأخرة عليكم للوحدة المستأجرة في (الاربعين (أ) شقة - 6) لذا نأمل سرعة السداد تجنباً لاتخاذ الإجراء القانوني مع أهمية ارسال إيصال التحويل على رقم الواتساب (966122121912) وشكراً لتفهمكم.\nإدارة وقف حسين مرفق"]
["الاربعين معرض - 3 ","حسن ظافر الشهراني",null,"عزيزنا المستأجر (حسن ظافر الشهراني) نود إبلاغكم بوجود مستحقات متأخرة عليكم للوحدة المستأجرة في (الاربعين معرض - 3 ) لذا نأمل سرعة السداد تجنباً لاتخاذ الإجراء القانوني مع أهمية ارسال إيصال التحويل على رقم الواتساب (966122121912) وشكراً لتفهمكم.\nإدارة وقف حسين مرفق"]
["الاربعين (أ) شقة - 12","حسن نايف حسن غزاوي",null,"عزيزنا المستأجر (حسن نايف حسن غزاوي) نود إبلاغكم بوجود مستحقات متأخرة عليكم للوحدة المستأجرة في (الاربعين (أ) شقة - 12) لذا نأمل سرعة السداد تجنباً لاتخاذ الإجراء القانوني مع أهمية ارسال إيصال التحويل على رقم الواتساب (966122121912) وشكراً لتفهمكم.\nإدارة وقف حسين مرفق"]
["الاربعين (خ) شقة - 3 ","حسين احمد بن يحي عسيري",null,"عزيزنا المستأجر (حسين احمد بن يحي عسيري) نود إبلاغكم بوجود مستحقات متأخرة عليكم للوحدة المستأجرة في (الاربعين (خ) شقة - 3 ) لذا نأمل سرعة السداد تجنباً لاتخاذ الإجراء القانوني مع أهمية ارسال إيصال التحويل على رقم الواتساب (966122121912) وشكراً لتفهمكم.\nإدارة وقف حسين مرفق"]
["الاربعين (أ) شقة - 11 ","خالد حسين علي مرفق",null,"عزيزنا المستأجر (خالد حسين علي مرفق) نود إبلاغكم بوجود مستحقات متأخرة عليكم للوحدة المستأجرة في (الاربعين (أ) شقة - 11 ) لذا نأمل سرعة السداد تجنباً لاتخاذ الإجراء القانوني مع أهمية ارسال إيصال التحويل على رقم الواتساب (966122121912) وشكراً لتفهمكم.\nإدارة وقف حسين مرفق"]
["الاربعين (خ) شقة - 1 ","شاجي مون كارينخنجيري",null,"عزيزنا المستأجر (شاجي مون كارينخنجيري) نود إبلاغكم بوجود مستحقات متأخرة عليكم للوحدة المستأجرة في (الاربعين (خ) شقة - 1 ) لذا نأمل سرعة السداد تجنباً لاتخاذ الإجراء القانوني مع أهمية ارسال إيصال التحويل على رقم الواتساب (966122121912) وشكراً لتفهمكم.\nإدارة وقف حسين مرفق"]
["الاربعين (أ) شقة - 7","شيخ عبدالله صالح",null,"عزيزنا المستأجر (شيخ عبدالله صالح) نود إبلاغكم بوجود مستحقات متأخرة عليكم للوحدة المستأجرة في (الاربعين (أ) شقة - 7) لذا نأمل سرعة السداد تجنباً لاتخاذ الإجراء القانوني مع أهمية ارسال إيصال التحويل على رقم الواتساب (966122121912) وشكراً لتفهمكم.\nإدارة وقف حسين مرفق"]
["الاربعين (أ) شقة - 1","شيخ عبدالله عمودي شيخ محمد عمودي",null,"عزيزنا المستأجر (شيخ عبدالله عمودي شيخ محمد عمودي) نود إبلاغكم بوجود مستحقات متأخرة عليكم للوحدة المستأجرة في (الاربعين (أ) شقة - 1) لذا نأمل سرعة السداد تجنباً لاتخاذ الإجراء القانوني مع أهمية ارسال إيصال التحويل على رقم الواتساب (966122121912) وشكراً لتفهمكم.\nإدارة وقف حسين مرفق"]
["الاربعين معرض - 2","صالون افنان قاسم عبدالرب بن شيهون",null,"عزيزنا المستأجر (صالون افنان قاسم عبدالرب بن شيهون) نود إبلاغكم بوجود مستحقات متأخرة عليكم للوحدة المستأجرة في (الاربعين معرض - 2) لذا نأمل سرعة السداد تجنباً لاتخاذ الإجراء القانوني مع أهمية ارسال إيصال التحويل على رقم الواتساب (966122121912) وشكراً لتفهمكم.\nإدارة وقف حسين مرفق"]
["الاربعين معرض - 2","صالون انصاف اسماعيل بن محمد علي البنقالي للحلاقة",null,"عزيزنا المستأجر (صالون انصاف اسماعيل بن محمد علي البنقالي للحلاقة) نود إبلاغكم بوجود مستحقات متأخرة عليكم للوحدة المستأجرة في (الاربعين معرض - 2) لذا نأمل سرعة السداد تجنباً لاتخاذ الإجراء القانوني مع أهمية ارسال إيصال التحويل على رقم الواتساب (966122121912) وشكراً لتفهمكم.\nإدارة وقف حسين مرفق"]
["الاربعين (خ) شقة - 5 ","طارق امين لطف العواضي",null,"عزيزنا المستأجر (طارق امين لطف العواضي) نود إبلاغكم بوجود مستحقات متأخرة عليكم للوحدة المستأجرة في (الاربعين (خ) شقة - 5 ) لذا نأمل سرعة السداد تجنباً لاتخاذ الإجراء القانوني مع أهمية ارسال إيصال التحويل على رقم الواتساب (966122121912) وشكراً لتفهمكم.\nإدارة وقف حسين مرفق"]
["الاربعين (خ) شقة - 7 ","عبدالعزيز محمد بن علي عسيري",null,"عزيزنا المستأجر (عبدالعزيز محمد بن علي عسيري) نود إبلاغكم بوجود مستحقات متأخرة عليكم للوحدة المستأجرة في (الاربعين (خ) شقة - 7 ) لذا نأمل سرعة السداد تجنباً لاتخاذ الإجراء القانوني مع أهمية ارسال إيصال التحويل على رقم الواتساب (966122121912) وشكراً لتفهمكم.\nإدارة وقف حسين مرفق"]
["الاربعين (خ) شقة - 2","عبدالكريم محمد عبدالقادر طيب",null,"عزيزنا المستأجر (عبدالكريم محمد عبدالقادر طيب) نود إبلاغكم بوجود مستحقات متأخرة عليكم للوحدة المستأجرة في (الاربعين (خ) شقة - 2) لذا نأمل سرعة السداد تجنباً لاتخاذ الإجراء القانوني مع أهمية ارسال إيصال التحويل على رقم الواتساب (966122121912) وشكراً لتفهمكم.\nإدارة وقف حسين مرفق"]
["الاربعين (خ) شقة - 4","عبدالناصر محمد سعيد السليماني",null,"عزيزنا المستأجر (عبدالناصر محمد سعيد السليماني) نود إبلاغكم بوجود مستحقات متأخرة عليكم للوحدة المستأجرة في (الاربعين (خ) شقة - 4) لذا نأمل سرعة السداد تجنباً لاتخاذ الإجراء القانوني مع أهمية ارسال إيصال التحويل على رقم الواتساب (966122121912) وشكراً لتفهمكم.\nإدارة وقف حسين مرفق"]
["الاربعين (أ) شقة - 6","عواطف عبدالكريم ابراهيم الشامي",null,"عزيزنا المستأجر (عواطف عبدالكريم ابراهيم الشامي) نود إبلاغكم بوجود مستحقات متأخرة عليكم للوحدة المستأجرة في (الاربعين (أ) شقة - 6) لذا نأمل سرعة السداد تجنباً لاتخاذ الإجراء القانوني مع أهمية ارسال إيصال التحويل على رقم الواتساب (966122121912) وشكراً لتفهمكم.\nإدارة وقف حسين مرفق"]
["الاربعين (أ) شقة - 5 ","محسن رويس محسن فريد العولقي",null,"عزيزنا المستأجر (محسن رويس محسن فريد العولقي) نود إبلاغكم بوجود مستحقات متأخرة عليكم للوحدة المستأجرة في (الاربعين (أ) شقة - 5 ) لذا نأمل سرعة السداد تجنباً لاتخاذ الإجراء القانوني مع أهمية ارسال إيصال التحويل على رقم الواتساب (966122121912) وشكراً لتفهمكم.\nإدارة وقف حسين مرفق"]
["الاربعين معرض - 7- 6 ","محمد إسماعيل أحمد بدره",null,"عزيزنا المستأجر (محمد إسماعيل أحمد بدره) نود إبلاغكم بوجود مستحقات متأخرة عليكم للوحدة المستأجرة في (الاربعين معرض - 7- 6 ) لذا نأمل سرعة السداد تجنباً لاتخاذ الإجراء القانوني مع أهمية ارسال إيصال التحويل على رقم الواتساب (966122121912) وشكراً لتفهمكم.\nإدارة وقف حسين مرفق"]
["الاربعين (أ) شقة - 10","محمد عبدالله حسين العطاس",null,"عزيزنا المستأجر (محمد عبدالله حسين العطاس) نود إبلاغكم بوجود مستحقات متأخرة عليكم للوحدة المستأجرة في (الاربعين (أ) شقة - 10) لذا نأمل سرعة السداد تجنباً لاتخاذ الإجراء القانوني مع أهمية ارسال إيصال التحويل على رقم الواتساب (966122121912) وشكراً لتفهمكم.\nإدارة وقف حسين مرفق"]
["الاربعين معرض - 5 ","محمد عوده عويضه الرفاعي",null,"عزيزنا المستأجر (محمد عوده عويضه الرفاعي) نود إبلاغكم بوجود مستحقات متأخرة عليكم للوحدة المستأجرة في (الاربعين معرض - 5 ) لذا نأمل سرعة السداد تجنباً لاتخاذ الإجراء القانوني مع أهمية ارسال إيصال التحويل على رقم الواتساب (966122121912) وشكراً لتفهمكم.\nإدارة وقف حسين مرفق"]
["الاربعين (أ) شقة - 3 ","محمود ابن علي ابن محمد عرب",null,"عزيزنا المستأجر (محمود ابن علي ابن محمد عرب) نود إبلاغكم بوجود مستحقات متأخرة عليكم للوحدة المستأجرة في (الاربعين (أ) شقة - 3 ) لذا نأمل سرعة السداد تجنباً لاتخاذ الإجراء القانوني مع أهمية ارسال إيصال التحويل على رقم الواتساب (966122121912) وشكراً لتفهمكم.\nإدارة وقف حسين مرفق"]
["الاربعين معرض - 3 ","مطعم نجمه محمد عبدالله الزهراني للوجبات السريعة",null,"عزيزنا المستأجر (مطعم نجمه محمد عبدالله الزهراني للوجبات السريعة) نود إبلاغكم بوجود مستحقات متأخرة عليكم للوحدة المستأجرة في (الاربعين معرض - 3 ) لذا نأمل سرعة السداد تجنباً لاتخاذ الإجراء القانوني مع أهمية ارسال إيصال التحويل على رقم الواتساب (966122121912) وشكراً لتفهمكم.\nإدارة وقف حسين مرفق"]
["الاربعين معرض - 9 ","مؤسسة الايادي الاحترافية للخياطة الرجالية/لصحبها محمد بلال",null,"عزيزنا المستأجر (مؤسسة الايادي الاحترافية للخياطة الرجالية/لصحبها محمد بلال) نود إبلاغكم بوجود مستحقات متأخرة عليكم للوحدة المستأجرة في (الاربعين معرض - 9 ) لذا نأمل سرعة السداد تجنباً لاتخاذ الإجراء القانوني مع أهمية ارسال إيصال التحويل على رقم الواتساب (966122121912) وشكراً لتفهمكم.\nإدارة وقف حسين مرفق"]
["الاربعين معرض - 9 ","مؤسسة تاج الهدوء للدعاية والإعلان ",null,"عزيزنا المستأجر (مؤسسة تاج الهدوء للدعاية والإعلان ) نود إبلاغكم بوجود مستحقات متأخرة عليكم للوحدة المستأجرة في (الاربعين معرض - 9 ) لذا نأمل سرعة السداد تجنباً لاتخاذ الإجراء القانوني مع أهمية ارسال إيصال التحويل على رقم الواتساب (966122121912) وشكراً لتفهمكم.\nإدارة وقف حسين مرفق"]
["الاربعين معرض - 8 ","مؤسسة تشكيل المستقبل للوجبات السريعة ",null,"عزيزنا المستأجر (مؤسسة تشكيل المستقبل للوجبات السريعة ) نود إبلاغكم بوجود مستحقات متأخرة عليكم للوحدة المستأجرة في (الاربعين معرض - 8 ) لذا نأمل سرعة السداد تجنباً لاتخاذ الإجراء القانوني مع أهمية ارسال إيصال التحويل على رقم الواتساب (966122121912) وشكراً لتفهمكم.\nإدارة وقف حسين مرفق"]
["الاربعين معرض - 5 ","مؤسسة ديار الورد للأفراح والمناسبات",null,"عزيزنا المستأجر (مؤسسة ديار الورد للأفراح والمناسبات) نود إبلاغكم بوجود مستحقات متأخرة عليكم للوحدة المستأجرة في (الاربعين معرض - 5 ) لذا نأمل سرعة السداد تجنباً لاتخاذ الإجراء القانوني مع أهمية ارسال إيصال التحويل على رقم الواتساب (966122121912) وشكراً لتفهمكم.\nإدارة وقف حسين مرفق"]
["الاربعين معرض - 10 ","مؤسسة صالحه مشعل مداوي الحارثي لغسيل الملابس ",null,"عزيزنا المستأجر (مؤسسة صالحه مشعل مداوي الحارثي لغسيل الملابس ) نود إبلاغكم بوجود مستحقات متأخرة عليكم للوحدة المستأجرة في (الاربعين معرض - 10 ) لذا نأمل سرعة السداد تجنباً لاتخاذ الإجراء القانوني مع أهمية ارسال إيصال التحويل على رقم الواتساب (966122121912) وشكراً لتفهمكم.\nإدارة وقف حسين مرفق"]
["الاربعين معرض - 1","مؤسسة مايا وهيب زهير زقزوق لتقديم الوجبات",null,"عزيزنا المستأجر (مؤسسة مايا وهيب زهير زقزوق لتقديم الوجبات) نود إبلاغكم بوجود مستحقات متأخرة عليكم للوحدة المستأجرة في (الاربعين معرض - 1) لذا نأمل سرعة السداد تجنباً لاتخاذ الإجراء القانوني مع أهمية ارسال إيصال التحويل على رقم الواتساب (966122121912) وشكراً لتفهمكم.\nإدارة وقف حسين مرفق"]
["الاربعين (خ) شقة - 5","ناجم عثمان محمد عثمان غني قريشي",null,"عزيزنا المستأجر (ناجم عثمان محمد عثمان غني قريشي) نود إبلاغكم بوجود مستحقات متأخرة عليكم للوحدة المستأجرة في (الاربعين (خ) شقة - 5) لذا نأمل سرعة السداد تجنباً لاتخاذ الإجراء القانوني مع أهمية ارسال إيصال التحويل على رقم الواتساب (966122121912) وشكراً لتفهمكم.\nإدارة وقف حسين مرفق"]
["الاربعين (أ) شقة - 4 ","هدى مبارك جميل المعبدي",null,"عزيزنا المستأجر (هدى مبارك جميل المعبدي) نود إبلاغكم بوجود مستحقات متأخرة عليكم للوحدة المستأجرة في (الاربعين (أ) شقة - 4 ) لذا نأمل سرعة السداد تجنباً لاتخاذ الإجراء القانوني مع أهمية ارسال إيصال التحويل على رقم الواتساب (966122121912) وشكراً لتفهمكم.\nإدارة وقف حسين مرفق"]
["الاربعين (أ) شقة - 5","يوسف شريف",null,"عزيزنا المستأجر (يوسف شريف) نود إبلاغكم بوجود مستحقات متأخرة عليكم للوحدة المستأجرة في (الاربعين (أ) شقة - 5) لذا نأمل سرعة السداد تجنباً لاتخاذ الإجراء القانوني مع أهمية ارسال إيصال التحويل على رقم الواتساب (966122121912) وشكراً لتفهمكم.\nإدارة وقف حسين مرفق"]
["السبعين شقة - 1 ","حسين علي سعيد اليافعي ",null,"عزيزنا المستأجر (حسين علي سعيد اليافعي ) نود إبلاغكم بوجود مستحقات متأخرة عليكم للوحدة المستأجرة في (السبعين شقة - 1 ) لذا نأمل سرعة السداد تجنباً لاتخاذ الإجراء القانوني مع أهمية ارسال إيصال التحويل على رقم الواتساب (966122121912) وشكراً لتفهمكم.\nإدارة وقف حسين مرفق"]
["السبعين شقة - 2 ","محمد فوزي محمد الغزالي ",null,"عزيزنا المستأجر (محمد فوزي محمد الغزالي ) نود إبلاغكم بوجود مستحقات متأخرة عليكم للوحدة المستأجرة في (السبعين شقة - 2 ) لذا نأمل سرعة السداد تجنباً لاتخاذ الإجراء القانوني مع أهمية ارسال إيصال التحويل على رقم الواتساب (966122121912) وشكراً لتفهمكم.\nإدارة وقف حسين مرفق"]
["السبعين شقة - 3","عبدالعزيز عبدالقادر خليل زبيدي ",null,"عزيزنا المستأجر (عبدالعزيز عبدالقادر خليل زبيدي ) نود إبلاغكم بوجود مستحقات متأخرة عليكم للوحدة المستأجرة في (السبعين شقة - 3) لذا نأمل سرعة السداد تجنباً لاتخاذ الإجراء القانوني مع أهمية ارسال إيصال التحويل على رقم الواتساب (966122121912) وشكراً لتفهمكم.\nإدارة وقف حسين مرفق"]
["السبعين شقة - 4 ","صالح سعيد محمد الشاطبي ",null,"عزيزنا المستأجر (صالح سعيد محمد الشاطبي ) نود إبلاغكم بوجود مستحقات متأخرة عليكم للوحدة المستأجرة في (السبعين شقة - 4 ) لذا نأمل سرعة السداد تجنباً لاتخاذ الإجراء القانوني مع أهمية ارسال إيصال التحويل على رقم الواتساب (966122121912) وشكراً لتفهمكم.\nإدارة وقف حسين مرفق"]
["السبعين شقة - 5 ","حسن علي سعيد باصليب ",null,"عزيزنا المستأجر (حسن علي سعيد باصليب ) نود إبلاغكم بوجود مستحقات متأخرة عليكم للوحدة المستأجرة في (السبعين شقة - 5 ) لذا نأمل سرعة السداد تجنباً لاتخاذ الإجراء القانوني مع أهمية ارسال إيصال التحويل على رقم الواتساب (966122121912) وشكراً لتفهمكم.\nإدارة وقف حسين مرفق"]
["السبعين شقة - 6 ","يحي محمد حمد سليمان",null,"عزيزنا المستأجر (يحي محمد حمد سليمان) نود إبلاغكم بوجود مستحقات متأخرة عليكم للوحدة المستأجرة في (السبعين شقة - 6 ) لذا نأمل سرعة السداد تجنباً لاتخاذ الإجراء القانوني مع أهمية ارسال إيصال التحويل على رقم الواتساب (966122121912) وشكراً لتفهمكم.\nإدارة وقف حسين مرفق"]
["السبعين شقة - 8 ","هدى بريك سعيد الزبيدي ",null,"عزيزنا المستأجر (هدى بريك سعيد الزبيدي ) نود إبلاغكم بوجود مستحقات متأخرة عليكم للوحدة المستأجرة في (السبعين شقة - 8 ) لذا نأمل سرعة السداد تجنباً لاتخاذ الإجراء القانوني مع أهمية ارسال إيصال التحويل على رقم الواتساب (966122121912) وشكراً لتفهمكم.\nإدارة وقف حسين مرفق"]
["السبعين شقة - 9 ","أحمد يحيى طاهر عمر باهيل ",null,"عزيزنا المستأجر (أحمد يحيى طاهر عمر باهيل ) نود إبلاغكم بوجود مستحقات متأخرة عليكم للوحدة المستأجرة في (السبعين شقة - 9 ) لذا نأمل سرعة السداد تجنباً لاتخاذ الإجراء القانوني مع أهمية ارسال إيصال التحويل على رقم الواتساب (966122121912) وشكراً لتفهمكم.\nإدارة وقف حسين مرفق"]
["السبعين معرض - 1- 2 ","مؤسسة يوسف خالد حمزه حلواني للعباءات النسائية",null,"عزيزنا المستأجر (مؤسسة يوسف خالد حمزه حلواني للعباءات النسائية) نود إبلاغكم بوجود مستحقات متأخرة عليكم للوحدة المستأجرة في (السبعين معرض - 1- 2 ) لذا نأمل سرعة السداد تجنباً لاتخاذ الإجراء القانوني مع أهمية ارسال إيصال التحويل على رقم الواتساب (966122121912) وشكراً لتفهمكم.\nإدارة وقف حسين مرفق"]
["السبعين معرض - 3","مؤسسة ضباب العالم التجارية",null,"عزيزنا المستأجر (مؤسسة ضباب العالم التجارية) نود إبلاغكم بوجود مستحقات متأخرة عليكم للوحدة المستأجرة في (السبعين معرض - 3) لذا نأمل سرعة السداد تجنباً لاتخاذ الإجراء القانوني مع أهمية ارسال إيصال التحويل على رقم الواتساب (966122121912) وشكراً لتفهمكم.\nإدارة وقف حسين مرفق"]
["السبعين معرض - 4 ","مؤسسة الاسطرلاب للمقاولات",null,"عزيزنا المستأجر (مؤسسة الاسطرلاب للمقاولات) نود إبلاغكم بوجود مستحقات متأخرة عليكم للوحدة المستأجرة في (السبعين معرض - 4 ) لذا نأمل سرعة السداد تجنباً لاتخاذ الإجراء القانوني مع أهمية ارسال إيصال التحويل على رقم الواتساب (966122121912) وشكراً لتفهمكم.\nإدارة وقف حسين مرفق"]
["الرحاب (1) شقة - 26 "," فواز عبدالله بن سليمان الغيثي",null,"عزيزنا المستأجر ( فواز عبدالله بن سليمان الغيثي) نود إبلاغكم بوجود مستحقات متأخرة عليكم للوحدة المستأجرة في (الرحاب (1) شقة - 26 ) لذا نأمل سرعة السداد تجنباً لاتخاذ الإجراء القانوني مع أهمية ارسال إيصال التحويل على رقم الواتساب (966122121912) وشكراً لتفهمكم.\nإدارة وقف حسين مرفق"]
["الرحاب (1) شقة - 22","انجم احمد شيخ",null,"عزيزنا المستأجر (انجم احمد شيخ) نود إبلاغكم بوجود مستحقات متأخرة عليكم للوحدة المستأجرة في (الرحاب (1) شقة - 22) لذا نأمل سرعة السداد تجنباً لاتخاذ الإجراء القانوني مع أهمية ارسال إيصال التحويل على رقم الواتساب (966122121912) وشكراً لتفهمكم.\nإدارة وقف حسين مرفق"]
["الرحاب (1) شقة - 19","انس رشيد ايم رشيد",null,"عزيزنا المستأجر (انس رشيد ايم رشيد) نود إبلاغكم بوجود مستحقات متأخرة عليكم للوحدة المستأجرة في (الرحاب (1) شقة - 19) لذا نأمل سرعة السداد تجنباً لاتخاذ الإجراء القانوني مع أهمية ارسال إيصال التحويل على رقم الواتساب (966122121912) وشكراً لتفهمكم.\nإدارة وقف حسين مرفق"]
["الرحاب (1) شقة - 7 ","جوهان هيرديانشاه عثمان",null,"عزيزنا المستأجر (جوهان هيرديانشاه عثمان) نود إبلاغكم بوجود مستحقات متأخرة عليكم للوحدة المستأجرة في (الرحاب (1) شقة - 7 ) لذا نأمل سرعة السداد تجنباً لاتخاذ الإجراء القانوني مع أهمية ارسال إيصال التحويل على رقم الواتساب (966122121912) وشكراً لتفهمكم.\nإدارة وقف حسين مرفق"]
["الرحاب (1) شقة - 5 ","حسب الله مادا",null,"عزيزنا المستأجر (حسب الله مادا) نود إبلاغكم بوجود مستحقات متأخرة عليكم للوحدة المستأجرة في (الرحاب (1) شقة - 5 ) لذا نأمل سرعة السداد تجنباً لاتخاذ الإجراء القانوني مع أهمية ارسال إيصال التحويل على رقم الواتساب (966122121912) وشكراً لتفهمكم.\nإدارة وقف حسين مرفق"]
["الرحاب (1) شقة - 17","سرفراز شريف حسين",null,"عزيزنا المستأجر (سرفراز شريف حسين) نود إبلاغكم بوجود مستحقات متأخرة عليكم للوحدة المستأجرة في (الرحاب (1) شقة - 17) لذا نأمل سرعة السداد تجنباً لاتخاذ الإجراء القانوني مع أهمية ارسال إيصال التحويل على رقم الواتساب (966122121912) وشكراً لتفهمكم.\nإدارة وقف حسين مرفق"]
["الرحاب (1) شقة - 18 ","سعد علي بواني تيرو مالي اكيل",null,"عزيزنا المستأجر (سعد علي بواني تيرو مالي اكيل) نود إبلاغكم بوجود مستحقات متأخرة عليكم للوحدة المستأجرة في (الرحاب (1) شقة - 18 ) لذا نأمل سرعة السداد تجنباً لاتخاذ الإجراء القانوني مع أهمية ارسال إيصال التحويل على رقم الواتساب (966122121912) وشكراً لتفهمكم.\nإدارة وقف حسين مرفق"]
["الرحاب (1) شقة - 25","سكنديش جوروفا يورابان",null,"عزيزنا المستأجر (سكنديش جوروفا يورابان) نود إبلاغكم بوجود مستحقات متأخرة عليكم للوحدة المستأجرة في (الرحاب (1) شقة - 25) لذا نأمل سرعة السداد تجنباً لاتخاذ الإجراء القانوني مع أهمية ارسال إيصال التحويل على رقم الواتساب (966122121912) وشكراً لتفهمكم.\nإدارة وقف حسين مرفق"]
["الرحاب (1) معرض - 1  - 2  - 3","شركة السخاء الذهبيه للتجاره والمقاولات المحدوده (شركة شخص واحد)",null,"عزيزنا المستأجر (شركة السخاء الذهبيه للتجاره والمقاولات المحدوده (شركة شخص واحد)) نود إبلاغكم بوجود مستحقات متأخرة عليكم للوحدة المستأجرة في (الرحاب (1) معرض - 1  - 2  - 3) لذا نأمل سرعة السداد تجنباً لاتخاذ الإجراء القانوني مع أهمية ارسال إيصال التحويل على رقم الواتساب (966122121912) وشكراً لتفهمكم.\nإدارة وقف حسين مرفق"]
["الرحاب (1) شقة - 20 ","طه مطفى حسن واكد",null,"عزيزنا المستأجر (طه مطفى حسن واكد) نود إبلاغكم بوجود مستحقات متأخرة عليكم للوحدة المستأجرة في (الرحاب (1) شقة - 20 ) لذا نأمل سرعة السداد تجنباً لاتخاذ الإجراء القانوني مع أهمية ارسال إيصال التحويل على رقم الواتساب (966122121912) وشكراً لتفهمكم.\nإدارة وقف حسين مرفق"]
["الرحاب (1) شقة - 4 ","عبدالله سالم عبيد القثمي",null,"عزيزنا المستأجر (عبدالله سالم عبيد القثمي) نود إبلاغكم بوجود مستحقات متأخرة عليكم للوحدة المستأجرة في (الرحاب (1) شقة - 4 ) لذا نأمل سرعة السداد تجنباً لاتخاذ الإجراء القانوني مع أهمية ارسال إيصال التحويل على رقم الواتساب (966122121912) وشكراً لتفهمكم.\nإدارة وقف حسين مرفق"]
["الرحاب (1) شقة - 21","عبدالله عمر - باياسين",null,"عزيزنا المستأجر (عبدالله عمر - باياسين) نود إبلاغكم بوجود مستحقات متأخرة عليكم للوحدة المستأجرة في (الرحاب (1) شقة - 21) لذا نأمل سرعة السداد تجنباً لاتخاذ الإجراء القانوني مع أهمية ارسال إيصال التحويل على رقم الواتساب (966122121912) وشكراً لتفهمكم.\nإدارة وقف حسين مرفق"]
["الرحاب (1) معرض - 6 ","فرع شركة عبدالعزيز محمد حمود الشايع للتجارة",null,"عزيزنا المستأجر (فرع شركة عبدالعزيز محمد حمود الشايع للتجارة) نود إبلاغكم بوجود مستحقات متأخرة عليكم للوحدة المستأجرة في (الرحاب (1) معرض - 6 ) لذا نأمل سرعة السداد تجنباً لاتخاذ الإجراء القانوني مع أهمية ارسال إيصال التحويل على رقم الواتساب (966122121912) وشكراً لتفهمكم.\nإدارة وقف حسين مرفق"]
["الرحاب (1) شقة - 27 ","فيصل خالد حسين مرفق",null,"عزيزنا المستأجر (فيصل خالد حسين مرفق) نود إبلاغكم بوجود مستحقات متأخرة عليكم للوحدة المستأجرة في (الرحاب (1) شقة - 27 ) لذا نأمل سرعة السداد تجنباً لاتخاذ الإجراء القانوني مع أهمية ارسال إيصال التحويل على رقم الواتساب (966122121912) وشكراً لتفهمكم.\nإدارة وقف حسين مرفق"]
["الرحاب (1) شقة - 2","محسن الحق خان غوري مير خان غوري",null,"عزيزنا المستأجر (محسن الحق خان غوري مير خان غوري) نود إبلاغكم بوجود مستحقات متأخرة عليكم للوحدة المستأجرة في (الرحاب (1) شقة - 2) لذا نأمل سرعة السداد تجنباً لاتخاذ الإجراء القانوني مع أهمية ارسال إيصال التحويل على رقم الواتساب (966122121912) وشكراً لتفهمكم.\nإدارة وقف حسين مرفق"]
["الرحاب (1) شقة - 13","محمد اصف رازا محمد الياس",null,"عزيزنا المستأجر (محمد اصف رازا محمد الياس) نود إبلاغكم بوجود مستحقات متأخرة عليكم للوحدة المستأجرة في (الرحاب (1) شقة - 13) لذا نأمل سرعة السداد تجنباً لاتخاذ الإجراء القانوني مع أهمية ارسال إيصال التحويل على رقم الواتساب (966122121912) وشكراً لتفهمكم.\nإدارة وقف حسين مرفق"]
["الرحاب (1) شقة - 1 ","محمد رياض الدين محمد شرف الدين",null,{"$f":"\"عزيزنا المستأجر (\"&$B453&\") نود إبلاغكم بوجود مستحقات متأخرة عليكم للوحدة المستأجرة في (\"&$A453&\") لذا نأمل سرعة السداد تجنباً لاتخاذ الإجراء القانوني مع أهمية ارسال إيصال التحويل على رقم الواتساب (966122121912) وشكراً لتفهمكم.\nإدارة وقف حسين مرفق\"","v":"عزيزنا المستأجر (محمد رياض الدين محمد شرف الدين) نود إبلاغكم بوجود مستحقات متأخرة عليكم للوحدة المستأجرة في (الرحاب (1) شقة - 1 ) لذا نأمل سرعة السداد تجنباً لاتخاذ الإجراء القانوني مع أهمية ارسال إيصال التحويل على رقم الواتساب (966122121912) وشكراً لتفهمكم.\nإدارة وقف حسين مرفق"}]
["الرحاب (1) شقة - 16 ","محمد سعيد على عطا الله",null,"عزيزنا المستأجر (محمد سعيد على عطا الله) نود إبلاغكم بوجود مستحقات متأخرة عليكم للوحدة المستأجرة في (الرحاب (1) شقة - 16 ) لذا نأمل سرعة السداد تجنباً لاتخاذ الإجراء القانوني مع أهمية ارسال إيصال التحويل على رقم الواتساب (966122121912) وشكراً لتفهمكم.\nإدارة وقف حسين مرفق"]
["الرحاب (1) شقة - 11","محمد عمير شودري محمد رمضان",null,"عزيزنا المستأجر (محمد عمير شودري محمد رمضان) نود إبلاغكم بوجود مستحقات متأخرة عليكم للوحدة المستأجرة في (الرحاب (1) شقة - 11) لذا نأمل سرعة السداد تجنباً لاتخاذ الإجراء القانوني مع أهمية ارسال إيصال التحويل على رقم الواتساب (966122121912) وشكراً لتفهمكم.\nإدارة وقف حسين مرفق"]
["الرحاب (1) شقة - 15 ","محمد قاسم السيد عسكر",null,"عزيزنا المستأجر (محمد قاسم السيد عسكر) نود إبلاغكم بوجود مستحقات متأخرة عليكم للوحدة المستأجرة في (الرحاب (1) شقة - 15 ) لذا نأمل سرعة السداد تجنباً لاتخاذ الإجراء القانوني مع أهمية ارسال إيصال التحويل على رقم الواتساب (966122121912) وشكراً لتفهمكم.\nإدارة وقف حسين مرفق"]
["الرحاب (1) شقة - 6 ","محمد موني - - نوتوساكا",null,"عزيزنا المستأجر (محمد موني - - نوتوساكا) نود إبلاغكم بوجود مستحقات متأخرة عليكم للوحدة المستأجرة في (الرحاب (1) شقة - 6 ) لذا نأمل سرعة السداد تجنباً لاتخاذ الإجراء القانوني مع أهمية ارسال إيصال التحويل على رقم الواتساب (966122121912) وشكراً لتفهمكم.\nإدارة وقف حسين مرفق"]
["الرحاب (1) شقة - 23 ","مرجان عبد الهادى فرج الله سعيد",null,"عزيزنا المستأجر (مرجان عبد الهادى فرج الله سعيد) نود إبلاغكم بوجود مستحقات متأخرة عليكم للوحدة المستأجرة في (الرحاب (1) شقة - 23 ) لذا نأمل سرعة السداد تجنباً لاتخاذ الإجراء القانوني مع أهمية ارسال إيصال التحويل على رقم الواتساب (966122121912) وشكراً لتفهمكم.\nإدارة وقف حسين مرفق"]
["الرحاب (1) شقة - 3 ","موكتيار احمد شيخ",null,"عزيزنا المستأجر (موكتيار احمد شيخ) نود إبلاغكم بوجود مستحقات متأخرة عليكم للوحدة المستأجرة في (الرحاب (1) شقة - 3 ) لذا نأمل سرعة السداد تجنباً لاتخاذ الإجراء القانوني مع أهمية ارسال إيصال التحويل على رقم الواتساب (966122121912) وشكراً لتفهمكم.\nإدارة وقف حسين مرفق"]
["الرحاب (1) معرض - 7 ","مؤسسة عبق الأفاق التجارية",null,"عزيزنا المستأجر (مؤسسة عبق الأفاق التجارية) نود إبلاغكم بوجود مستحقات متأخرة عليكم للوحدة المستأجرة في (الرحاب (1) معرض - 7 ) لذا نأمل سرعة السداد تجنباً لاتخاذ الإجراء القانوني مع أهمية ارسال إيصال التحويل على رقم الواتساب (966122121912) وشكراً لتفهمكم.\nإدارة وقف حسين مرفق"]
["مشرفة شقة - 5","احمد ايمن الهندي",null,"عزيزنا المستأجر (احمد ايمن الهندي) نود إبلاغكم بوجود مستحقات متأخرة عليكم للوحدة المستأجرة في (مشرفة شقة - 5) لذا نأمل سرعة السداد تجنباً لاتخاذ الإجراء القانوني مع أهمية ارسال إيصال التحويل على رقم الواتساب (966122121912) وشكراً لتفهمكم.\nإدارة وقف حسين مرفق"]
["مشرفة شقة - 12","جمال سعيد يوسف شاهين",null,"عزيزنا المستأجر (جمال سعيد يوسف شاهين) نود إبلاغكم بوجود مستحقات متأخرة عليكم للوحدة المستأجرة في (مشرفة شقة - 12) لذا نأمل سرعة السداد تجنباً لاتخاذ الإجراء القانوني مع أهمية ارسال إيصال التحويل على رقم الواتساب (966122121912) وشكراً لتفهمكم.\nإدارة وقف حسين مرفق"]
["مشرفة شقة - 7","حسن محمود أحمد صائغ",null,"عزيزنا المستأجر (حسن محمود أحمد صائغ) نود إبلاغكم بوجود مستحقات متأخرة عليكم للوحدة المستأجرة في (مشرفة شقة - 7) لذا نأمل سرعة السداد تجنباً لاتخاذ الإجراء القانوني مع أهمية ارسال إيصال التحويل على رقم الواتساب (966122121912) وشكراً لتفهمكم.\nإدارة وقف حسين مرفق"]
["مشرفة شقة - 3","رمزي محمد أحمد سيف ",null,"عزيزنا المستأجر (رمزي محمد أحمد سيف ) نود إبلاغكم بوجود مستحقات متأخرة عليكم للوحدة المستأجرة في (مشرفة شقة - 3) لذا نأمل سرعة السداد تجنباً لاتخاذ الإجراء القانوني مع أهمية ارسال إيصال التحويل على رقم الواتساب (966122121912) وشكراً لتفهمكم.\nإدارة وقف حسين مرفق"]
["مشرفة شقة - 6","شيخ علوي شيخ الحبشي ",null,"عزيزنا المستأجر (شيخ علوي شيخ الحبشي ) نود إبلاغكم بوجود مستحقات متأخرة عليكم للوحدة المستأجرة في (مشرفة شقة - 6) لذا نأمل سرعة السداد تجنباً لاتخاذ الإجراء القانوني مع أهمية ارسال إيصال التحويل على رقم الواتساب (966122121912) وشكراً لتفهمكم.\nإدارة وقف حسين مرفق"]
["مشرفة شقة - 9 ","عبدالرزاق منير نصري",null,"عزيزنا المستأجر (عبدالرزاق منير نصري) نود إبلاغكم بوجود مستحقات متأخرة عليكم للوحدة المستأجرة في (مشرفة شقة - 9 ) لذا نأمل سرعة السداد تجنباً لاتخاذ الإجراء القانوني مع أهمية ارسال إيصال التحويل على رقم الواتساب (966122121912) وشكراً لتفهمكم.\nإدارة وقف حسين مرفق"]
["مشرفة شقة - 10","عبدالعزيز احمد  جوده المغربي",null,"عزيزنا المستأجر (عبدالعزيز احمد  جوده المغربي) نود إبلاغكم بوجود مستحقات متأخرة عليكم للوحدة المستأجرة في (مشرفة شقة - 10) لذا نأمل سرعة السداد تجنباً لاتخاذ الإجراء القانوني مع أهمية ارسال إيصال التحويل على رقم الواتساب (966122121912) وشكراً لتفهمكم.\nإدارة وقف حسين مرفق"]
["مشرفة شقة - 4","عمران محمد احمد سيف",null,"عزيزنا المستأجر (عمران محمد احمد سيف) نود إبلاغكم بوجود مستحقات متأخرة عليكم للوحدة المستأجرة في (مشرفة شقة - 4) لذا نأمل سرعة السداد تجنباً لاتخاذ الإجراء القانوني مع أهمية ارسال إيصال التحويل على رقم الواتساب (966122121912) وشكراً لتفهمكم.\nإدارة وقف حسين مرفق"]
["مشرفة شقة - 8","فؤاد أحمد عزي حاكم",null,"عزيزنا المستأجر (فؤاد أحمد عزي حاكم) نود إبلاغكم بوجود مستحقات متأخرة عليكم للوحدة المستأجرة في (مشرفة شقة - 8) لذا نأمل سرعة السداد تجنباً لاتخاذ الإجراء القانوني مع أهمية ارسال إيصال التحويل على رقم الواتساب (966122121912) وشكراً لتفهمكم.\nإدارة وقف حسين مرفق"]
["مشرفة ملحق - 1","محمد ملحي محمد صالح ",null,"عزيزنا المستأجر (محمد ملحي محمد صالح ) نود إبلاغكم بوجود مستحقات متأخرة عليكم للوحدة المستأجرة في (مشرفة ملحق - 1) لذا نأمل سرعة السداد تجنباً لاتخاذ الإجراء القانوني مع أهمية ارسال إيصال التحويل على رقم الواتساب (966122121912) وشكراً لتفهمكم.\nإدارة وقف حسين مرفق"]